Workbook

Sheet base case
A1: Case: | B1: base case (3.1)
A2: N | B2: 683278000 | C2: [stb] | J2: Production potential vs cumulative production for porosity 0.3
J3: N | K3: 819934000 | L3: [stb]
A4: Date | B4: Average Oil Rate | C4: Average Gas Rate | D4: Average Water Rate | E4: Cum Oil Production | F4: RF | G4: qomax_n | H4: GOR | I4: WC | J4: Np | K4: qmax
B5: stb/d | C5: 1e06 scf/d | D5: stb/d | E5: stb | H5: scf/stb | J5: [stb] | K5: [stb/d]
A6: 2008-01-01 | B6: 287696.5559 | C6: 187.0030485 | D6: 0.004 | E6: 0 | F6: 0 | G6: 1 | H6: 650.0009983 | I6: 1.390353782e-08 | J6: =F6*$K$3 -> 0 | K6: =G6*$B$6 -> 287696.5559
A7: 2008-02-01 | B7: 284660.7808 | C7: 185.0296343 | D7: 161.2588791 | E7: 8918593.232 | F7: 0.0130526568 | G7: 0.9894479964 | H7: 650.0004455 | I7: 0.00056617416 | J7: 10702317.1 | K7: =G7*$B$6 -> 284660.7808
A8: 2008-03-01 | B8: 281805.5003 | C8: 183.1738903 | D8: 170.9388541 | E8: 17173755.87 | F8: 0.02513436094 | G8: 0.9795233711 | H8: 650.0011182 | I8: 0.0006062167982 | J8: 20608517.1 | K8: 281805.5003
A9: 2008-04-01 | B9: 278734.8906 | C9: 182.0155815 | D9: 185.60393 | E9: 25909726.38 | F9: 0.03791974333 | G9: 0.9688502866 | H9: 653.0060915 | I9: 0.0006654366876 | J9: 31091686.83 | K9: 278734.8906
A10: 2008-05-01 | B10: 274395.7578 | C10: 186.0868346 | D10: 201.0329929 | E10: 34271773.1 | F10: 0.05015787586 | G10: 0.9537679622 | H10: 678.1695026 | I10: 0.0007321024851 | J10: 41126147.78 | K10: 274395.7578
A11: 2008-06-01 | B11: 268116.9743 | C11: 197.7701263 | D11: 216.3788805 | E11: 42778041.59 | F11: 0.06260708173 | G11: 0.931943636 | H11: 737.6262798 | I11: 0.0008063808613 | J11: 51333674.95 | K11: 268116.9743
A12: 2008-07-01 | B12: 260912.9889 | C12: 213.6824642 | D12: 230.140814 | E12: 50821550.82 | F12: 0.07437902409 | G12: 0.9069034147 | H12: 818.9797873 | I12: 0.0008812822846 | J12: 60985890.74 | K12: 260912.9889
A13: 2008-08-01 | B13: 252879.6136 | C13: 231.6476107 | D13: 243.4688109 | E13: 58909853.48 | F13: 0.08621652311 | G13: 0.8789803301 | H13: 916.0390883 | I13: 0.0009618593791 | J13: 70691858.66 | K13: 252879.6136
A14: 2008-09-01 | B14: 244870.7708 | C14: 250.0151646 | D14: 256.2490614 | E14: 66749121.5 | F14: 0.09768955169 | G14: 0.8511425175 | H14: 1021.008607 | I14: 0.001045372565 | J14: 80098984.88 | K14: 244870.7708
A15: 2008-10-01 | B15: 236510.6367 | C15: 267.0670804 | D15: 267.4194624 | E15: 74095244.63 | F15: 0.1084408464 | G15: 0.8220836569 | H15: 1129.196911 | I15: 0.001129409823 | J15: 88914336.93 | K15: 236510.6367
A16: 2008-11-01 | B16: 228101.4357 | C16: 284.4495217 | D16: 277.8215382 | E16: 81427074.37 | F16: 0.1191712222 | G16: 0.7928542455 | H16: 1247.030825 | I16: 0.001216491994 | J16: 97712536.91 | K16: 228101.4357
A17: 2008-12-01 | B17: 219878.5494 | C17: 300.5344682 | D17: 287.156774 | E17: 88270117.44 | F17: 0.1291862426 | G17: 0.7642724424 | H17: 1366.820315 | I17: 0.00130427567 | J17: 105924192.6 | K17: 219878.5494
A18: 2009-01-01 | B18: 211940.635 | C18: 316.9709157 | D18: 296.2690976 | E18: 95086352.47 | F18: 0.1391620284 | G18: 0.7366811688 | H18: 1495.564622 | I18: 0.001395935824 | J18: 114103678.6 | K18: 211940.635
A19: 2009-02-01 | B19: 204270.5649 | C19: 332.8117663 | D19: 305.0472085 | E19: 101656512.2 | F19: 0.1487776749 | G19: 0.7100208908 | H19: 1629.26933 | I19: 0.001491122062 | J19: 121987874.1 | K19: 204270.5649
A20: 2009-03-01 | B20: 197757.5423 | C20: 346.8523335 | D20: 312.6584659 | E20: 107376088 | F20: 0.1571484637 | G20: 0.6873823766 | H20: 1753.927206 | I20: 0.001578523497 | J20: 128851368.4 | K20: 197757.5423
A21: 2009-04-01 | B21: 190896.8411 | C21: 361.887827 | D21: 320.7420417 | E21: 113506571.8 | F21: 0.1661206299 | G21: 0.6635353716 | H21: 1895.724544 | I21: 0.001677366885 | J21: 136207952.6 | K21: 190896.8411
A22: 2009-05-01 | B22: 184605.1523 | C22: 375.9791521 | D22: 328.2507706 | E22: 119233477 | F22: 0.1745021456 | G22: 0.641666188 | H22: 2036.666623 | I22: 0.001774967449 | J22: 143080242.2 | K22: 184605.1523
A23: 2009-06-01 | B23: 178533.5805 | C23: 390.300342 | D23: 335.9268486 | E23: 124956236.7 | F23: 0.1828775941 | G23: 0.6205621056 | H23: 2186.145267 | I23: 0.001878055425 | J23: 149947557.2 | K23: 178533.5805
A24: 2009-07-01 | B24: 173021.4832 | C24: 403.9698165 | D24: 343.3567167 | E24: 130312244.2 | F24: 0.1907162885 | G24: 0.6014026922 | H24: 2334.795708 | I24: 0.001980544133 | J24: 156374769.3 | K24: 173021.4832
A25: 2009-08-01 | B25: 167551.3228 | C25: 417.5704708 | D25: 350.7330932 | E25: 135675910.1 | F25: 0.1985661914 | G25: 0.5823890465 | H25: 2492.194413 | I25: 0.002088914821 | J25: 162811171.6 | K25: 167551.3228
A26: 2009-09-01 | B26: 162400.4489 | C26: 430.810062 | D26: 357.9597924 | E26: 140870001.1 | F26: 0.2061679158 | G26: 0.5644852034 | H26: 2652.763986 | I26: 0.002199332098 | J26: 169044083.8 | K26: 162400.4489
A27: 2009-10-01 | B27: 157501.4705 | C27: 442.7570191 | D27: 364.4112709 | E27: 145742014.6 | F27: 0.2132982689 | G27: 0.5474569205 | H27: 2811.12943 | I27: 0.002308359898 | J27: 174890502.8 | K27: 157501.4705
A28: 2009-11-01 | B28: 152621.9644 | C28: 454.2675558 | D28: 370.6055401 | E28: 150624560.2 | F28: 0.2204440362 | G28: 0.5304963207 | H28: 2976.423202 | I28: 0.002422376069 | J28: 180749560.4 | K28: 152621.9644
A29: 2009-12-01 | B29: 148107.7681 | C29: 464.9040104 | D29: 376.3315266 | E29: 155203219.1 | F29: 0.2271450553 | G29: 0.5148054958 | H29: 3138.957642 | I29: 0.002534490411 | J29: 186243953.8 | K29: 148107.7681
A30: 2010-01-01 | B30: 143729.7841 | C30: 475.5154303 | D30: 382.1920546 | E30: 159794559.9 | F30: 0.2338646348 | G30: 0.499588129 | H30: 3308.398697 | I30: 0.002652049225 | J30: 191753565.5 | K30: 143729.7841
A31: 2010-02-01 | B31: 139459.0912 | C31: 485.3532926 | D31: 387.6296587 | E31: 164250183.2 | F31: 0.2403855872 | G31: 0.4847436937 | H31: 3480.255669 | I31: 0.002771818005 | J31: 197100316 | K31: 139459.0912
A32: 2010-03-01 | B32: 135632.551 | C32: 493.3326725 | D32: 391.8589982 | E32: 168155037.8 | F32: 0.2461004712 | G32: 0.4714430822 | H32: 3637.273418 | I32: 0.002880799102 | J32: 201786143.8 | K32: 135632.551
A33: 2010-04-01 | B33: 131647.715 | C33: 501.7659876 | D33: 396.385206 | E33: 172359646.9 | F33: 0.252254056 | G33: 0.4575922525 | H33: 3811.429522 | I33: 0.003001915309 | J33: 206831677.2 | K33: 131647.715
A34: 2010-05-01 | B34: 127927.1956 | C34: 509.2484146 | D34: 400.4562664 | E34: 176309078.3 | F34: 0.2580341798 | G34: 0.4446601568 | H34: 3980.767436 | I34: 0.00312057659 | J34: 211570997.2 | K34: 127927.1956
A35: 2010-06-01 | B35: 124268.5049 | C35: 516.504574 | D35: 404.3772867 | E35: 180274821.4 | F35: 0.2638381762 | G35: 0.4319429703 | H35: 4156.359445 | I35: 0.003243506364 | J35: 216329891.2 | K35: 124268.5049
A36: 2010-07-01 | B36: 120939.9208 | C36: 523.3271087 | D36: 408.1755085 | E36: 184002876.5 | F36: 0.2692943085 | G36: 0.4203731964 | H36: 4327.165963 | I36: 0.003363674594 | J36: 220803559.6 | K36: 120939.9208
A37: 2010-08-01 | B37: 117711.4617 | C37: 530.1279567 | D37: 412.1041595 | E37: 187752014.1 | F37: 0.2747812956 | G37: 0.4091514455 | H37: 4503.622239 | I37: 0.003488754818 | J37: 225302526.8 | K37: 117711.4617
A38: 2010-09-01 | B38: 114676.1468 | C38: 536.7600553 | D38: 416.0020832 | E38: 191401069.4 | F38: 0.280121809 | G38: 0.3986010415 | H38: 4680.660018 | I38: 0.00361451313 | J38: 229681395.3 | K38: 114676.1468
A39: 2010-10-01 | B39: 111866.3917 | C39: 542.8560327 | D39: 419.6251419 | E39: 194841353.8 | F39: 0.2851567792 | G39: 0.3888346573 | H39: 4852.717822 | I39: 0.003737109515 | J39: 233809738.6 | K39: 111866.3917
A40: 2010-11-01 | B40: 109112.4932 | C40: 548.8574342 | D40: 423.2150988 | E40: 198309211.9 | F40: 0.2902321046 | G40: 0.3792624241 | H40: 5030.197901 | I40: 0.003863718101 | J40: 237971170.4 | K40: 109112.4932
A41: 2010-12-01 | B41: 106596.6254 | C41: 554.568126 | D41: 426.7100858 | E41: 201582586.7 | F41: 0.2950227971 | G41: 0.3705175582 | H41: 5202.492331 | I41: 0.003987075192 | J41: 241899222.1 | K41: 106596.6254
A42: 2011-01-01 | B42: 104072.5976 | C42: 560.1205468 | D42: 430.0639805 | E42: 204887082.1 | F42: 0.2998590356 | G42: 0.3617443292 | H42: 5382.01755 | I42: 0.004115339973 | J42: 245864618.5 | K42: 104072.5976
A43: 2011-02-01 | B43: 101609.5677 | C43: 565.2006039 | D43: 433.0848236 | E43: 208113332.6 | F43: 0.3045807602 | G43: 0.3531831216 | H43: 5562.474251 | I43: 0.0042441549 | J43: 249736121 | K43: 101609.5677
A44: 2011-03-01 | B44: 99642.9924 | C44: 570.5911248 | D44: 436.4381854 | E44: 210958400.5 | F44: 0.3087446113 | G44: 0.3463475331 | H44: 5726.35477 | I44: 0.004360917951 | J44: 253150204.1 | K44: 99642.9924
A45: 2011-04-01 | B45: 97366.37056 | C45: 575.357818 | D45: 439.3460743 | E45: 214047333.3 | F45: 0.3132653668 | G45: 0.3384342585 | H45: 5909.204736 | I45: 0.004492028579 | J45: 256856925.3 | K45: 97366.37056
A46: 2011-05-01 | B46: 95204.2143 | C46: 579.4055328 | D46: 441.6928575 | E46: 216968324.4 | F46: 0.3175403341 | G46: 0.3309188531 | H46: 6085.92316 | I46: 0.004618000609 | J46: 260362116.3 | K46: 95204.2143
A47: 2011-06-01 | B47: 92959.50058 | C47: 582.6063155 | D47: 443.5122445 | E47: 219919655.1 | F47: 0.3218597043 | G47: 0.3231164874 | H47: 6267.313312 | I47: 0.004748371933 | J47: 263903714.8 | K47: 92959.50058
A48: 2011-07-01 | B48: 90926.67196 | C48: 585.799706 | D48: 445.3615342 | E48: 222708440.1 | F48: 0.3259411837 | G48: 0.31605061 | H48: 6442.550831 | I48: 0.004874155879 | J48: 267250258.5 | K48: 90926.67196
A49: 2011-08-01 | B49: 88935.41557 | C49: 588.9833875 | D49: 447.3188265 | E49: 225527166.9 | F49: 0.3300664838 | G49: 0.3091292327 | H49: 6622.596676 | I49: 0.005004532805 | J49: 270632732.3 | K49: 88935.41557
A50: 2011-09-01 | B50: 87022.38133 | C50: 592.0092104 | D50: 449.1679275 | E50: 228284164.8 | F50: 0.3341014416 | G50: 0.3024797467 | H50: 6802.953462 | I50: 0.0051350174 | J50: 273941131.4 | K50: 87022.38133
A51: 2011-10-01 | B51: 85193.45339 | C51: 594.5578106 | D51: 450.6432387 | E51: 230894836.2 | F51: 0.3379222458 | G51: 0.2961226044 | H51: 6978.914305 | I51: 0.005261813206 | J51: 277073938.7 | K51: 85193.45339
A52: 2011-11-01 | B52: 83338.77184 | C52: 596.8280062 | D52: 451.8983233 | E52: 233535833.3 | F52: 0.3417874325 | G52: 0.2896759455 | H52: 7161.468702 | I52: 0.005393181871 | J52: 280243136.7 | K52: 83338.77184
A53: 2011-12-01 | B53: 81578.48364 | C53: 598.789046 | D53: 452.9294729 | E53: 236035996.4 | F53: 0.3454465041 | G53: 0.283557387 | H53: 7340.036481 | I53: 0.005521414976 | J53: 283243333.9 | K53: 81578.48364
A54: 2012-01-01 | B54: 79798.4282 | C54: 600.5130074 | D54: 453.7698466 | E54: 238564929.4 | F54: 0.3491476814 | G54: 0.2773701199 | H54: 7525.373881 | I54: 0.005654298045 | J54: 286278055 | K54: 79798.4282
A55: 2012-02-01 | B55: 78102.34509 | C55: 602.2834703 | D55: 454.6953386 | E55: 241038680.7 | F55: 0.3527680984 | G55: 0.2714747309 | H55: 7711.464613 | I55: 0.005788091508 | J55: 289246558 | K55: 78102.34509
A56: 2012-03-01 | B56: 76567.46031 | C56: 603.8253482 | D56: 455.5955122 | E56: 243303648.7 | F56: 0.3560829541 | G56: 0.2661396487 | H56: 7886.187497 | I56: 0.005915053711 | J56: 291964520.9 | K56: 76567.46031
A57: 2012-04-01 | B57: 74985.07416 | C57: 605.3347067 | D57: 457.77311 | E57: 245677240 | F57: 0.3595567836 | G57: 0.2606394572 | H57: 8072.735988 | I57: 0.006067813273 | J57: 294812831.8 | K57: 74985.07416
A58: 2012-05-01 | B58: 73526.59928 | C58: 606.8080148 | D58: 460.2905846 | E58: 247926792.2 | F58: 0.3628490779 | G58: 0.255569967 | H58: 8252.904673 | I58: 0.006221245216 | J58: 297512295.8 | K58: 73526.59928
A59: 2012-06-01 | B59: 72082.83027 | C59: 608.3215827 | D59: 463.3096089 | E59: 250206116.8 | F59: 0.3661849449 | G59: 0.2505515926 | H59: 8439.20224 | I59: 0.006386412974 | J59: 300247486.6 | K59: 72082.83027
A60: 2012-07-01 | B60: 70837.73713 | C60: 610.5101585 | D60: 468.237058 | E60: 252368601.7 | F60: 0.3693498133 | G60: 0.2462237927 | H60: 8618.431125 | I60: 0.006566589453 | J60: 302842469.8 | K60: 70837.73713
A61: 2012-08-01 | B61: 69409.34065 | C61: 611.3972631 | D61: 475.0528722 | E61: 254564571.6 | F61: 0.3725636879 | G61: 0.2412588515 | H61: 8808.573275 | I61: 0.006797696142 | J61: 305477634.9 | K61: 69409.34065
A62: 2012-09-01 | B62: 68393.63714 | C62: 615.3024066 | D62: 483.8670205 | E62: 256716261.1 | F62: 0.3757127569 | G62: 0.2377283834 | H62: 8996.486112 | I62: 0.007025037077 | J62: 308059663.6 | K62: 68393.63714
A63: 2012-10-01 | B63: 67154.76678 | C63: 616.4675477 | D63: 490.5560188 | E63: 258768070.2 | F63: 0.3787156476 | G63: 0.2334222131 | H63: 9179.80327 | I63: 0.007251883774 | J63: 310521835.8 | K63: 67154.76678
A64: 2012-11-01 | B64: 65957.26575 | C64: 617.7314221 | D64: 497.4329027 | E64: 260849868 | F64: 0.3817624276 | G64: 0.2292598379 | H64: 9365.631141 | I64: 0.007485293181 | J64: 313019994.3 | K64: 65957.26575
A65: 2012-12-01 | B65: 64858.23407 | C65: 619.0807696 | D65: 505.9804571 | E65: 262828586 | F65: 0.3846583469 | G65: 0.2254397307 | H65: 9545.137613 | I65: 0.007740939912 | J65: 315394457 | K65: 64858.23407
A66: 2013-01-01 | B66: 63574.79722 | C66: 618.4215966 | D66: 513.5217877 | E66: 264839191.2 | F66: 0.3876009344 | G66: 0.2209786524 | H66: 9727.464713 | I66: 0.008012720503 | J66: 317807184.5 | K66: 63574.79722
A67: 2013-02-01 | B67: 62486.30893 | C67: 619.1821707 | D67: 521.6733261 | E67: 266810009.9 | F67: 0.3904852929 | G67: 0.2171951928 | H67: 9909.085387 | I67: 0.008279479954 | J67: 320172168.1 | K67: 62486.30893
A68: 2013-03-01 | B68: 61537.44766 | C68: 619.9073487 | D68: 528.9271685 | E68: 268559626.6 | F68: 0.3930459148 | G68: 0.2138970607 | H68: 10073.66038 | I68: 0.008521960077 | J68: 322271709.1 | K68: 61537.44766
A69: 2013-04-01 | B69: 60894.49903 | C69: 624.5111337 | D69: 540.0279198 | E69: 270467287.5 | F69: 0.3958378398 | G69: 0.2116622455 | H69: 10255.62479 | I69: 0.008790299959 | J69: 324560903.3 | K69: 60894.49903
A70: 2013-05-01 | B70: 59630.11618 | C70: 622.3161582 | D70: 544.9147459 | E70: 272294122.4 | F70: 0.3985114733 | G70: 0.2072673967 | H70: 10436.27278 | I70: 0.0090554959 | J70: =F70*$K$3 -> 326753106.3 | K70: 59630.11618
A71: 2013-06-01 | B71: 58621.5363 | C71: 622.7521596 | D71: 551.7570286 | E71: 274142656 | F71: 0.4012168635 | G71: 0.2037616896 | H71: 10623.26576 | I71: 0.00932442657 | J71: 328971347.7 | K71: =G71*$B$6 -> 58621.5363
A72: 2013-07-01 | B72: 58159.89159 | C72: 628.3214335 | D72: 563.2597506 | E72: 275901302.1 | F72: 0.4037907003 | G72: 0.2021570658 | H72: 10803.34602 | I72: 0.009591783442 | J72: 331081724.1 | K72: 58159.89159
A73: 2013-08-01 | B73: 57238.62973 | C73: 629.281833 | D73: 570.8656546 | E73: 277704258.8 | F73: 0.4064293871 | G73: 0.198954866 | H73: 10994.0059 | I73: 0.009874946163 | J73: 333245273.1 | K73: 57238.62973
A74: 2013-09-01 | B74: 56351.44167 | C74: 630.4206038 | D74: 578.1818926 | E74: 279478656.3 | F74: 0.4090262767 | G74: 0.1958711028 | H74: 11187.30214 | I74: 0.01015608143 | J74: 335374551.2 | K74: 56351.44167
A75: 2013-10-01 | B75: 55469.5928 | C75: 631.0301658 | D75: 584.8440799 | E75: 281169199.5 | F75: 0.4115004428 | G75: 0.192805898 | H75: 11376.14563 | I75: 0.01043350201 | J75: 337403204.1 | K75: 55469.5928
A76: 2013-11-01 | B76: 54600.04162 | C76: 631.7915421 | D76: 591.7753466 | E76: 282888756.9 | F76: 0.414017072 | G76: 0.1897834385 | H76: 11571.26484 | I76: 0.01072215736 | J76: 339466673.9 | K76: 54600.04162
A77: 2013-12-01 | B77: 53772.6788 | C77: 632.4842062 | D77: 598.4108217 | E77: 284526758.2 | F77: 0.4164143411 | G77: 0.1869076209 | H77: 11762.18519 | I77: 0.01100604799 | J77: 341432276.4 | K77: 53772.6788
A78: 2014-01-01 | B78: 52911.15444 | C78: 632.8019213 | D78: 604.9449195 | E78: 286193711.2 | F78: 0.4188539821 | G78: 0.1839130617 | H78: 11959.70732 | I78: 0.01130398005 | J78: 343432621 | K78: 52911.15444
A79: 2014-02-01 | B79: 52078.21869 | C79: 633.0730708 | D79: 611.5696101 | E79: 287833957 | F79: 0.4212545362 | G79: 0.1810178733 | H79: 12156.19671 | I79: 0.01160698552 | J79: 345400916.9 | K79: 52078.21869
A80: 2014-03-01 | B80: 51334.27695 | C80: 632.9463058 | D80: 617.2666989 | E80: 289292147.1 | F80: 0.4233886458 | G80: 0.1784320177 | H80: 12329.89619 | I80: 0.01188158533 | J80: 347150745.9 | K80: 51334.27695
A81: 2014-04-01 | B81: 50529.63288 | C81: 632.9026196 | D81: 623.6851415 | E81: 290883509.7 | F81: 0.4257176577 | G81: 0.1756351679 | H81: 12525.37538 | I81: 0.01219246699 | J81: 349060381.9 | K81: 50529.63288
A82: 2014-05-01 | B82: 49793.21948 | C82: 632.8568936 | D82: 629.9961557 | E82: 292399398.7 | F82: 0.4279362115 | G82: 0.1730754799 | H82: 12709.70024 | I82: 0.01249416856 | J82: 350879449.6 | K82: 49793.21948
A83: 2014-06-01 | B83: 49044.15087 | C83: 632.8668334 | D83: 637.597588 | E83: 293942988.5 | F83: 0.4301953063 | G83: 0.1704718039 | H83: 12904.02265 | I83: 0.01283363826 | J83: 352731758.3 | K83: 49044.15087
A84: 2014-07-01 | B84: 48351.59579 | C84: 632.914669 | D84: 645.0028547 | E84: 295414313 | F84: 0.4323486385 | G84: 0.1680645625 | H84: 13089.84034 | I84: 0.01316423737 | J84: 354497348.6 | K84: 48351.59579
A85: 2014-08-01 | B85: 47653.83793 | C85: 633.0058449 | D85: 652.4166606 | E85: 296913212.5 | F85: 0.4345423276 | G85: 0.1656392368 | H85: 13283.41792 | I85: 0.01350584238 | J85: 356296028.8 | K85: 47653.83793
A86: 2014-09-01 | B86: 46986.48425 | C86: 633.1469747 | D86: 659.6894199 | E86: 298390481.5 | F86: 0.4367043597 | G86: 0.1633195924 | H86: 13475.08725 | I86: 0.01384559072 | J86: 358068752.4 | K86: 46986.48425
A87: 2014-10-01 | B87: 46348.3548 | C87: 633.3218435 | D87: 666.7194149 | E87: 299800076 | F87: 0.438767348 | G87: 0.1611015282 | H87: 13664.38671 | I87: 0.01418097123 | J87: 359760266.7 | K87: 46348.3548
A88: 2014-11-01 | B88: 45718.28767 | C88: 633.556902 | D88: 674.0256795 | E88: 301236875 | F88: 0.4408701509 | G88: 0.1589114876 | H88: 13857.84408 | I88: 0.01452882236 | J88: 361484426.3 | K88: 45718.28767
A89: 2014-12-01 | B89: 45118.9653 | C89: 633.8191848 | D89: 681.1751569 | E89: 302608423.6 | F89: 0.4428774578 | G89: 0.1568283123 | H89: 14047.73316 | I89: 0.01487277441 | J89: 363130285.5 | K89: 45118.9653
A90: 2015-01-01 | B90: 44522.2936 | C90: 634.1292264 | D90: 689.8128248 | E90: 304007111.5 | F90: 0.444924484 | G90: 0.1547543504 | H90: 14242.95954 | I90: 0.01525725916 | J90: 364808711.8 | K90: 44522.2936
A91: 2015-02-01 | B91: 43941.81253 | C91: 634.4895096 | D91: 698.3927855 | E91: 305387302.7 | F91: 0.4469444394 | G91: 0.1527366652 | H91: 14439.31129 | I91: 0.01564492772 | J91: 366464942 | K91: 43941.81253
A92: 2015-03-01 | B92: 43436.10865 | C92: 634.8247014 | D92: 705.9282839 | E92: 306617673.4 | F92: 0.4487451278 | G92: 0.1509788969 | H92: 14615.13752 | I92: 0.01599220002 | J92: 367941387.6 | K92: 43436.10865
A93: 2015-04-01 | B93: 42883.52709 | C93: 635.0703261 | D93: 713.8003108 | E93: 307964192.8 | F93: 0.4507158035 | G93: 0.1490581872 | H93: 14809.1906 | I93: 0.01637257037 | J93: 369557211.6 | K93: 42883.52709
A94: 2015-05-01 | B94: 42377.01769 | C94: 635.3406647 | D94: 721.2269011 | E94: 309250698.6 | F94: 0.4525986474 | G94: 0.147297619 | H94: 14992.57615 | I94: 0.01673448439 | J94: 371101019.3 | K94: 42377.01769
A95: 2015-06-01 | B95: 41862.16129 | C95: 635.6726127 | D95: 728.6008572 | E95: 310564386.1 | F95: 0.4545212726 | G95: 0.1455080377 | H95: 15184.89713 | I95: 0.01710701618 | J95: 372677445.2 | K95: 41862.16129
A96: 2015-07-01 | B96: 41380.51702 | C96: 636.0328651 | D96: 735.4310718 | E96: 311820251 | F96: 0.4563592725 | G96: 0.1438338978 | H96: 15370.34602 | I96: 0.01746205666 | J96: 374184483.7 | K96: 41380.51702
A97: 2015-08-01 | B97: 40889.60098 | C97: 636.4842771 | D97: 742.2020141 | E97: 313103047 | F97: 0.458236687 | G97: 0.1421275304 | H97: 15565.92048 | I97: 0.01782776533 | J97: 375723839.7 | K97: 40889.60098
A98: 2015-09-01 | B98: 40417.44362 | C98: 636.9642811 | D98: 748.6355049 | E98: 314370624.6 | F98: 0.4600918288 | G98: 0.1404863659 | H98: 15759.63802 | I98: 0.0181857374 | J98: 377244933.6 | K98: 40417.44362
A99: 2015-10-01 | B99: 39962.41659 | C99: 637.5080246 | D99: 754.5704033 | E99: 315583147.9 | F99: 0.4618663969 | G99: 0.1389047445 | H99: 15952.68953 | I99: 0.0185320786 | J99: 378699962.3 | K99: 39962.41659
A100: 2015-11-01 | B100: 39540.98826 | C100: 638.5874428 | D100: 760.9967892 | E100: 316821982.8 | F100: 0.4636794728 | G100: 0.1374399083 | H100: 16150.0122 | I100: 0.01888236493 | J100: 380186564.9 | K100: 39540.98826
A101: 2015-12-01 | B101: 39093.80468 | C101: 639.1019327 | D101: 766.2226826 | E101: 318008212.5 | F101: 0.4654155593 | G101: 0.1358855498 | H101: 16347.90827 | I101: 0.01922283384 | J101: 381610041.2 | K101: 39093.80468
A102: 2016-01-01 | B102: 38637.8024 | C102: 639.4247862 | D102: 771.1169991 | E102: 319220120.4 | F102: 0.4671892267 | G102: 0.1343005386 | H102: 16549.20173 | I102: 0.01956706783 | J102: 383064331.4 | K102: 38637.8024
A103: 2016-02-01 | B103: 38175.71025 | C103: 639.6646813 | D103: 775.6718687 | E103: 320417892.3 | F103: 0.4689422055 | G103: 0.1326943596 | H103: 16755.80302 | I103: 0.01991384712 | J103: 384501658.4 | K103: 38175.71025
A104: 2016-03-01 | B104: 37759.6155 | C104: 639.8982597 | D104: 779.7814357 | E104: 321524987.9 | F104: 0.4705624766 | G104: 0.1312480623 | H104: 16946.63071 | I104: 0.02023335853 | J104: 385830173.7 | K104: 37759.6155
A105: 2016-04-01 | B105: 37331.69476 | C105: 640.2083446 | D105: 784.0701127 | E105: 322695536 | F105: 0.4722756126 | G105: 0.1297606593 | H105: 17149.19049 | I105: 0.02057075636 | J105: 387234832.1 | K105: 37331.69476
A106: 2016-05-01 | B106: 36932.81974 | C106: 640.4719435 | D106: 787.9770271 | E106: 323815486.8 | F106: 0.4739146977 | G106: 0.1283742158 | H106: 17341.53926 | I106: 0.02088972383 | J106: 388578773.8 | K106: 36932.81974
A107: 2016-06-01 | B107: 36521.16263 | C107: 640.7138086 | D107: 791.718248 | E107: 324960404.2 | F107: 0.4755903223 | G107: 0.1269433432 | H107: 17543.63121 | I107: 0.02121836292 | J107: 389952675.3 | K107: 36521.16263
A108: 2016-07-01 | B108: 36136.57712 | C108: 641.0163735 | D108: 795.1955576 | E108: 326056039.1 | F108: 0.4771938203 | G108: 0.1256065684 | H108: 17738.71309 | I108: 0.02153147548 | J108: 391267437.8 | K108: 36136.57712
A109: 2016-08-01 | B109: 35756.8991 | C109: 641.3184185 | D109: 798.5602677 | E109: 327176273 | F109: 0.4788333197 | G109: 0.1242868515 | H109: 17935.51551 | I109: 0.02184517119 | J109: 392611719.2 | K109: 35756.8991
A110: 2016-09-01 | B110: 35388.58992 | C110: 641.7024855 | D110: 801.8295463 | E110: 328284736.9 | F110: 0.4804555933 | G110: 0.1230066513 | H110: 18133.03347 | I110: 0.02215585114 | J110: 393941876.5 | K110: 35388.58992
A111: 2016-10-01 | B111: 35043.59028 | C111: 642.1029626 | D111: 805.2566739 | E111: 329346394.6 | F111: 0.4820093645 | G111: 0.1218074724 | H111: 18322.97883 | I111: 0.02246255438 | J111: 395215866.3 | K111: 35043.59028
A112: 2016-11-01 | B112: 34693.16705 | C112: 642.5648955 | D112: 808.4301725 | E112: 330432745.9 | F112: 0.4835992757 | G112: 0.1205894417 | H112: 18521.36746 | I112: 0.02277165637 | J112: 396519488.5 | K112: 34693.16705
A113: 2016-12-01 | B113: 34371.91436 | C113: 643.0088145 | D113: 811.1889741 | E113: 331473540.9 | F113: 0.4851225137 | G113: 0.1194728045 | H113: 18707.39022 | I113: 0.02305620872 | J113: 397768443.1 | K113: 34371.91436
A114: 2017-01-01 | B114: 34046.04212 | C114: 643.5608625 | D114: 814.0183229 | E114: 332539070.2 | F114: 0.4866819512 | G114: 0.1183401102 | H114: 18902.66305 | I114: 0.02335103016 | J114: 399047079 | K114: 34046.04212
A115: 2017-02-01 | B115: 33722.85955 | C115: 643.9445082 | D115: 816.3524014 | E115: 333594497.5 | F115: 0.488226604 | G115: 0.1172167649 | H115: 19095.1929 | I115: 0.02363552482 | J115: 400313592.4 | K115: 33722.85955
A116: 2017-03-01 | B116: 33427.39285 | C116: 644.3091956 | D116: 818.2123637 | E116: 334538737.6 | F116: 0.4896085307 | G116: 0.1161897568 | H116: 19274.88627 | I116: 0.02389247784 | J116: 401446681 | K116: 33427.39285
A117: 2017-04-01 | B117: 33118.71939 | C117: 644.7232118 | D117: 820.0637989 | E117: 335574986.8 | F117: 0.4911251157 | G117: 0.1151168435 | H117: 19467.03326 | I117: 0.0241630289 | J117: 402690180.6 | K117: 33118.71939
A118: 2017-05-01 | B118: 32813.50331 | C118: 644.9291121 | D118: 821.3573886 | E118: 336568548.4 | F118: 0.492579226 | G118: 0.1140559476 | H118: 19654.38149 | I118: 0.0244198243 | J118: 403882455.1 | K118: 32813.50331
A119: 2017-06-01 | B119: 32498.35775 | C119: 645.0145862 | D119: 822.2563718 | E119: 337585767 | F119: 0.4940679591 | G119: 0.1129605381 | H119: 19847.60557 | I119: 0.02467710736 | J119: 405103118 | K119: 32498.35775
A120: 2017-07-01 | B120: 32189.06726 | C120: 645.124509 | D120: 822.9109234 | E120: 338560717.7 | F120: 0.4954948318 | G120: 0.1118854801 | H120: 20041.72733 | I120: 0.02492764653 | J120: 406273059.5 | K120: 32189.06726
A121: 2017-08-01 | B121: 31889.7618 | C121: 645.2312501 | D121: 823.3923095 | E121: 339558578.8 | F121: 0.4969552346 | G121: 0.1108451288 | H121: 20233.17873 | I121: 0.02517006788 | J121: 407470493.3 | K121: 31889.7618
A122: 2017-09-01 | B122: 31590.37012 | C122: 645.3839698 | D122: 823.6809325 | E122: 340547161.4 | F122: 0.498402058 | G122: 0.1098044779 | H122: 20429.76917 | I122: 0.0254112308 | J122: 408656793.1 | K122: 31590.37012
A123: 2017-10-01 | B123: 31299.66725 | C123: 645.5606449 | D123: 823.7509959 | E123: 341494872.5 | F123: 0.4997890647 | G123: 0.1087940283 | H123: 20625.16 | I123: 0.02564331696 | J123: 409794046.9 | K123: 31299.66725
A124: 2017-11-01 | B124: 31016.21385 | C124: 645.7863709 | D124: 823.658921 | E124: 342465162.2 | F124: 0.5012091158 | G124: 0.1078087771 | H124: 20820.9285 | I124: 0.02586878807 | J124: 410958395.1 | K124: 31016.21385
A125: 2017-12-01 | B125: 30741.05254 | C125: 646.0111977 | D125: 823.3695561 | E125: 343395648.6 | F125: 0.5025709135 | G125: 0.1068523481 | H125: 21014.60895 | I125: 0.02608536768 | J125: 412074979.4 | K125: 30741.05254
A126: 2018-01-01 | B126: 30458.28969 | C126: 646.3324866 | D126: 822.9539612 | E126: 344348621.2 | F126: 0.5039656205 | G126: 0.1058694971 | H126: 21220.24884 | I126: 0.02630822388 | J126: 413218547.1 | K126: 30458.28969
A127: 2018-02-01 | B127: 30186.20109 | C127: 646.6217425 | D127: 822.2702246 | E127: 345292828.2 | F127: 0.5053474987 | G127: 0.1049237486 | H127: 21421.10366 | I127: 0.02651759954 | J127: 414351596 | K127: 30186.20109
A128: 2018-03-01 | B128: 29938.43399 | C128: 646.9375874 | D128: 821.5637124 | E128: 346138041.9 | F128: 0.5065844969 | G128: 0.1040625387 | H128: 21608.9321 | I128: 0.0267088353 | J128: 415365852.9 | K128: 29938.43399
A129: 2018-04-01 | B129: 29675.144 | C129: 647.2895723 | D129: 820.5832531 | E129: 347066133.3 | F129: 0.5079427895 | G129: 0.1031473731 | H129: 21812.51664 | I129: 0.02690813852 | J129: 416479563.1 | K129: 29675.144
A130: 2018-05-01 | B130: 29417.26228 | C130: 647.6765208 | D130: 819.473474 | E130: 347956387.6 | F130: 0.5092457062 | G130: 0.1022510061 | H130: 22016.88636 | I130: 0.02710191605 | J130: 417547868.9 | K130: 29417.26228
A131: 2018-06-01 | B131: 29161.88614 | C131: 648.0986092 | D131: 818.2738484 | E131: 348868322.8 | F131: 0.5105803535 | G131: 0.1013633481 | H131: 22224.16637 | I131: 0.02729384529 | J131: 418642191.5 | K131: 29161.88614
A132: 2018-07-01 | B132: 28905.54988 | C132: 648.5788347 | D132: 817.0003465 | E132: 349743179.3 | F132: 0.5118607351 | G132: 0.1004723529 | H132: 22437.8653 | I132: 0.02748755878 | J132: 419692020 | K132: 28905.54988
A133: 2018-08-01 | B133: 28657.81422 | C133: 649.0552407 | D133: 815.4707303 | E133: 350639251.4 | F133: 0.5131721662 | G133: 0.09961125234 | H133: 22648.45587 | I133: 0.02766813172 | J133: 420767306.9 | K133: 28657.81422
A134: 2018-09-01 | B134: 28411.99448 | C134: 649.5768014 | D134: 813.7993619 | E134: 351527643.6 | F134: 0.5144723577 | G134: 0.09875681132 | H134: 22862.7667 | I134: 0.02784524404 | J134: =F134*$K$3 -> 421833378.1 | K134: 28411.99448
A135: 2018-10-01 | B135: 28171.11563 | C135: 650.1598828 | D135: 812.0354752 | E135: 352380003.5 | F135: 0.5157198146 | G135: 0.09791954423 | H135: 23078.95404 | I135: 0.02801750136 | J135: 422856210.4 | K135: =G135*$B$6 -> 28171.11563
A136: 2018-11-01 | B136: 27942.68068 | C136: 650.757816 | D136: 810.0690893 | E136: 353253308.1 | F136: 0.5169979248 | G136: 0.09712553074 | H136: 23289.02597 | I136: 0.02817362151 | J136: 423904176.5 | K136: 27942.68068
A137: 2018-12-01 | B137: 27731.36529 | C137: 651.4471482 | D137: 808.0080554 | E137: 354091588.5 | F137: 0.518224776 | G137: 0.09639102286 | H137: 23491.34784 | I137: 0.02831204615 | J137: 424910113.5 | K137: 27731.36529
A138: 2019-01-01 | B138: 27506.05394 | C138: 652.1001725 | D138: 805.8658029 | E138: 354951260.8 | F138: 0.5194829349 | G138: 0.09560786662 | H138: 23707.5145 | I138: 0.02846383468 | J138: 425941720.7 | K138: 27506.05394
A139: 2019-02-01 | B139: 27283.07688 | C139: 652.7792762 | D139: 803.6078708 | E139: 355803948.5 | F139: 0.5207308716 | G139: 0.09483282412 | H139: 23926.16049 | I139: 0.02861170259 | J139: 426964946.5 | K139: 27283.07688
A140: 2019-03-01 | B140: 27091.88564 | C140: 653.3587727 | D140: 801.4451656 | E140: 356567874.6 | F140: 0.5218489028 | G140: 0.09416826546 | H140: 24116.4008 | I140: 0.02873250137 | J140: 427881658.3 | K140: 27091.88564
A141: 2019-04-01 | B141: 26874.69084 | C141: 654.0362359 | D141: 798.9376431 | E141: 357407723.1 | F141: 0.5230780489 | G141: 0.0934133214 | H141: 24336.51199 | I141: 0.0288699996 | J141: 428889476.9 | K141: 26874.69084
A142: 2019-05-01 | B142: 26668.61872 | C142: 654.7365568 | D142: 796.4784376 | E142: 358213963.8 | F142: 0.5242580089 | G142: 0.09269703851 | H142: 24550.82371 | I142: 0.02899965848 | J142: 429856966.3 | K142: 26668.61872
A143: 2019-06-01 | B143: 26458.78947 | C143: 655.4340209 | D143: 793.7942321 | E143: 359040691 | F143: 0.5254679515 | G143: 0.09196769626 | H143: 24771.88239 | I143: 0.02912730187 | J143: 430849039.4 | K143: 26458.78947
A144: 2019-07-01 | B144: 26274.27532 | C144: 656.099959 | D144: 791.1094724 | E144: 359834454.7 | F144: 0.526629651 | G144: 0.09132634641 | H144: 24971.19144 | I144: 0.02922956679 | J144: 431801556.2 | K144: 26274.27532
A145: 2019-08-01 | B145: 26071.94067 | C145: 656.8634764 | D145: 788.3048538 | E145: 360648957.2 | F145: 0.5278217024 | G145: 0.09062305454 | H145: 25194.26861 | I145: 0.029348386 | J145: 432778959.8 | K145: 26071.94067
A146: 2019-09-01 | B146: 25890.22397 | C146: 657.562978 | D146: 785.3602858 | E146: 361457187.4 | F146: 0.5290045741 | G146: 0.08999142828 | H146: 25398.11856 | I146: 0.02944116531 | J146: 433748836.4 | K146: 25890.22397
A147: 2019-10-01 | B147: 25700.93864 | C147: 658.3414762 | D147: 782.5229828 | E147: 362233894.1 | F147: 0.5301413101 | G147: 0.08933349432 | H147: 25615.4643 | I147: 0.02954760952 | J147: 434680885 | K147: 25700.93864
A148: 2019-11-01 | B148: 25515.2002 | C148: 659.096856 | D148: 779.5001326 | E148: 363030623.2 | F148: 0.5313073495 | G148: 0.08868788897 | H148: 25831.5377 | I148: 0.02964476197 | J148: 435636960.3 | K148: 25515.2002
A149: 2019-12-01 | B149: 25344.86302 | C149: 659.8592721 | D149: 776.6494777 | E149: 363796079.2 | F149: 0.5324276198 | G149: 0.0880958166 | H149: 26035.2274 | I149: 0.02973217871 | J149: 436555508 | K149: 25344.86302
A150: 2020-01-01 | B150: 25163.7491 | C150: 660.6957908 | D150: 773.6544719 | E150: 364581769.9 | F150: 0.5335775042 | G150: 0.08746628552 | H150: 26255.85672 | I150: 0.02982775318 | J150: 437498337.4 | K150: 25163.7491
A151: 2020-02-01 | B151: 24997.10789 | C151: 661.5110378 | D151: 770.556994 | E151: 365361846.2 | F151: 0.5347191716 | G151: 0.08688705994 | H151: 26463.50292 | I151: 0.02990402884 | J151: 438434429.3 | K151: 24997.10789
A152: 2020-03-01 | B152: 24842.4942 | C152: 662.2686985 | D152: 767.6050066 | E152: 366086762.3 | F152: 0.5357801104 | G152: 0.0863496406 | H152: 26658.70396 | I152: 0.02997274631 | J152: 439304329.1 | K152: 24842.4942
A153: 2020-04-01 | B153: 24673.46144 | C153: 663.1116832 | D153: 764.4232286 | E153: 366856879.6 | F153: 0.5369072026 | G153: 0.08576210224 | H153: 26875.50285 | I153: 0.03005058159 | J153: 440228470.3 | K153: 24673.46144
A154: 2020-05-01 | B154: 24521.35509 | C154: 663.9322415 | D154: 761.3248387 | E154: 367597083.5 | F154: 0.5379905155 | G154: 0.08523339814 | H154: 27075.67502 | I154: 0.03011250551 | J154: 441116715.3 | K154: 24521.35509
A155: 2020-06-01 | B155: 24362.0771 | C155: 664.7922159 | D155: 758.1111441 | E155: 368357245.5 | F155: 0.5391030378 | G155: 0.08467976625 | H155: 27287.99409 | I155: 0.0301793576 | J155: 442028910.2 | K155: 24362.0771
A156: 2020-07-01 | B156: 24209.13774 | C156: 665.6568793 | D156: 755.0296068 | E156: 369088107.8 | F156: 0.540172679 | G156: 0.0841481667 | H156: 27496.10029 | I156: 0.03024453395 | J156: 442905945.4 | K156: 24209.13774
A157: 2020-08-01 | B157: 24059.9955 | C157: 666.5276425 | D157: 751.7464805 | E157: 369838591 | F157: 0.5412710362 | G157: 0.08362976548 | H157: 27702.73347 | I157: 0.03029801298 | J157: 443806525.8 | K157: 24059.9955
A158: 2020-09-01 | B158: 23905.62682 | C158: 667.4496282 | D158: 748.4521485 | E158: 370584450.9 | F158: 0.5423626268 | G158: 0.08309319779 | H158: 27920.18938 | I158: 0.0303581468 | J158: 444701558 | K158: 23905.62682
A159: 2020-10-01 | B159: 23761.56878 | C159: 668.3657345 | D159: 745.2428784 | E159: 371301619.7 | F159: 0.5434122271 | G159: 0.08259246867 | H159: 28128.0138 | I159: 0.03040962198 | J159: 445562161 | K159: 23761.56878
A160: 2020-11-01 | B160: 23613.7315 | C160: 669.3245951 | D160: 741.915926 | E160: 372038228.3 | F160: 0.5444902782 | G160: 0.08207860336 | H160: 28344.71947 | I160: 0.03046176162 | J160: 446446091.8 | K160: 23613.7315
A161: 2020-12-01 | B161: 23475.64953 | C161: 670.2272994 | D161: 738.6282919 | E161: 372746640.3 | F161: 0.5455270626 | G161: 0.08159864639 | H161: 28549.89373 | I161: 0.03050383321 | J161: 447296186.6 | K161: 23475.64953
A162: 2021-01-01 | B162: 23327.9663 | C162: 671.2270899 | D162: 735.252884 | E162: 373474385.4 | F162: 0.5465921417 | G162: 0.08108531653 | H162: 28773.49364 | I162: 0.03055505078 | J162: 448169481.1 | K162: 23327.9663
A163: 2021-02-01 | B163: 23189.34581 | C163: 672.2034934 | D163: 731.8378719 | E163: 374197552.4 | F163: 0.5476505205 | G163: 0.08060348773 | H163: 28987.60055 | I163: 0.03059371483 | J163: 449037281.9 | K163: 23189.34581
A164: 2021-03-01 | B164: 23054.43207 | C164: 673.1573946 | D164: 728.7704127 | E164: 374846854.1 | F164: 0.5486007951 | G164: 0.08013454316 | H164: 29198.61103 | I164: 0.03064223219 | J164: 449816444.3 | K164: 23054.43207
A165: 2021-04-01 | B165: 22918.54186 | C165: 674.1828705 | D165: 725.3596147 | E165: 375561541.5 | F165: 0.5496467638 | G165: 0.07966220447 | H165: 29416.48185 | I165: 0.03067850776 | J165: 450674069.6 | K165: 22918.54186
A166: 2021-05-01 | B166: 22774.04355 | C166: 675.1785926 | D166: 722.0088245 | E166: 376249097.7 | F166: 0.5506530251 | G166: 0.07915994506 | H166: 29646.84734 | I166: 0.03072894173 | J166: 451499137.5 | K166: 22774.04355
A167: 2021-06-01 | B167: 22627.35474 | C167: 676.1917397 | D167: 718.5008027 | E167: 376955093.1 | F167: 0.5516862727 | G167: 0.07865007168 | H167: 29883.8175 | I167: 0.0307763749 | J167: 452346332.3 | K167: 22627.35474
A168: 2021-07-01 | B168: 22495.94824 | C168: 677.1432892 | D168: 715.0747093 | E168: 377633913.7 | F168: 0.5526797492 | G168: 0.07819331787 | H168: 30100.67777 | I168: 0.03080754824 | J168: 453160917.5 | K168: 22495.94824
A169: 2021-08-01 | B169: 22337.75615 | C169: 678.1415986 | D169: 711.497214 | E169: 378331288.1 | F169: 0.5537003798 | G169: 0.07764346043 | H169: 30358.53709 | I169: 0.03086855798 | J169: 453997767.2 | K169: 22337.75615
A170: 2021-09-01 | B170: 22200.79949 | C170: 679.0227645 | D170: 707.8092839 | E170: 379023758.5 | F170: 0.5547138332 | G170: 0.07716741491 | H170: 30585.50953 | I170: 0.03089708724 | J170: 454828732.1 | K170: 22200.79949
A171: 2021-10-01 | B171: 22051.68568 | C171: 679.9786182 | D171: 704.3462885 | E171: 379689782.5 | F171: 0.5556885814 | G171: 0.07664911252 | H171: 30835.67524 | I171: 0.03095206974 | J171: 455627961.3 | K171: 22051.68568
A172: 2021-11-01 | B172: 21924.13764 | C172: 680.8645589 | D172: 700.87495 | E172: 380373384.8 | F172: 0.556689056 | G172: 0.07620577028 | H172: 31055.4773 | I172: 0.0309778811 | J172: 456448284.4 | K172: 21924.13764
A173: 2021-12-01 | B173: 21771.72044 | C173: 681.8590468 | D173: 697.5229773 | E173: 381031108.9 | F173: 0.557651657 | G173: 0.07567598568 | H173: 31318.56523 | I173: 0.03104345635 | J173: 457237553.7 | K173: 21771.72044
A174: 2022-01-01 | B174: 21650.79466 | C174: 682.761487 | D174: 693.9249938 | E174: 381706032.2 | F174: 0.5586394297 | G174: 0.07525566162 | H174: 31535.16985 | I174: 0.03105543523 | J174: 458047462.1 | K174: 21650.79466
A175: 2022-02-01 | B175: 21498.66594 | C175: 683.7280908 | D175: 690.3176923 | E175: 382377206.9 | F175: 0.559621716 | G175: 0.07472687976 | H175: 31803.27992 | I175: 0.03111082976 | J175: 458852872.1 | K175: 21498.66594
A176: 2022-03-01 | B176: 21381.46792 | C176: 684.4863628 | D176: 686.9424364 | E176: 382979169.5 | F176: 0.5605027083 | G176: 0.07431951298 | H176: 32013.06689 | I176: 0.0311278622 | J176: 459575227.6 | K176: 21381.46792
A177: 2022-04-01 | B177: 21231.19893 | C177: 685.4159956 | D177: 683.2573381 | E177: 383641995 | F177: 0.5614727754 | G177: 0.07379719533 | H177: 32283.43336 | I177: 0.03117838425 | J177: 460370618.6 | K177: 21231.19893
A178: 2022-05-01 | B178: 21107.51665 | C178: 686.2383247 | D178: 679.6530571 | E178: 384278931 | F178: 0.5624049523 | G178: 0.07336729002 | H178: 32511.56145 | I178: 0.03119510548 | J178: 461134942.2 | K178: 21107.51665
A179: 2022-06-01 | B179: 20959.72508 | C179: 687.1776732 | D179: 675.9823278 | E179: 384933264 | F179: 0.5633625904 | G179: 0.07285358357 | H179: 32785.62437 | I179: 0.03124382832 | J179: 461920142.2 | K179: 20959.72508
A180: 2022-07-01 | B180: 20842.04393 | C180: 688.0256419 | D180: 672.4174808 | E180: 385562055.8 | F180: 0.5642828479 | G180: 0.0724445375 | H180: 33011.42845 | I180: 0.03125420934 | J180: 462674692.6 | K180: 20842.04393
A181: 2022-08-01 | B181: 20701.18066 | C181: 688.9770175 | D181: 668.8096438 | E181: 386208159.1 | F181: 0.5652284416 | G181: 0.07195491306 | H181: 33282.01559 | I181: 0.03129667511 | J181: 463450017 | K181: 20701.18066
A182: 2022-09-01 | B182: 20581.05458 | C182: 689.8522821 | D182: 665.1632152 | E182: 386849895.7 | F182: 0.5661676444 | G182: 0.07153736865 | H182: 33518.80146 | I182: 0.03130737064 | J182: 464220101.3 | K182: 20581.05458
A183: 2022-10-01 | B183: 20454.65495 | C183: 690.7625221 | D183: 661.7100352 | E183: 387467327.4 | F183: 0.5670712761 | G183: 0.07109801816 | H183: 33770.43141 | I183: 0.03133636095 | J183: 464961019.7 | K183: 20454.65495
A184: 2022-11-01 | B184: 20344.77269 | C184: 691.6396476 | D184: 658.1408546 | E184: 388101421.7 | F184: 0.5679992941 | G184: 0.07071608012 | H184: 33995.93881 | I184: 0.03133569317 | J184: 465721933.2 | K184: 20344.77269
A185: 2022-12-01 | B185: 20216.51207 | C185: 692.5941551 | D185: 654.7763868 | E185: 388711764.8 | F185: 0.5688925516 | G185: 0.07027026102 | H185: 34258.83518 | I185: 0.03137211141 | J185: 466454345.4 | K185: 20216.51207
A186: 2023-01-01 | B186: 20109.45361 | C186: 693.4701501 | D186: 651.2452889 | E186: 389338476.7 | F186: 0.5698097652 | G186: 0.06989813816 | H186: 34484.7833 | I186: 0.0313691409 | J186: 467206400 | K186: 20109.45361
A187: 2023-02-01 | B187: 19985.14175 | C187: 694.474039 | D187: 647.8313771 | E187: 389961869.8 | F187: 0.5707221216 | G187: 0.0694660445 | H187: 34749.5178 | I187: 0.0313978685 | J187: 467954472 | K187: 19985.14175
A188: 2023-03-01 | B188: 19898.06455 | C188: 695.2102414 | D188: 644.6518475 | E188: 390521453.8 | F188: 0.5715410913 | G188: 0.06916337421 | H188: 34938.58609 | I188: 0.03138104207 | J188: 468625973.1 | K188: 19898.06455
A189: 2023-04-01 | B189: 19772.23719 | C189: 696.2563209 | D189: 641.3248187 | E189: 391138293.8 | F189: 0.572443857 | G189: 0.06872601284 | H189: 35213.83615 | I189: 0.03141660521 | J189: 469366181.5 | K189: 19772.23719
A190: 2023-05-01 | B190: 19669.59284 | C190: 697.1791842 | D190: 638.0942111 | E190: 391731460.9 | F190: 0.5733119768 | G190: 0.06836923292 | H190: 35444.5153 | I190: 0.03142131399 | J190: 470077982.4 | K190: 19669.59284
A191: 2023-06-01 | B191: 19579.21862 | C191: 698.0182347 | D191: 634.720089 | E191: 392341218.2 | F191: 0.5742043769 | G191: 0.06805510258 | H191: 35650.97506 | I191: 0.0314001194 | J191: 470809691.6 | K191: 19579.21862
A192: 2023-07-01 | B192: 19466.09231 | C192: 699.0275344 | D192: 631.5962566 | E192: 392928594.8 | F192: 0.575064022 | G192: 0.06766188857 | H192: 35910.0082 | I192: 0.03142631326 | J192: 471514543.8 | K192: 19466.09231
A193: 2023-08-01 | B193: 19351.79537 | C193: 700.0276731 | D193: 628.3769105 | E193: 393532043.7 | F193: 0.5759471894 | G193: 0.06726460561 | H193: 36173.78439 | I193: 0.03145002464 | J193: 472238682.8 | K193: 19351.79537
A194: 2023-09-01 | B194: 19261.58913 | C194: 700.9163353 | D194: 625.0981407 | E194: 394131949.3 | F194: 0.5768251712 | G194: 0.06695105914 | H194: 36389.33063 | I194: 0.03143299496 | J194: 472958569.9 | K194: 19261.58913
A195: 2023-10-01 | B195: 19175.3314 | C195: 701.7994041 | D195: 621.9813741 | E195: 394709797 | F195: 0.5776708704 | G195: 0.06665123723 | H195: 36599.07564 | I195: 0.03141746465 | J195: 473651987.5 | K195: 19175.3314
A196: 2023-11-01 | B196: 19069.6665 | C196: 702.8147308 | D196: 618.8405923 | E196: 395304232.3 | F196: 0.5785408461 | G196: 0.06628395825 | H196: 36855.1139 | I196: 0.0314315651 | J196: 474365310.1 | K196: 19069.6665
A197: 2023-12-01 | B197: 19021.66247 | C197: 703.4829236 | D197: 615.6108916 | E197: 395876322.3 | F197: 0.5793781188 | G197: 0.06611710179 | H197: 36983.25132 | I197: 0.03134910231 | J197: 475051818.5 | K197: 19021.66247
A198: 2024-01-01 | B198: 18880.77192 | C198: 704.7101771 | D198: 612.6442106 | E198: 396465993.8 | F198: 0.5802411226 | G198: 0.0656273825 | H198: 37324.22489 | I198: 0.0314282631 | J198: =F198*$K$3 -> 475759424.7 | K198: 18880.77192
A199: 2024-02-01 | B199: 18801.46884 | C199: 705.6144455 | D199: 609.5173033 | E199: 397051297.7 | F199: 0.5810977343 | G199: 0.06535173416 | H199: 37529.75108 | I199: 0.03140063565 | J199: 476461789.7 | K199: =G199*$B$6 -> 18801.46884
A200: 2024-03-01 | B200: 18706.35035 | C200: 706.5723584 | D200: 606.7237435 | E200: 397596540.3 | F200: 0.581895715 | G200: 0.06502111328 | H200: 37771.79114 | I200: 0.03141518231 | J200: 477116081.2 | K200: 18706.35035
... 46 more rows

Sheet N+ 20%
A1: Case | B1: ="N + 20% (3.2)" -> N + 20% (3.2)
A2: N | B2: 819934000 | C2: stb
A3: % change wrt base case | B3: =(B2-'base case'!B2)*100/'base case'!B2 -> 20.00005854
A4: Date | B4: Average Oil Rate | C4: Average Gas Rate | D4: Average Water Rate | E4: Cum Oil Production | F4: RF | G4: qomax_n | H4: GOR | I4: WC
B5: stb/d | C5: 1e06 scf/d | D5: stb/d | E5: stb | H5: scf/stb
A6: 2008-01-01 | B6: 287696.5559 | C6: 187.0030485 | D6: 0.004 | E6: 0 | F6: 0 | G6: 1 | H6: 650.0009983 | I6: 1.390353782e-08
A7: 2008-02-01 | B7: 285194.2492 | C7: 185.3764357 | D7: 159.4316543 | E7: 8918593.232 | F7: 0.01087720869 | G7: 0.9913022712 | H7: 650.000609 | I7: 0.0005587159549
A8: 2008-03-01 | B8: 282731.8156 | C8: 183.7756716 | D8: 166.8627024 | E8: 17189226.46 | F8: 0.02096415865 | G8: 0.9827431363 | H8: 649.9999698 | I8: 0.0005898320323
A9: 2008-04-01 | B9: 280269.749 | C9: 182.2629968 | D9: 178.5519799 | E9: 25953912.74 | F9: 0.03165366083 | G9: 0.9741852771 | H9: 650.31277 | I9: 0.0006366662919
A10: 2008-05-01 | B10: 277575.5814 | C10: 182.0519824 | D10: 191.0378316 | E10: 34362005.21 | F10: 0.04190825751 | G10: 0.9648206615 | H10: 655.8645449 | I10: 0.0006877638218
A11: 2008-06-01 | B11: 273433.7118 | C11: 187.1455248 | D11: 204.3841428 | E11: 42966848.23 | F11: 0.0524028132 | G11: 0.9504240013 | H11: 684.4274014 | I11: 0.0007469140658
A12: 2008-07-01 | B12: 268371.245 | C12: 196.5368181 | D12: 216.61324 | E12: 51169859.59 | F12: 0.06240729082 | G12: 0.9328274514 | H12: 732.3318788 | I12: 0.0008064893234
A13: 2008-08-01 | B13: 262204.8471 | C13: 209.9986459 | D13: 228.7289336 | E13: 59489368.18 | F13: 0.07255384968 | G13: 0.9113937647 | H13: 800.8953619 | I13: 0.0008715688633
A14: 2008-09-01 | B14: 255536.3386 | C14: 224.8192123 | D14: 240.0218781 | E14: 67617718.44 | F14: 0.08246726986 | G14: 0.8882147992 | H14: 879.79351 | I14: 0.0009384052445
A15: 2008-10-01 | B15: 249128.0932 | C15: 239.5614605 | D15: 250.6007196 | E15: 75283808.6 | F15: 0.09181691283 | G15: 0.8659404784 | H15: 961.5995428 | I15: 0.001004900281
A16: 2008-11-01 | B16: 242151.442 | C16: 254.7066965 | D16: 260.9480992 | E16: 83006779.49 | F16: 0.1012359281 | G16: 0.8416904445 | H16: 1051.84877 | I16: 0.001076463539
A17: 2008-12-01 | B17: 235231.1205 | C17: 269.0568493 | D17: 269.932668 | E17: 90271322.75 | F17: 0.1100958403 | G17: 0.8176362063 | H17: 1143.797848 | I17: 0.001146205779
A18: 2009-01-01 | B18: 228192.8459 | C18: 283.6435039 | D18: 278.6171938 | E18: 97563487.49 | F18: 0.11898944 | G18: 0.7931719767 | H18: 1242.999108 | I18: 0.001219483563
A19: 2009-02-01 | B19: 221036.7736 | C19: 297.6189684 | D19: 286.5680019 | E19: 104637465.7 | F19: 0.1276169371 | G19: 0.7682982958 | H19: 1346.468118 | I19: 0.0012947934
A20: 2009-03-01 | B20: 214914.426 | C20: 310.1483248 | D20: 293.3940554 | E20: 110826495.4 | F20: 0.1351651418 | G20: 0.7470177226 | H20: 1443.124739 | I20: 0.001363305736
A21: 2009-04-01 | B21: 208401.0507 | C21: 323.8131038 | D21: 300.8555476 | E21: 117488842.6 | F21: 0.1432906095 | G21: 0.7243779824 | H21: 1553.797847 | I21: 0.001441556299
A22: 2009-05-01 | B22: 202309.5118 | C22: 336.6288398 | D22: 307.6763478 | E22: 123740874.1 | F22: 0.1509156519 | G22: 0.7032044967 | H22: 1663.929871 | I22: 0.001518510599
A23: 2009-06-01 | B23: 196340.4014 | C23: 349.647309 | D23: 314.4963368 | E23: 130012469 | F23: 0.1585645539 | G23: 0.6824565583 | H23: 1780.822014 | I23: 0.001599229617
A24: 2009-07-01 | B24: 190818.6697 | C24: 361.9364739 | D24: 320.884589 | E24: 135902681 | F24: 0.1657483175 | G24: 0.6632636568 | H24: 1896.756091 | I24: 0.001678797412
A25: 2009-08-01 | B25: 185362.9543 | C25: 374.2891517 | D25: 327.2593824 | E25: 141818059.8 | F25: 0.1729627748 | G25: 0.6443002201 | H25: 2019.22306 | I25: 0.001762394345
A26: 2009-09-01 | B26: 180194.5925 | C26: 386.4416115 | D26: 333.5112147 | E26: 147564311.3 | F26: 0.1799709627 | G26: 0.6263355915 | H26: 2144.579402 | I26: 0.001847419919
A27: 2009-10-01 | B27: 175483.8597 | C27: 398.1100484 | D27: 339.6274868 | E27: 152970149.1 | F27: 0.1865639785 | G27: 0.6099616284 | H27: 2268.641966 | I27: 0.001931638897
A28: 2009-11-01 | B28: 170812.0509 | C28: 409.9176118 | D28: 345.8254152 | E28: 158410148.8 | F28: 0.1931986584 | G28: 0.5937229608 | H28: 2399.816696 | I28: 0.00202050541
A29: 2009-12-01 | B29: 166446.8661 | C29: 420.9686623 | D29: 351.6142759 | E29: 163534510.3 | F29: 0.1994483828 | G29: 0.5785500825 | H29: 2529.147422 | I29: 0.002108018461
A30: 2010-01-01 | B30: 162148.2974 | C30: 432.1357795 | D30: 357.4791958 | E30: 168694363.1 | F30: 0.2057413928 | G30: 0.563608754 | H30: 2665.065169 | I30: 0.002199793776
A31: 2010-02-01 | B31: 157914.6102 | C31: 442.6366494 | D31: 362.9363707 | E31: 173720960.4 | F31: 0.2118718828 | G31: 0.5488929464 | H31: 2803.012645 | I31: 0.002293037632
A32: 2010-03-01 | B32: 154198.6086 | C32: 451.6407394 | D32: 367.5477858 | E32: 178142569.5 | F32: 0.2172645231 | G32: 0.5359765541 | H32: 2928.9547 | I32: 0.002377931847
A33: 2010-04-01 | B33: 150216.506 | C33: 461.1881458 | D33: 372.4402675 | E33: 182922726.3 | F33: 0.2230944519 | G33: 0.5221352252 | H33: 3070.156257 | I33: 0.002473224474
A34: 2010-05-01 | B34: 146540.1739 | C34: 470.1174274 | D34: 377.0648843 | E34: 187429221.5 | F34: 0.2285906201 | G34: 0.5093567195 | H34: 3208.112935 | I34: 0.002566512191
A35: 2010-06-01 | B35: 142935.2623 | C35: 479.1273153 | D35: 381.818479 | E35: 191971966.9 | F35: 0.2341309994 | G35: 0.496826463 | H35: 3352.058181 | I35: 0.002664151942
A36: 2010-07-01 | B36: 139485.9351 | C36: 487.2432186 | D36: 386.0456834 | E36: 196260024.8 | F36: 0.2393607592 | G36: 0.4848370001 | H36: 3493.13512 | I36: 0.002759992968
A37: 2010-08-01 | B37: 135949.8909 | C37: 494.8437127 | D37: 389.8435793 | E37: 200584088.7 | F37: 0.2446344325 | G37: 0.472546119 | H37: 3639.897829 | I37: 0.002859354104
A38: 2010-09-01 | B38: 132594.4908 | C38: 502.2064211 | D38: 393.5361023 | E38: 204798535.4 | F38: 0.2497744152 | G38: 0.4608831358 | H38: 3787.536103 | I38: 0.002959184457
A39: 2010-10-01 | B39: 129442.6489 | C39: 508.8381902 | D39: 396.8986045 | E39: 208776370.1 | F39: 0.2546258236 | G39: 0.4499276974 | H39: 3930.993335 | I39: 0.003056839092
A40: 2010-11-01 | B40: 126289.1895 | C40: 515.250262 | D40: 400.0720733 | E40: 212789092.2 | F40: 0.2595197811 | G40: 0.4389666367 | H40: 4079.923737 | I40: 0.003157900427
A41: 2010-12-01 | B41: 123401.5519 | C41: 521.3131341 | D41: 403.1108196 | E41: 216577767.9 | F41: 0.2641404892 | G41: 0.4289295419 | H41: 4224.526564 | I41: 0.003256022922
A42: 2011-01-01 | B42: 120568.0838 | C42: 527.4251603 | D42: 406.3066669 | E42: 220403216 | F42: 0.2688060454 | G42: 0.4190807339 | H42: 4374.500645 | I42: 0.003358617186
A43: 2011-02-01 | B43: 117882.4869 | C43: 533.3947846 | D43: 409.4772837 | E43: 224140826.6 | F43: 0.273364474 | G43: 0.4097459094 | H43: 4524.800914 | I43: 0.003461581574
A44: 2011-03-01 | B44: 115567.831 | C44: 538.6946547 | D44: 412.3069589 | E44: 227441536.2 | F44: 0.2773900536 | G44: 0.4017004328 | H44: 4661.285497 | I44: 0.003554979034
A45: 2011-04-01 | B45: 113107.3458 | C45: 544.3459263 | D45: 415.3715417 | E45: 231024139 | F45: 0.2817594331 | G45: 0.3931480704 | H45: 4812.64875 | I45: 0.003658928816
A46: 2011-05-01 | B46: 110814.3675 | C46: 549.5488854 | D46: 418.1836952 | E46: 234417359.4 | F46: 0.2858978398 | G46: 0.3851779427 | H46: 4959.184424 | I46: 0.003759544222
A47: 2011-06-01 | B47: 108559.7517 | C47: 554.8656184 | D47: 421.0771367 | E47: 237852604.8 | F47: 0.2900875007 | G47: 0.3773411585 | H47: 5111.154087 | I47: 0.003863772567
A48: 2011-07-01 | B48: 106463.1067 | C48: 559.8593134 | D48: 423.8310674 | E48: 241109397.3 | F48: 0.2940595186 | G48: 0.3700534627 | H48: 5258.716665 | I48: 0.003965227897
A49: 2011-08-01 | B49: 104356.9346 | C49: 564.8067556 | D49: 426.5147656 | E49: 244409753.6 | F49: 0.2980846673 | G49: 0.3627326517 | H49: 5412.258973 | I49: 0.00407044021
A50: 2011-09-01 | B50: 102299.4207 | C50: 569.4828912 | D50: 429.0014901 | E50: 247644818.6 | F50: 0.3020301861 | G50: 0.3555809711 | H50: 5566.824203 | I50: 0.004176073971
A51: 2011-10-01 | B51: 100536.8242 | C51: 574.7734841 | D51: 431.9992912 | E51: 250713801.2 | F51: 0.3057731491 | G51: 0.3494543891 | H51: 5717.044365 | I51: 0.004278541399
A52: 2011-11-01 | B52: 98552.1549 | C52: 578.8960723 | D52: 434.1414461 | E52: 253830442.8 | F52: 0.3095742374 | G52: 0.3425559079 | H52: 5874.007249 | I52: 0.004385874228
A53: 2011-12-01 | B53: 96780.75882 | C53: 583.2130916 | D53: 436.3587821 | E53: 256787007.4 | F53: 0.3131800943 | G53: 0.3363987397 | H53: 6026.126461 | I53: 0.004488497425
A54: 2012-01-01 | B54: 94878.5277 | C54: 586.5995998 | D54: 438.0519412 | E54: 259787210.9 | F54: 0.3168391736 | G54: 0.3297868041 | H54: 6182.638095 | I54: 0.004595758082
A55: 2012-02-01 | B55: 93016.70077 | C55: 589.6334972 | D55: 439.4491181 | E55: 262728445.3 | F55: 0.3204263334 | G55: 0.3233153087 | H55: 6339.006784 | I55: 0.004702195828
A56: 2012-03-01 | B56: 91360.81171 | C56: 592.4871324 | D56: 440.8151479 | E56: 265425929.6 | F56: 0.3237162133 | G56: 0.3175596296 | H56: 6485.134286 | I56: 0.004801822833
A57: 2012-04-01 | B57: 89677.88733 | C57: 595.5206881 | D57: 442.3449187 | E57: 268258114.8 | F57: 0.3271703756 | G57: 0.3117099788 | H57: 6640.663667 | I57: 0.00490838636
A58: 2012-05-01 | B58: 88118.81284 | C58: 598.4423559 | D58: 443.8395505 | E58: 270948451.4 | F58: 0.330451538 | G58: 0.3062908159 | H58: 6791.312055 | I58: 0.005011588277
A59: 2012-06-01 | B59: 86534.98409 | C59: 601.2465728 | D59: 445.2257861 | E59: 273680134.6 | F59: 0.3337831272 | G59: 0.3007856102 | H59: 6948.017372 | I59: 0.005118702135
A60: 2012-07-01 | B60: 85022.2715 | C60: 603.7403221 | D60: 446.3555199 | E60: 276276184.1 | F60: 0.3369492961 | G60: 0.2955275959 | H60: 7100.96674 | I60: 0.005222448697
A61: 2012-08-01 | B61: 83478.566 | C61: 606.0478945 | D61: 447.3368345 | E61: 278911874.5 | F61: 0.3401638114 | G61: 0.2901618539 | H61: 7259.9222 | I61: 0.005330140271
A62: 2012-09-01 | B62: 81935.67499 | C62: 608.0090286 | D62: 448.0607719 | E62: 281499710.1 | F62: 0.3433199624 | G62: 0.2847989429 | H62: 7420.565324 | I62: 0.005438704227
A63: 2012-10-01 | B63: 80478.58974 | C63: 609.7761352 | D63: 448.6445498 | E63: 283957780.3 | F63: 0.3463178504 | G63: 0.2797342829 | H63: 7576.874012 | I63: 0.005543801832
A64: 2012-11-01 | B64: 79036.75006 | C64: 611.662023 | D64: 449.3079716 | E64: 286452616.6 | F64: 0.3493605785 | G64: 0.2747226147 | H64: 7738.957162 | I64: 0.00565266391
A65: 2012-12-01 | B65: 77673.40217 | C65: 613.3817818 | D65: 449.8999568 | E65: 288823719.1 | F65: 0.3522523997 | G65: 0.2699837749 | H65: 7896.93466 | I65: 0.005758844602
A66: 2013-01-01 | B66: 76306.83874 | C66: 615.0373174 | D66: 450.4585635 | E66: 291231594.6 | F66: 0.3551890696 | G66: 0.2652337582 | H66: 8060.055004 | I66: 0.00586860897
A67: 2013-02-01 | B67: 74997.39958 | C67: 616.703997 | D67: 451.3721975 | E67: 293597106.6 | F67: 0.3580740725 | G67: 0.2606822989 | H67: 8223.005071 | I67: 0.005982498945
A68: 2013-03-01 | B68: 73853.8266 | C68: 618.2004696 | D68: 453.1605816 | E68: 295697033.8 | F68: 0.3606351655 | G68: 0.2567073714 | H68: 8370.594972 | I68: 0.006098492198
A69: 2013-04-01 | B69: 72886.80332 | C69: 621.9370514 | D69: 456.8037278 | E69: 297986502.4 | F69: 0.3634274251 | G69: 0.2533461101 | H69: 8532.917113 | I69: 0.006228269187
A70: 2013-05-01 | B70: 71499.59974 | C70: 621.491253 | D70: 457.6036253 | E70: 300173106.5 | F70: 0.3660942301 | G70: 0.2485243507 | H70: 8692.234016 | I70: 0.006359385911
A71: 2013-06-01 | B71: 70359.56766 | C71: 623.2737012 | D71: 460.5529335 | E71: 302389594.1 | F71: 0.3687974814 | G71: 0.2445617308 | H71: 8858.407206 | I71: 0.006503136815
A72: 2013-07-01 | B72: 69409.78972 | C72: 625.907975 | D72: 465.7084915 | E72: 304500381.1 | F72: 0.3713718191 | G72: 0.2412604124 | H72: 9017.574862 | I72: 0.0066648325
A73: 2013-08-01 | B73: 68505.53201 | C73: 629.1631708 | D73: 472.9170686 | E73: 306652084.6 | F73: 0.3739960589 | G73: 0.2381173171 | H73: 9184.122105 | I73: 0.006856011912
A74: 2013-09-01 | B74: 67191.97733 | C74: 628.388832 | D74: 476.8361786 | E74: 308775756.1 | F74: 0.3765861107 | G74: 0.2335515527 | H74: 9352.140791 | I74: 0.007046616512
A75: 2013-10-01 | B75: 66610.64343 | C75: 633.4268736 | D75: 484.786236 | E75: 310791515.4 | F75: 0.3790445516 | G75: 0.2315309032 | H75: 9509.39431 | I75: 0.007225324265
A76: 2013-11-01 | B76: 65480.83159 | C76: 633.5168341 | D76: 489.6200036 | E76: 312856445.4 | F76: 0.3815629616 | G76: 0.2276038077 | H76: 9674.844053 | I76: 0.00742180767
A77: 2013-12-01 | B77: 64351.97858 | C77: 632.7476172 | D77: 493.270278 | E77: 314820870.3 | F77: 0.3839587946 | G77: 0.2236800451 | H77: 9832.605479 | I77: 0.007606883875
A78: 2014-01-01 | B78: 63419.57891 | C78: 633.7556098 | D78: 500.4799739 | E78: 316815781.6 | F78: 0.3863918091 | G78: 0.2204391315 | H78: 9993.059251 | I78: 0.007829779612
A79: 2014-02-01 | B79: 62677.53265 | C79: 636.4017418 | D79: 508.8981837 | E79: 318781788.6 | F79: 0.3887895716 | G79: 0.2178598644 | H79: 10153.58638 | I79: 0.008053915642
A80: 2014-03-01 | B80: 61779.17511 | C80: 636.415952 | D80: 514.3066756 | E80: 320536759.5 | F80: 0.3909299523 | G80: 0.2147372773 | H80: 10301.46406 | I80: 0.008256187661
A81: 2014-04-01 | B81: 60917.84143 | C81: 637.5667129 | D81: 520.7457269 | E81: 322451913.9 | F81: 0.3932656945 | G81: 0.211743381 | H81: 10466.0096 | I81: 0.008475874056
A82: 2014-05-01 | B82: 60260.42379 | C82: 640.2461833 | D82: 528.2509493 | E82: 324279449.2 | F82: 0.3954945754 | G82: 0.2094582732 | H82: 10624.65451 | I82: 0.008689956666
A83: 2014-06-01 | B83: 59252.29298 | C83: 639.3938867 | D83: 532.8496045 | E83: 326147522.3 | F83: 0.3977728967 | G83: 0.2059541269 | H83: 10791.04039 | I83: 0.008912742889
A84: 2014-07-01 | B84: 58903.47084 | C84: 645.0879991 | D84: 542.5019164 | E84: 327925091.1 | F84: 0.399940838 | G84: 0.2047416614 | H84: 10951.6127 | I84: 0.009125965836
A85: 2014-08-01 | B85: 57704.26138 | C85: 641.809305 | D85: 544.9366821 | E85: 329751098.7 | F85: 0.4021678558 | G85: 0.2005733479 | H85: 11122.39009 | I85: 0.009355264968
A86: 2014-09-01 | B86: 57262.53164 | C86: 646.6896318 | D86: 553.743525 | E86: 331539930.8 | F86: 0.404349534 | G86: 0.1990379463 | H86: 11293.41671 | I86: 0.009577640957
A87: 2014-10-01 | B87: 56617.02116 | C87: 648.7883241 | D87: 560.5557987 | E87: 333257806.7 | F87: 0.4064446733 | G87: 0.1967942264 | H87: 11459.24513 | I87: 0.009803769739
A88: 2014-11-01 | B88: 55851.0054 | C88: 649.7602454 | D88: 566.1358473 | E88: 335012934.4 | F88: 0.4085852452 | G88: 0.1941316441 | H88: 11633.81466 | I88: 0.01003481982
A89: 2014-12-01 | B89: 55126.72504 | C89: 650.7897178 | D89: 571.5312004 | E89: 336688464.6 | F89: 0.4106287391 | G89: 0.1916141293 | H89: 11805.33974 | I89: 0.01026120455
A90: 2015-01-01 | B90: 54391.26191 | C90: 651.6444265 | D90: 576.9179513 | E90: 338397393 | F90: 0.412712966 | G90: 0.1890577444 | H90: 11980.68226 | I90: 0.01049548944
A91: 2015-02-01 | B91: 53677.64217 | C91: 652.5840231 | D91: 582.3246639 | E91: 340083522.2 | F91: 0.4147693865 | G91: 0.1865772846 | H91: 12157.46439 | I91: 0.01073212348
A92: 2015-03-01 | B92: 53026.3756 | C92: 653.1549503 | D92: 586.8846707 | E92: 341586496.1 | F92: 0.4166024291 | G92: 0.1843135572 | H92: 12317.54844 | I92: 0.01094663275
A93: 2015-04-01 | B93: 52335.17717 | C93: 653.8151213 | D93: 591.9261718 | E93: 343230313.8 | F93: 0.4186072462 | G93: 0.1819110313 | H93: 12492.84242 | I93: 0.01118380063
A94: 2015-05-01 | B94: 51661.00823 | C94: 654.1882104 | D94: 596.6127714 | E94: 344800369.1 | F94: 0.4205221019 | G94: 0.1795676979 | H94: 12663.09414 | I94: 0.01141676104
A95: 2015-06-01 | B95: 50977.87701 | C95: 654.4975074 | D95: 601.4015719 | E95: 346401860.4 | F95: 0.4224752972 | G95: 0.1771932127 | H95: 12838.85375 | I95: 0.01165975152
A96: 2015-07-01 | B96: 50347.68155 | C96: 654.7909519 | D96: 606.0305567 | E96: 347931196.7 | F96: 0.4243404916 | G96: 0.1750027261 | H96: 13005.38439 | I96: 0.01189374693
A97: 2015-08-01 | B97: 49701.77798 | C97: 655.197793 | D97: 610.8701412 | E97: 349491974.8 | F97: 0.4262440328 | G97: 0.1727576398 | H97: 13182.58259 | I97: 0.01214148259
A98: 2015-09-01 | B98: 49085.69547 | C98: 655.5694301 | D98: 615.6471055 | E98: 351032729.9 | F98: 0.4281231537 | G98: 0.1706162082 | H98: 13355.6105 | I98: 0.01238693109
A99: 2015-10-01 | B99: 48493.73754 | C99: 655.9997156 | D99: 620.3213992 | E99: 352505300.8 | F99: 0.4299191164 | G99: 0.1685586308 | H99: 13527.51404 | I99: 0.0126302206
A100: 2015-11-01 | B100: 47911.62307 | C100: 656.4540855 | D100: 625.5772487 | E100: 354008606.6 | F100: 0.4317525638 | G100: 0.1665352681 | H100: 13701.35352 | I100: 0.01288861419
A101: 2015-12-01 | B101: 47354.20334 | C101: 656.9336261 | D101: 631.1562488 | E101: 355445955.3 | F101: 0.4335055691 | G101: 0.1645977415 | H101: 13872.76271 | I101: 0.01315310033
A102: 2016-01-01 | B102: 46789.68215 | C102: 657.4815273 | D102: 636.6961266 | E102: 356913935.6 | F102: 0.4352959331 | G102: 0.1626355311 | H102: 14051.84855 | I102: 0.0134249367
A103: 2016-02-01 | B103: 46246.84304 | C103: 658.0473575 | D103: 642.1110172 | E103: 358364415.8 | F103: 0.4370649537 | G103: 0.160748685 | H103: 14229.02223 | I103: 0.01369429176
A104: 2016-03-01 | B104: 45747.29904 | C104: 658.5981276 | D104: 647.1092125 | E104: 359705574.2 | F104: 0.4387006445 | G104: 0.1590123278 | H104: 14396.43742 | I104: 0.01394800013
A105: 2016-04-01 | B105: 45227.28413 | C105: 659.1724926 | D105: 652.407222 | E105: 361123740.5 | F105: 0.4404302547 | G105: 0.157204816 | H105: 14574.6645 | I105: 0.01421995665
A106: 2016-05-01 | B106: 44730.89269 | C106: 659.6415488 | D106: 657.4503093 | E106: 362480559 | F106: 0.4420850447 | G106: 0.1554794167 | H106: 14746.88988 | I106: 0.01448500355
A107: 2016-06-01 | B107: 44231.55301 | C107: 660.1607461 | D107: 662.7704512 | E107: 363867216.7 | F107: 0.4437762267 | G107: 0.1537437696 | H107: 14925.10891 | I107: 0.01476290097
A108: 2016-07-01 | B108: 43770.0838 | C108: 660.6725962 | D108: 668.158438 | E108: 365194163.3 | F108: 0.4453945845 | G108: 0.152139756 | H108: 15094.15881 | I108: 0.01503566308
A109: 2016-08-01 | B109: 43308.94211 | C109: 661.2065113 | D109: 674.4061858 | E109: 366551035.9 | F109: 0.4470494404 | G109: 0.1505368807 | H109: 15267.20532 | I109: 0.01533321614
A110: 2016-09-01 | B110: 42852.82632 | C110: 661.8254616 | D110: 680.4114315 | E110: 367893613.1 | F110: 0.4486868615 | G110: 0.1489514749 | H110: 15444.14963 | I110: 0.01562969966
A111: 2016-10-01 | B111: 42427.14071 | C111: 662.3887737 | D111: 685.9330056 | E111: 369179197.9 | F111: 0.450254774 | G111: 0.1474718409 | H111: 15612.38308 | I111: 0.01591009284
A112: 2016-11-01 | B112: 41997.57143 | C112: 663.0436057 | D112: 691.4641784 | E112: 370494439.2 | F112: 0.451858856 | G112: 0.1459787077 | H112: 15787.66541 | I112: 0.01619769968
A113: 2016-12-01 | B113: 41588.42091 | C113: 663.6579706 | D113: 696.5299855 | E113: 371754366.4 | F113: 0.4533954762 | G113: 0.1445565477 | H113: 15957.75834 | I113: 0.01647229028
A114: 2017-01-01 | B114: 41164.51101 | C114: 664.2664076 | D114: 701.5076568 | E114: 373043607.4 | F114: 0.4549678479 | G114: 0.1430830859 | H114: 16136.87109 | I114: 0.01675601548
A115: 2017-02-01 | B115: 40752.44066 | C115: 664.9128906 | D115: 706.276494 | E115: 374319707.3 | F115: 0.4565241925 | G115: 0.1416507769 | H115: 16315.90353 | I115: 0.01703565722
A116: 2017-03-01 | B116: 40381.51509 | C116: 665.5075526 | D116: 710.3788215 | E116: 375460775.6 | F116: 0.4579158513 | G116: 0.1403614825 | H116: 16480.49983 | I116: 0.01728756584
A117: 2017-04-01 | B117: 39983.21307 | C117: 666.1638207 | D117: 714.6814369 | E117: 376712602.6 | F117: 0.4594425924 | G117: 0.1389770307 | H117: 16661.08773 | I117: 0.01756064891
A118: 2017-05-01 | B118: 39635.2557 | C118: 667.4608631 | D118: 719.3745437 | E118: 377912099 | F118: 0.4609055107 | G118: 0.137767571 | H118: 16840.07965 | I118: 0.01782631979
A119: 2017-06-01 | B119: 39242.1414 | C119: 668.0643935 | D119: 723.1260427 | E119: 379140791.9 | F119: 0.4624040373 | G119: 0.1364011511 | H119: 17024.15744 | I119: 0.01809386222
A120: 2017-07-01 | B120: 38857.5413 | C120: 668.5343213 | D120: 726.4027194 | E120: 380318056.1 | F120: 0.4638398409 | G120: 0.1350643256 | H120: 17204.75097 | I120: 0.01835094348
A121: 2017-08-01 | B121: 38472.57487 | C121: 669.0161714 | D121: 729.5469918 | E121: 381522639.9 | F121: 0.4653089638 | G121: 0.1337262268 | H121: 17389.43062 | I121: 0.01860988531
A122: 2017-09-01 | B122: 38086.89796 | C122: 669.4012647 | D122: 732.3441016 | E122: 382715289.7 | F122: 0.4667635319 | G122: 0.1323856584 | H122: 17575.631 | I122: 0.01886549203
A123: 2017-10-01 | B123: 37729.00579 | C123: 669.7891177 | D123: 734.9098245 | E123: 383857896.7 | F123: 0.4681570671 | G123: 0.1311416665 | H123: 17752.631 | I123: 0.01910647454
A124: 2017-11-01 | B124: 37366.69247 | C124: 670.2275047 | D124: 737.3700515 | E124: 385027495.9 | F124: 0.4695835224 | G124: 0.1298823073 | H124: 17936.49532 | I124: 0.01935148125
A125: 2017-12-01 | B125: 37030.40002 | C125: 670.6406705 | D125: 739.603122 | E125: 386148496.6 | F125: 0.4709507066 | G125: 0.1287133936 | H125: 18110.54351 | I125: 0.01958175961
A126: 2018-01-01 | B126: 36692.43522 | C126: 671.1455028 | D126: 741.8157374 | E126: 387296439 | F126: 0.472350749 | G126: 0.127538667 | H126: 18291.11365 | I126: 0.01981649742
A127: 2018-02-01 | B127: 36354.01523 | C127: 671.7040443 | D127: 743.9434214 | E127: 388433904.5 | F127: 0.4737380137 | G127: 0.1263623582 | H127: 18476.74982 | I127: 0.02005348672
A128: 2018-03-01 | B128: 36055.32548 | C128: 672.224722 | D128: 745.7651579 | E128: 389451817 | F128: 0.4749794702 | G128: 0.1253241471 | H128: 18644.2561 | I128: 0.02026475697
A129: 2018-04-01 | B129: 35744.82854 | C129: 672.8028953 | D129: 747.6728024 | E129: 390569532 | F129: 0.4763426471 | G129: 0.1242448956 | H129: 18822.38418 | I129: 0.02048839556
A130: 2018-05-01 | B130: 35442.18487 | C130: 673.4178414 | D130: 749.3993668 | E130: 391641876.9 | F130: 0.47765049 | G130: 0.1231929411 | H130: 19000.46072 | I130: 0.0207064538
A131: 2018-06-01 | B131: 35146.56729 | C131: 674.0343985 | D131: 751.0370623 | E131: 392740584.6 | F131: 0.4789904854 | G131: 0.1221654086 | H131: 19177.81594 | I131: 0.02092164856
A132: 2018-07-01 | B132: 34861.55416 | C132: 674.7428222 | D132: 752.5681822 | E132: 393794981.6 | F132: 0.4802764389 | G132: 0.1211747359 | H132: 19354.92661 | I132: 0.02113117305
A133: 2018-08-01 | B133: 34581.04167 | C133: 675.3950223 | D133: 753.9142059 | E133: 394875689.8 | F133: 0.4815944818 | G133: 0.1201997068 | H133: 19530.78883 | I133: 0.02133621473
A134: 2018-09-01 | B134: 34301.98578 | C134: 676.1360129 | D134: 755.2076 | E134: 395947702.1 | F134: 0.4829019191 | G134: 0.1192297408 | H134: 19711.27902 | I134: 0.02154215803
A135: 2018-10-01 | B135: 34042.41424 | C135: 676.8582725 | D135: 756.3094321 | E135: 396976761.7 | F135: 0.4841569708 | G135: 0.1183275001 | H135: 19882.79291 | I135: 0.02173382677
A136: 2018-11-01 | B136: 33770.39571 | C136: 677.4571639 | D136: 757.1009331 | E136: 398032076.5 | F136: 0.4854440437 | G136: 0.1173819951 | H136: 20060.68184 | I136: 0.02192747829
A137: 2018-12-01 | B137: 33510.15877 | C137: 678.0245238 | D137: 757.6967686 | E137: 399045188.4 | F137: 0.4866796454 | G137: 0.1164774416 | H137: 20233.40231 | I137: 0.02211100627
A138: 2019-01-01 | B138: 33251.85683 | C138: 678.6334049 | D138: 758.2171468 | E138: 400084003.3 | F138: 0.4879465949 | G138: 0.1155796138 | H138: 20408.88749 | I138: 0.02229389878
A139: 2019-02-01 | B139: 32986.79231 | C139: 679.1458849 | D139: 758.4517561 | E139: 401114810.9 | F139: 0.4892037785 | G139: 0.1146582802 | H139: 20588.4185 | I139: 0.02247581184
A140: 2019-03-01 | B140: 32749.08254 | C140: 679.482969 | D140: 758.4043895 | E140: 402038441.1 | F140: 0.4903302474 | G140: 0.1138320285 | H140: 20748.15281 | I140: 0.02263387854
A141: 2019-04-01 | B141: 32482.07293 | C141: 679.767579 | D141: 758.115459 | E141: 403053662.6 | F141: 0.4915684221 | G141: 0.1129039339 | H141: 20927.46915 | I141: 0.02280719502
A142: 2019-05-01 | B142: 32236.15055 | C142: 680.0675305 | D142: 757.745864 | E142: 404028124.8 | F142: 0.4927568863 | G142: 0.1120491361 | H142: 21096.42494 | I142: 0.02296624365
A143: 2019-06-01 | B143: 31973.14168 | C143: 680.3873245 | D143: 757.2325607 | E143: 405027445.5 | F143: 0.4939756681 | G143: 0.1111349477 | H143: 21279.96464 | I143: 0.02313546906
A144: 2019-07-01 | B144: 31733.9096 | C144: 680.7204297 | D144: 756.6715469 | E144: 405986639.7 | F144: 0.4951455114 | G144: 0.1103034046 | H144: 21450.88451 | I144: 0.02328895084
A145: 2019-08-01 | B145: 31478.38435 | C145: 681.1424721 | D145: 756.0304578 | E145: 406970390.9 | F145: 0.4963453045 | G145: 0.1094152283 | H145: 21638.41907 | I145: 0.02345413938
A146: 2019-09-01 | B146: 31242.13438 | C146: 681.6318621 | D146: 755.3300559 | E146: 407946220.8 | F146: 0.4975354368 | G146: 0.1085940507 | H146: 21817.7111 | I146: 0.0236059347
A147: 2019-10-01 | B147: 31005.21062 | C147: 682.1557736 | D147: 754.4863891 | E147: 408883484.9 | F147: 0.4986785337 | G147: 0.1077705311 | H147: 22001.32687 | I147: 0.02375609531
A148: 2019-11-01 | B148: 30773.81062 | C148: 682.6274503 | D148: 753.5491956 | E148: 409844646.4 | F148: 0.4998507763 | G148: 0.1069662114 | H148: 22182.09043 | I148: 0.02390143672
A149: 2019-12-01 | B149: 30562.394 | C149: 683.0964151 | D149: 752.6445089 | E149: 410767860.7 | F149: 0.500976738 | G149: 0.1062313517 | H149: 22350.88046 | I149: 0.02403460269
A150: 2020-01-01 | B150: 30337.77183 | C150: 683.6213099 | D150: 751.492938 | E150: 411715294.9 | F150: 0.5021322386 | G150: 0.105450591 | H150: 22533.66904 | I150: 0.0241721039
A151: 2020-02-01 | B151: 30115.40521 | C151: 684.1432195 | D151: 750.2564663 | E151: 412655765.9 | F151: 0.5032792467 | G151: 0.1046776703 | H151: 22717.38384 | I151: 0.02430715642
A152: 2020-03-01 | B152: 29911.59496 | C152: 684.663581 | D152: 749.0147126 | E152: 413529112.6 | F152: 0.5043443894 | G152: 0.1039692494 | H152: 22889.57115 | I152: 0.02442921783
A153: 2020-04-01 | B153: 29704.35804 | C153: 685.1665619 | D153: 747.5784716 | E153: 414456372.1 | F153: 0.5054752847 | G153: 0.1032489178 | H153: 23066.19658 | I153: 0.02454945587
A154: 2020-05-01 | B154: 29486.70674 | C154: 685.7288803 | D154: 746.0927653 | E154: 415347502.8 | F154: 0.506562117 | G154: 0.102492387 | H154: 23255.52618 | I154: 0.02467825599
A155: 2020-06-01 | B155: 29261.73735 | C155: 686.3005028 | D155: 744.4454354 | E155: 416261590.7 | F155: 0.507676948 | G155: 0.1017104194 | H155: 23453.85356 | I155: 0.02480973474
A156: 2020-07-01 | B156: 29044.9953 | C156: 686.8875853 | D156: 742.8019575 | E156: 417139442.8 | F156: 0.5087475856 | G156: 0.100957049 | H156: 23649.08578 | I156: 0.02493645136
A157: 2020-08-01 | B157: 28829.20976 | C157: 687.4852795 | D157: 741.0208 | E157: 418039837.7 | F157: 0.5098457165 | G157: 0.1002070034 | H157: 23846.83053 | I157: 0.02505968963
A158: 2020-09-01 | B158: 28613.69214 | C158: 688.1161712 | D158: 739.1836813 | E158: 418933543.2 | F158: 0.510935689 | G158: 0.09945788907 | H158: 24048.49286 | I158: 0.02518266646
A159: 2020-10-01 | B159: 28415.03692 | C159: 688.7114413 | D159: 737.3460832 | E159: 419791954 | F159: 0.5119826156 | G159: 0.09876738649 | H159: 24237.56982 | I159: 0.02529282368
A160: 2020-11-01 | B160: 28203.47849 | C160: 689.3605747 | D160: 735.374128 | E160: 420672820.1 | F160: 0.5130569291 | G160: 0.09803203381 | H160: 24442.39546 | I160: 0.02541130907
A161: 2020-12-01 | B161: 28012.62547 | C161: 689.9678067 | D161: 733.4106754 | E161: 421518924.5 | F161: 0.5140888467 | G161: 0.09736865077 | H161: 24630.6012 | I161: 0.02551345415
A162: 2021-01-01 | B162: 27822.39646 | C162: 690.6039213 | D162: 731.3079677 | E162: 422387315.8 | F162: 0.5151479459 | G162: 0.09670743668 | H162: 24821.87048 | I162: 0.02561166694
A163: 2021-02-01 | B163: 27617.37081 | C163: 691.3175074 | D163: 729.1805093 | E163: 423249810.1 | F163: 0.5161998528 | G163: 0.09599479122 | H163: 25031.98121 | I163: 0.02572378209
A164: 2021-03-01 | B164: 27450.43335 | C164: 691.9470205 | D164: 727.2333875 | E164: 424023096.5 | F164: 0.5171429609 | G164: 0.09541453586 | H164: 25207.14379 | I164: 0.02580885757
A165: 2021-04-01 | B165: 27259.71586 | C165: 692.6291668 | D165: 724.9919958 | E165: 424874060 | F165: 0.5181808047 | G165: 0.09475162391 | H165: 25408.52481 | I165: 0.02590672018
A166: 2021-05-01 | B166: 27081.24378 | C166: 693.3236399 | D166: 722.7812453 | E166: 425691851.4 | F166: 0.5191781917 | G166: 0.09413127558 | H166: 25601.61732 | I166: 0.0259955616
A167: 2021-06-01 | B167: 26904.08251 | C167: 694.0259453 | D167: 720.4462246 | E167: 426531370 | F167: 0.5202020772 | G167: 0.09351548346 | H167: 25796.306 | I167: 0.02607994625
A168: 2021-07-01 | B168: 26727.31615 | C168: 694.7297775 | D168: 718.1410902 | E168: 427338492.5 | F168: 0.5211864522 | G168: 0.09290106402 | H168: 25993.24876 | I168: 0.02616611863
A169: 2021-08-01 | B169: 26558.57638 | C169: 695.4521641 | D169: 715.7389816 | E169: 428167039.3 | F169: 0.5221969564 | G169: 0.09231454406 | H169: 26185.59647 | I169: 0.02624223457
A170: 2021-09-01 | B170: 26389.74758 | C170: 696.1665713 | D170: 713.2657395 | E170: 428990355.1 | F170: 0.523201081 | G170: 0.09172771465 | H170: 26380.19061 | I170: 0.02631684275
A171: 2021-10-01 | B171: 26227.67576 | C171: 696.8825754 | D171: 710.8445134 | E171: 429782047.6 | F171: 0.5241666373 | G171: 0.0911643717 | H171: 26570.50445 | I171: 0.02638765999
A172: 2021-11-01 | B172: 26075.18662 | C172: 697.6073757 | D172: 708.3120661 | E172: 430595105.5 | F172: 0.5251582512 | G172: 0.09063433707 | H172: 26753.68679 | I172: 0.02644583796
A173: 2021-12-01 | B173: 25915.01047 | C173: 698.3576211 | D173: 705.8447329 | E173: 431377361.1 | F173: 0.5261122982 | G173: 0.09007758329 | H173: 26947.99687 | I173: 0.02651472793
A174: 2022-01-01 | B174: 25759.8791 | C174: 699.0755703 | D174: 703.209719 | E174: 432180726.4 | F174: 0.5270920909 | G174: 0.08953836455 | H174: 27138.15417 | I174: 0.02657322899
A175: 2022-02-01 | B175: 25608.14088 | C175: 699.8622879 | D175: 700.6128692 | E175: 432979282.7 | F175: 0.5280660183 | G175: 0.08901094001 | H175: 27329.6797 | I175: 0.02663040888
A176: 2022-03-01 | B176: 25472.7812 | C176: 700.5538747 | D176: 698.2416373 | E176: 433696310.6 | F176: 0.528940513 | G176: 0.08854044541 | H176: 27502.05677 | I176: 0.02667995216
A177: 2022-04-01 | B177: 25328.87965 | C177: 701.3121352 | D177: 695.5597208 | E177: 434485966.8 | F177: 0.5299035859 | G177: 0.08804026026 | H177: 27688.24144 | I177: 0.02672717405
A178: 2022-05-01 | B178: 25187.70832 | C178: 702.0778937 | D178: 692.9810184 | E178: 435245833.2 | F178: 0.5308303269 | G178: 0.087549565 | H178: 27873.82976 | I178: 0.02677598766
A179: 2022-06-01 | B179: 25049.37681 | C179: 702.8210648 | D179: 690.2403978 | E179: 436026652.2 | F179: 0.5317826218 | G179: 0.08706874066 | H179: 28057.42714 | I179: 0.02681626507
A180: 2022-07-01 | B180: 24908.59845 | C180: 703.6116629 | D180: 687.6216457 | E180: 436778133.5 | F180: 0.5326991361 | G180: 0.08657941135 | H180: 28247.74201 | I180: 0.0268641871
A181: 2022-08-01 | B181: 24780.22147 | C181: 704.3685765 | D181: 684.8648628 | E181: 437550300 | F181: 0.5336408785 | G181: 0.08613318778 | H181: 28424.62798 | I181: 0.02689426825
A182: 2022-09-01 | B182: 24647.0255 | C182: 705.1463997 | D182: 682.0796697 | E182: 438318486.9 | F182: 0.5345777671 | G182: 0.08567021398 | H182: 28609.79714 | I182: 0.02692869192
A183: 2022-10-01 | B183: 24516.45866 | C183: 705.9719515 | D183: 679.4450872 | E183: 439057897.7 | F183: 0.5354795602 | G183: 0.08521637872 | H183: 28795.83717 | I183: 0.02696649003
A184: 2022-11-01 | B184: 24385.51437 | C184: 706.7598169 | D184: 676.6352176 | E184: 439817907.9 | F184: 0.5364064765 | G184: 0.08476123149 | H184: 28982.77257 | I184: 0.0269982914
A185: 2022-12-01 | B185: 24268.44222 | C185: 707.4882528 | D185: 673.8795315 | E185: 440549473.3 | F185: 0.5372987013 | G185: 0.0843543022 | H185: 29152.60265 | I185: 0.02701751418
A186: 2023-01-01 | B186: 24140.32457 | C186: 708.3316732 | D186: 671.0808183 | E186: 441301795 | F186: 0.5382162406 | G186: 0.08390898005 | H186: 29342.25972 | I186: 0.02704727152
A187: 2023-02-01 | B187: 24014.99102 | C187: 709.1660791 | D187: 668.2547318 | E187: 442050145.1 | F187: 0.5391289361 | G187: 0.08347333513 | H187: 29530.14133 | I187: 0.02707321146
A188: 2023-03-01 | B188: 23896.77466 | C188: 709.9339535 | D188: 665.7011357 | E188: 442722564.8 | F188: 0.5399490262 | G188: 0.0830624287 | H188: 29708.35871 | I188: 0.02710236302
A189: 2023-04-01 | B189: 23783.22512 | C189: 710.731893 | D189: 662.8245721 | E189: 443463364.9 | F189: 0.5408525136 | G189: 0.08266774363 | H189: 29883.74744 | I189: 0.02711377013
A190: 2023-05-01 | B190: 23664.43313 | C190: 711.5687808 | D190: 660.097189 | E190: 444176861.6 | F190: 0.5417227016 | G190: 0.08225483637 | H190: 30069.12429 | I190: 0.02713709907
A191: 2023-06-01 | B191: 23537.49941 | C191: 712.4642058 | D191: 657.3051053 | E191: 444910459 | F191: 0.5426174046 | G191: 0.08181362944 | H191: 30269.32443 | I191: 0.0271672005
A192: 2023-07-01 | B192: 23422.9019 | C192: 713.2936137 | D192: 654.5723827 | E192: 445616584 | F192: 0.543478602 | G192: 0.08141530173 | H192: 30452.82846 | I192: 0.02718608999
A193: 2023-08-01 | B193: 23301.38493 | C193: 714.1953979 | D193: 651.7895949 | E193: 446342694 | F193: 0.5443641732 | G193: 0.08099292278 | H193: 30650.34117 | I193: 0.0272109901
A194: 2023-09-01 | B194: 23187.0611 | C194: 715.0424496 | D194: 648.9538424 | E194: 447065036.9 | F194: 0.5452451501 | G194: 0.08059554635 | H194: 30837.99393 | I194: 0.02722576923
A195: 2023-10-01 | B195: 23067.9912 | C195: 715.9450966 | D195: 646.2623865 | E195: 447760648.7 | F195: 0.5460935255 | G195: 0.08018167313 | H195: 31036.30006 | I195: 0.02725206526
A196: 2023-11-01 | B196: 22953.22033 | C196: 716.8240466 | D196: 643.4454515 | E196: 448475756.5 | F196: 0.5469656783 | G196: 0.07978274282 | H196: 31229.78111 | I196: 0.02726849028
A197: 2023-12-01 | B197: 22832.95821 | C197: 717.7236382 | D197: 640.7420828 | E197: 449164353.1 | F197: 0.5478054979 | G197: 0.0793647256 | H197: 31433.66845 | I197: 0.02729616868
A198: 2024-01-01 | B198: 22713.07752 | C198: 718.588139 | D198: 637.8945269 | E198: 449872174.8 | F198: 0.5486687645 | G198: 0.07894803415 | H198: 31637.63864 | I198: 0.02731768621
A199: 2024-02-01 | B199: 22593.73754 | C199: 719.4697928 | D199: 635.0820667 | E199: 450576280.2 | F199: 0.5495274988 | G199: 0.07853322216 | H199: 31843.7705 | I199: 0.02734026427
A200: 2024-03-01 | B200: 22476.51125 | C200: 720.2542555 | D200: 632.418473 | E200: 451231498.6 | F200: 0.5503266099 | G200: 0.07812575712 | H200: 32044.75319 | I200: 0.02736684393
... 46 more rows

Sheet Reinj
A1: Case | B1: Reinjection
A2: N | B2: ='base case'!B2 -> 683278000 | C2: stb
A4: Date | B4: Average Oil Rate | C4: Average Gas Rate | D4: Average Water Rate | E4: Cum Oil Production | F4: RF | G4: qomax_n | H4: GOR | I4: WC
B5: stb/d | C5: 1e06 scf/d | D5: stb/d | E5: stb | H5: scf/stb
A6: 2008-01-01 | B6: 287696.299 | C6: 187.0028816 | D6: 0.004 | E6: 0 | F6: 0 | G6: 1 | H6: 650.0009983 | I6: 1.39036e-08
A7: 2008-02-01 | B7: 271980.644 | C7: 176.7864396 | D7: 273.7624966 | E7: 8918585.27 | F7: 0.0131 | G7: 0.945374149 | H7: 649.9964007 | I7: 0.001005539
A8: 2008-03-01 | B8: 259216.0787 | C8: 168.4900876 | D8: 344.9748246 | E8: 16806023.94 | F8: 0.0246 | G8: 0.901005955 | H8: 649.9985975 | I8: 0.00132907
A9: 2008-04-01 | B9: 244925.9369 | C9: 159.2018538 | D9: 406.74767 | E9: 24841722.38 | F9: 0.0364 | G9: 0.851335028 | H9: 649.9999789 | I9: 0.001657943
A10: 2008-05-01 | B10: 232227.6865 | C10: 150.9474553 | D10: 447.7831387 | E10: 32189500.49 | F10: 0.0471 | G10: 0.807197337 | H10: 649.9976707 | I10: 0.001924497
A11: 2008-06-01 | B11: 218363.1436 | C11: 141.9360734 | D11: 473.6492469 | E11: 39388558.77 | F11: 0.0577 | G11: 0.759005745 | H11: 650.0001374 | I11: 0.002164395
A12: 2008-07-01 | B12: 206269.0022 | C12: 134.5429795 | D12: 487.1557209 | E12: 45939453.08 | F12: 0.0673 | G12: 0.716967868 | H12: 652.2695028 | I12: 0.002356185
A13: 2008-08-01 | B13: 194622.0495 | C13: 127.752381 | D13: 493.4278926 | E13: 52333792.15 | F13: 0.0766 | G13: 0.67648437 | H13: 656.4126797 | I13: 0.002528902
A14: 2008-09-01 | B14: 184106.4212 | C14: 121.9168886 | D14: 494.1122291 | E14: 58367075.68 | F14: 0.0855 | G14: 0.639933228 | H14: 662.2087801 | I14: 0.002676657
A15: 2008-10-01 | B15: 174753.1141 | C15: 117.0890119 | D15: 491.3297718 | E15: 63890268.32 | F15: 0.0935 | G15: 0.607422183 | H15: 670.0253244 | I15: 0.002803682
A16: 2008-11-01 | B16: 165912.6996 | C16: 113.1466166 | D16: 485.8090564 | E16: 69307614.86 | F16: 0.101 | G16: 0.576693896 | H16: 681.9647733 | I16: 0.002919552
A17: 2008-12-01 | B17: 158107.5717 | C17: 109.9346008 | D17: 478.8491637 | E17: 74284995.84 | F17: 0.109 | G17: 0.549564149 | H17: 695.3152187 | I17: 0.003019484
A18: 2009-01-01 | B18: 150501.7964 | C18: 107.0028913 | D18: 470.2172356 | E18: 79186330.57 | F18: 0.116 | G18: 0.523127329 | H18: 710.97418 | I18: 0.003114599
A19: 2009-02-01 | B19: 143543.2018 | C19: 104.7089965 | D19: 461.0978344 | E19: 83851886.26 | F19: 0.123 | G19: 0.498940036 | H19: 729.4598084 | I19: 0.003201973
A20: 2009-03-01 | B20: 137676.6689 | C20: 103.0018067 | D20: 452.4573107 | E20: 87871095.91 | F20: 0.129 | G20: 0.478548627 | H20: 748.1427867 | I20: 0.003275611
A21: 2009-04-01 | B21: 131862.9698 | C21: 101.6126695 | D21: 443.4755552 | E21: 92139072.64 | F21: 0.135 | G21: 0.458340862 | H21: 770.5929091 | I21: 0.003351882
A22: 2009-05-01 | B22: 126705.7137 | C22: 100.5559094 | D22: 435.1647642 | E22: 96094961.73 | F22: 0.141 | G22: 0.44041482 | H22: 793.6177973 | I22: 0.003422697
A23: 2009-06-01 | B23: 121821.3229 | C23: 99.69827194 | D23: 427.0543184 | E23: 100022838.9 | F23: 0.146 | G23: 0.423437226 | H23: 818.3975476 | I23: 0.003493333
A24: 2009-07-01 | B24: 117559.0161 | C24: 99.10814842 | D24: 419.9877473 | E24: 103677478.5 | F24: 0.152 | G24: 0.408621927 | H24: 843.0501689 | I24: 0.003559852
A25: 2009-08-01 | B25: 113579.983 | C25: 98.73995328 | D25: 413.4964884 | E25: 107321808 | F25: 0.157 | G25: 0.394791255 | H25: 869.3429134 | I25: 0.00362737
A26: 2009-09-01 | B26: 109978.9056 | C26: 98.59638274 | D26: 407.8209079 | E26: 110842787.5 | F26: 0.162 | G26: 0.382274315 | H26: 896.502672 | I26: 0.003694474
A27: 2009-10-01 | B27: 106767.8386 | C27: 98.62387297 | D27: 403.4258429 | E27: 114142154.7 | F27: 0.167 | G27: 0.371113007 | H27: 923.72267 | I27: 0.00376431
A28: 2009-11-01 | B28: 103693.0219 | C28: 98.75528383 | D28: 401.4099533 | E28: 117451957.7 | F28: 0.172 | G28: 0.36042529 | H28: 952.3811921 | I28: 0.00385621
A29: 2009-12-01 | B29: 100982.3116 | C29: 98.976053 | D29: 400.202963 | E29: 120562748.3 | F29: 0.177 | G29: 0.351003165 | H29: 980.1325738 | I29: 0.003947455
A30: 2010-01-01 | B30: 98416.96073 | C30: 99.3220349 | D30: 401.7566469 | E30: 123693200 | F30: 0.181 | G30: 0.342086294 | H30: 1009.196323 | I30: 0.004065593
A31: 2010-02-01 | B31: 96005.23101 | C31: 99.7070789 | D31: 404.4269206 | E31: 126744125.8 | F31: 0.186 | G31: 0.333703393 | H31: 1038.558814 | I31: 0.00419488
A32: 2010-03-01 | B32: 93930.12295 | C32: 99.99469802 | D32: 406.4905406 | E32: 129432272.3 | F32: 0.19 | G32: 0.32649055 | H32: 1064.564752 | I32: 0.004308937
A33: 2010-04-01 | B33: 91787.70989 | C33: 100.4093899 | D33: 409.2630156 | E33: 132344106.1 | F33: 0.194 | G33: 0.319043763 | H33: 1093.930658 | I33: 0.004439007
A34: 2010-05-01 | B34: 89788.50062 | C34: 100.9226557 | D34: 415.4970247 | E34: 135097737.4 | F34: 0.198 | G34: 0.312094736 | H34: 1124.004243 | I34: 0.004606193
A35: 2010-06-01 | B35: 88034.88585 | C35: 102.0062206 | D35: 421.8403366 | E35: 137881180.9 | F35: 0.202 | G35: 0.305999369 | H35: 1158.702253 | I35: 0.004768889
A36: 2010-07-01 | B36: 86720.38785 | C36: 103.0992671 | D36: 427.3469587 | E36: 140522227.5 | F36: 0.206 | G36: 0.301430321 | H36: 1188.869995 | I36: 0.004903707
A37: 2010-08-01 | B37: 85565.4352 | C37: 104.4868243 | D37: 433.2087083 | E37: 143210559.5 | F37: 0.21 | G37: 0.297415836 | H37: 1221.133558 | I37: 0.00503739
A38: 2010-09-01 | B38: 84397.06211 | C38: 106.2236545 | D38: 438.9860981 | E38: 145863088 | F38: 0.214 | G38: 0.293354702 | H38: 1258.617917 | I38: 0.005174523
A39: 2010-10-01 | B39: 83282.67979 | C39: 108.1077749 | D39: 444.5365842 | E39: 148394999.8 | F39: 0.217 | G39: 0.289481234 | H39: 1298.082329 | I39: 0.005309344
A40: 2010-11-01 | B40: 82155.97235 | C40: 110.0932332 | D40: 450.1876448 | E40: 150976762.9 | F40: 0.221 | G40: 0.285564926 | H40: 1340.051491 | I40: 0.005449807
A41: 2010-12-01 | B41: 81109.86263 | C41: 112.0119256 | D41: 455.6505303 | E41: 153441442.1 | F41: 0.225 | G41: 0.281928766 | H41: 1380.990202 | I41: 0.005586314
A42: 2011-01-01 | B42: 80104.44018 | C42: 114.0385268 | D42: 461.4762858 | E42: 155955847.8 | F42: 0.228 | G42: 0.278434031 | H42: 1423.623042 | I42: 0.005727934
A43: 2011-02-01 | B43: 79130.35734 | C43: 116.0495136 | D43: 467.2539359 | E43: 158439085.5 | F43: 0.232 | G43: 0.275048228 | H43: 1466.561223 | I43: 0.0058702
A44: 2011-03-01 | B44: 78202.86176 | C44: 117.7566195 | D44: 471.9344048 | E44: 160654735.5 | F44: 0.235 | G44: 0.271824358 | H44: 1505.784019 | I44: 0.005998546
A45: 2011-04-01 | B45: 77220.423 | C45: 119.6221547 | D45: 477.0699928 | E45: 163079024.2 | F45: 0.239 | G45: 0.268409511 | H45: 1549.099967 | I45: 0.006140095
A46: 2011-05-01 | B46: 76282.83076 | C46: 121.4233991 | D46: 481.9763945 | E46: 165395636.9 | F46: 0.242 | G46: 0.265150546 | H46: 1591.752664 | I46: 0.006278611
A47: 2011-06-01 | B47: 75307.43685 | C47: 123.2302114 | D47: 486.7906572 | E47: 167760404.6 | F47: 0.246 | G47: 0.261760186 | H47: 1636.36178 | I47: 0.006422529
A48: 2011-07-01 | B48: 74395.51791 | C48: 124.9852042 | D48: 491.4602482 | E48: 170019627.7 | F48: 0.249 | G48: 0.258590459 | H48: 1680.009867 | I48: 0.006562693
A49: 2011-08-01 | B49: 73480.50513 | C49: 126.782682 | D49: 496.2543768 | E49: 172325888.8 | F49: 0.252 | G49: 0.255409977 | H49: 1725.392086 | I49: 0.006708247
A50: 2011-09-01 | B50: 72603.87431 | C50: 128.5409809 | D50: 501.0552094 | E50: 174603784.4 | F50: 0.256 | G50: 0.252362907 | H50: 1770.442447 | I50: 0.006853918
A51: 2011-10-01 | B51: 71751.64604 | C51: 130.1435652 | D51: 505.3660528 | E51: 176781900.7 | F51: 0.259 | G51: 0.249400657 | H51: 1813.805987 | I51: 0.006994007
A52: 2011-11-01 | B52: 70893.11578 | C52: 131.7569 | D52: 509.9750996 | E52: 179006201.7 | F52: 0.262 | G52: 0.246416502 | H52: 1858.528837 | I52: 0.007142199
A53: 2011-12-01 | B53: 70058.72318 | C53: 133.2808814 | D53: 515.599476 | E53: 181132995.2 | F53: 0.265 | G53: 0.243516248 | H53: 1902.41665 | I53: 0.007305766
A54: 2012-01-01 | B54: 69197.68119 | C54: 134.7944604 | D54: 521.3692956 | E54: 183304815.6 | F54: 0.268 | G54: 0.240523362 | H54: 1947.9621 | I54: 0.007478147
A55: 2012-02-01 | B55: 68360.32665 | C55: 136.3235139 | D55: 527.2104818 | E55: 185449943.7 | F55: 0.272 | G55: 0.237612812 | H55: 1994.190499 | I55: 0.007653206
A56: 2012-03-01 | B56: 67597.25792 | C56: 137.780281 | D56: 532.9393685 | E56: 187432393.2 | F56: 0.274 | G56: 0.234960471 | H56: 2038.252516 | I56: 0.007822366
A57: 2012-04-01 | B57: 66799.82935 | C57: 139.3176107 | D57: 539.2998486 | E57: 189527908.2 | F57: 0.277 | G57: 0.232188699 | H57: 2085.598303 | I57: 0.008008714
A58: 2012-05-01 | B58: 66059.56106 | C58: 140.7480213 | D58: 545.6661491 | E58: 191531903.1 | F58: 0.28 | G58: 0.22961561 | H58: 2130.623017 | I58: 0.008192542
A59: 2012-06-01 | B59: 65325.20796 | C59: 142.1920982 | D59: 552.4203316 | E59: 193579749.5 | F59: 0.283 | G59: 0.227063081 | H59: 2176.680376 | I59: 0.008385553
A60: 2012-07-01 | B60: 64612.62415 | C60: 143.5581862 | D60: 558.9195302 | E60: 195539505.7 | F60: 0.286 | G60: 0.224586219 | H60: 2221.828754 | I60: 0.008576128
A61: 2012-08-01 | B61: 63859.57151 | C61: 144.9043505 | D61: 565.4253754 | E61: 197542497 | F61: 0.289 | G61: 0.221968693 | H61: 2269.109346 | I61: 0.008776491
A62: 2012-09-01 | B62: 63134.22647 | C62: 146.2261762 | D62: 572.0356966 | E62: 199522143.8 | F62: 0.292 | G62: 0.219447475 | H62: 2316.115748 | I62: 0.008979269
A63: 2012-10-01 | B63: 62444.52753 | C63: 147.4707952 | D63: 578.8269542 | E63: 201416170.6 | F63: 0.295 | G63: 0.217050159 | H63: 2361.628809 | I63: 0.009184325
A64: 2012-11-01 | B64: 61756.47227 | C64: 148.7576328 | D64: 586.8938528 | E64: 203351950.9 | F64: 0.298 | G64: 0.214658557 | H64: 2408.778017 | I64: 0.009413894
A65: 2012-12-01 | B65: 61103.52141 | C65: 150.0079151 | D65: 594.7474183 | E65: 205204645.1 | F65: 0.3 | G65: 0.212388973 | H65: 2454.97987 | I65: 0.009639613
A66: 2013-01-01 | B66: 60428.66468 | C66: 151.2576627 | D66: 602.3735726 | E66: 207098854.2 | F66: 0.303 | G66: 0.210043247 | H66: 2503.078026 | I66: 0.009869955
A67: 2013-02-01 | B67: 59737.95862 | C67: 152.4232638 | D67: 609.4047691 | E67: 208972142.8 | F67: 0.306 | G67: 0.20764243 | H67: 2551.531175 | I67: 0.010098283
A68: 2013-03-01 | B68: 59131.47054 | C68: 153.4930113 | D68: 615.6331041 | E68: 210644805.7 | F68: 0.308 | G68: 0.205534346 | H68: 2595.792221 | I68: 0.010303982
A69: 2013-04-01 | B69: 58470.91735 | C69: 154.67557 | D69: 622.465985 | E69: 212477881.3 | F69: 0.311 | G69: 0.203238337 | H69: 2645.341942 | I69: 0.010533599
A70: 2013-05-01 | B70: 57854.03989 | C70: 155.8066225 | D70: 629.0306805 | E70: 214232008.8 | F70: 0.314 | G70: 0.20109414 | H70: 2693.098405 | I70: 0.010755774
A71: 2013-06-01 | B71: 57225.76152 | C71: 156.941167 | D71: 635.6650413 | E71: 216025484 | F71: 0.316 | G71: 0.198910315 | H71: 2742.491543 | I71: 0.01098599
A72: 2013-07-01 | B72: 56600.8223 | C72: 157.8898628 | D72: 641.5609379 | E72: 217742256.9 | F72: 0.319 | G72: 0.196738097 | H72: 2789.53302 | I72: 0.011207796
A73: 2013-08-01 | B73: 55977.54185 | C73: 158.8191104 | D73: 647.5569088 | E73: 219496882.4 | F73: 0.321 | G73: 0.194571644 | H73: 2837.193366 | I73: 0.011435864
A74: 2013-09-01 | B74: 55357.65164 | C74: 159.6804009 | D74: 653.315114 | E74: 221232186.2 | F74: 0.324 | G74: 0.192416975 | H74: 2884.522666 | I74: 0.011664057
A75: 2013-10-01 | B75: 54752.11443 | C75: 160.4527009 | D75: 658.711561 | E75: 222892915.7 | F75: 0.326 | G75: 0.190312196 | H75: 2930.529762 | I75: 0.011887777
A76: 2013-11-01 | B76: 54141.73082 | C76: 161.2331806 | D76: 664.2584855 | E76: 224590231.3 | F76: 0.329 | G76: 0.188190571 | H76: 2977.983492 | I76: 0.012120181
A77: 2013-12-01 | B77: 53567.30644 | C77: 161.9980436 | D77: 669.6755261 | E77: 226214483.2 | F77: 0.331 | G77: 0.186193937 | H77: 3024.196182 | I77: 0.012347212
A78: 2014-01-01 | B78: 52973.35205 | C78: 162.7620783 | D78: 675.3402651 | E78: 227875069.7 | F78: 0.334 | G78: 0.184129418 | H78: 3072.52745 | I78: 0.012588196
A79: 2014-02-01 | B79: 52386.18081 | C79: 163.5103032 | D79: 681.6039614 | E79: 229517243.6 | F79: 0.336 | G79: 0.182088477 | H79: 3121.248786 | I79: 0.012844025
A80: 2014-03-01 | B80: 51869.47652 | C80: 164.2006956 | D80: 687.9511138 | E80: 230984056.7 | F80: 0.338 | G80: 0.180292471 | H80: 3165.651681 | I80: 0.013089513
A81: 2014-04-01 | B81: 51292.63651 | C81: 164.9492992 | D81: 694.7752314 | E81: 232592010.4 | F81: 0.341 | G81: 0.178287439 | H81: 3215.847545 | I81: 0.013364297
A82: 2014-05-01 | B82: 50748.78204 | C82: 165.6794504 | D82: 701.4679214 | E82: 234130789.5 | F82: 0.343 | G82: 0.176397063 | H82: 3264.698062 | I82: 0.013633907
A83: 2014-06-01 | B83: 50200.59558 | C83: 166.3555662 | D83: 708.3522445 | E83: 235704001.8 | F83: 0.345 | G83: 0.174491628 | H83: 3313.816584 | I83: 0.013914101
A84: 2014-07-01 | B84: 49672.79608 | C84: 166.9997096 | D84: 715.0835728 | E84: 237210019.6 | F84: 0.347 | G84: 0.172657056 | H84: 3361.995353 | I84: 0.014191579
A85: 2014-08-01 | B85: 49136.50445 | C85: 167.6585741 | D85: 722.169761 | E85: 238749876.3 | F85: 0.35 | G85: 0.170792967 | H85: 3412.098113 | I85: 0.014484335
A86: 2014-09-01 | B86: 48607.30155 | C86: 168.3384262 | D86: 729.4265458 | E86: 240273108 | F86: 0.352 | G86: 0.168953517 | H86: 3463.233317 | I86: 0.014784656
A87: 2014-10-01 | B87: 48108.8848 | C87: 168.9982479 | D87: 736.6313654 | E87: 241731327 | F87: 0.354 | G87: 0.167221076 | H87: 3512.828215 | I87: 0.015080839
A88: 2014-11-01 | B88: 47616.14599 | C88: 169.6445503 | D88: 744.3506481 | E88: 243222702.4 | F88: 0.356 | G88: 0.165508372 | H88: 3562.75265 | I88: 0.015391708
A89: 2014-12-01 | B89: 47141.89296 | C89: 170.2779999 | D89: 751.8199095 | E89: 244651186.8 | F89: 0.358 | G89: 0.163859921 | H89: 3612.031449 | I89: 0.015697674
A90: 2015-01-01 | B90: 46650.62807 | C90: 170.9298174 | D90: 759.5040429 | E90: 246112585.5 | F90: 0.36 | G90: 0.16215234 | H90: 3664.041074 | I90: 0.016019868
A91: 2015-02-01 | B91: 46186.60908 | C91: 171.5657719 | D91: 767.5432061 | E91: 247558755 | F91: 0.362 | G91: 0.160539462 | H91: 3714.621517 | I91: 0.016346652
A92: 2015-03-01 | B92: 45781.38243 | C92: 172.1200051 | D92: 774.8691863 | E92: 248851980 | F92: 0.364 | G92: 0.15913094 | H92: 3759.606982 | I92: 0.016643719
A93: 2015-04-01 | B93: 45342.84771 | C93: 172.7130952 | D93: 783.0179607 | E93: 250271202.9 | F93: 0.366 | G93: 0.157606642 | H93: 3809.04826 | I93: 0.016975681
A94: 2015-05-01 | B94: 44939.14472 | C94: 173.2736517 | D94: 791.0935004 | E94: 251631488.3 | F94: 0.368 | G94: 0.156203416 | H94: 3855.739863 | I94: 0.017299134
A95: 2015-06-01 | B95: 44518.14371 | C95: 173.856266 | D95: 799.1225634 | E95: 253024601.8 | F95: 0.37 | G95: 0.154740064 | H95: 3905.290102 | I95: 0.017633953
A96: 2015-07-01 | B96: 44136.74325 | C96: 174.4001639 | D96: 807.1553952 | E96: 254360146.1 | F96: 0.372 | G96: 0.153414359 | H96: 3951.360047 | I96: 0.017959176
A97: 2015-08-01 | B97: 43740.64208 | C97: 174.9618713 | D97: 815.2552176 | E97: 255728385.1 | F97: 0.374 | G97: 0.152037556 | H97: 3999.984065 | I97: 0.018297358
A98: 2015-09-01 | B98: 43344.60649 | C98: 175.5159079 | D98: 823.279078 | E98: 257084345 | F98: 0.376 | G98: 0.15066098 | H98: 4049.313677 | I98: 0.018639767
A99: 2015-10-01 | B99: 42963.16312 | C99: 176.0522114 | D99: 831.0451592 | E99: 258384683.2 | F99: 0.378 | G99: 0.149335126 | H99: 4097.747899 | I99: 0.018976143
A100: 2015-11-01 | B100: 42561.19577 | C100: 176.6290194 | D100: 839.2938921 | E100: 259716541.3 | F100: 0.38 | G100: 0.147937933 | H100: 4150.001338 | I100: 0.019338351
A101: 2015-12-01 | B101: 42170.58787 | C101: 177.1536492 | D101: 846.980327 | E101: 260993377.2 | F101: 0.382 | G101: 0.146580224 | H101: 4200.881661 | I101: 0.019689173
A102: 2016-01-01 | B102: 41771.37477 | C102: 177.7107279 | D102: 854.7888881 | E102: 262300665.4 | F102: 0.384 | G102: 0.145192604 | H102: 4254.366271 | I102: 0.020053151
A103: 2016-02-01 | B103: 41378.26445 | C103: 178.2783714 | D103: 862.5725679 | E103: 263595578 | F103: 0.386 | G103: 0.143826197 | H103: 4308.502877 | I103: 0.020420347
A104: 2016-03-01 | B104: 41017.70098 | C104: 178.8042948 | D104: 869.9935496 | E104: 264795547.7 | F104: 0.388 | G104: 0.142572918 | H104: 4359.198358 | I104: 0.020769669
A105: 2016-04-01 | B105: 40653.23427 | C105: 179.3437268 | D105: 878.8949125 | E105: 266067096.4 | F105: 0.39 | G105: 0.141306073 | H105: 4411.5488 | I105: 0.021161807
A106: 2016-05-01 | B106: 40299.62871 | C106: 179.8613662 | D106: 887.0010133 | E106: 267286693.4 | F106: 0.391 | G106: 0.14007698 | H106: 4463.102315 | I106: 0.02153614
A107: 2016-06-01 | B107: 39943.09351 | C107: 180.3919698 | D107: 895.2261956 | E107: 268535981.9 | F107: 0.393 | G107: 0.138837704 | H107: 4516.224305 | I107: 0.02192123
A108: 2016-07-01 | B108: 39603.35397 | C108: 180.8574921 | D108: 903.1068784 | E108: 269734274.7 | F108: 0.395 | G108: 0.137656807 | H108: 4566.721602 | I108: 0.022295379
A109: 2016-08-01 | B109: 39248.52535 | C109: 181.3476078 | D109: 911.0934896 | E109: 270961978.7 | F109: 0.397 | G109: 0.136423463 | H109: 4620.494811 | I109: 0.022686806
A110: 2016-09-01 | B110: 38902.78083 | C110: 181.8139256 | D110: 919.3203861 | E110: 272178683 | F110: 0.399 | G110: 0.135221694 | H110: 4673.54574 | I110: 0.023085683
A111: 2016-10-01 | B111: 38565.9177 | C111: 182.2717713 | D111: 926.9697498 | E111: 273345766.4 | F111: 0.4 | G111: 0.134050795 | H111: 4726.239699 | I111: 0.023471815
A112: 2016-11-01 | B112: 38226.11453 | C112: 182.7498139 | D112: 935.0836585 | E112: 274541309.9 | F112: 0.402 | G112: 0.132869678 | H112: 4780.758288 | I112: 0.02387781
A113: 2016-12-01 | B113: 37900.88077 | C113: 183.1903435 | D113: 942.5078807 | E113: 275688093.3 | F113: 0.404 | G113: 0.131739202 | H113: 4833.405972 | I113: 0.024264306
A114: 2017-01-01 | B114: 37590.58355 | C114: 183.6046979 | D114: 950.6453956 | E114: 276863020.6 | F114: 0.405 | G114: 0.130660643 | H114: 4884.326888 | I114: 0.024665674
A115: 2017-02-01 | B115: 37270.54469 | C115: 183.9690976 | D115: 958.3121889 | E115: 278028328.7 | F115: 0.407 | G115: 0.129548224 | H115: 4936.045319 | I115: 0.02506777
A116: 2017-03-01 | B116: 36980.53668 | C116: 184.2883002 | D116: 964.9744493 | E116: 279071903.9 | F116: 0.409 | G116: 0.128540189 | H116: 4983.386309 | I116: 0.02543053
A117: 2017-04-01 | B117: 36666.57704 | C117: 184.6264571 | D117: 972.2724205 | E117: 280218300.6 | F117: 0.41 | G117: 0.127448901 | H117: 5035.279319 | I117: 0.025831619
A118: 2017-05-01 | B118: 36367.42888 | C118: 184.9613104 | D118: 979.3502542 | E118: 281318297.9 | F118: 0.412 | G118: 0.126409095 | H118: 5085.905604 | I118: 0.026223152
A119: 2017-06-01 | B119: 36038.77927 | C119: 185.3061801 | D119: 985.9028261 | E119: 282445688.2 | F119: 0.414 | G119: 0.125266746 | H119: 5141.855074 | I119: 0.026628259
A120: 2017-07-01 | B120: 35764.36652 | C120: 185.6141164 | D120: 993.1723263 | E120: 283526851.6 | F120: 0.415 | G120: 0.124312918 | H120: 5189.917631 | I120: 0.027019555
A121: 2017-08-01 | B121: 35469.52397 | C121: 185.9553536 | D121: 1000.249605 | E121: 284635546.9 | F121: 0.417 | G121: 0.123288079 | H121: 5242.679707 | I121: 0.027426812
A122: 2017-09-01 | B122: 35188.03287 | C122: 186.2904413 | D122: 1007.45476 | E122: 285735102.2 | F122: 0.418 | G122: 0.122309647 | H122: 5294.14196 | I122: 0.027833711
A123: 2017-10-01 | B123: 34900.41515 | C123: 186.6199819 | D123: 1013.83955 | E123: 286790743.2 | F123: 0.42 | G123: 0.12130992 | H123: 5347.213811 | I123: 0.028229447
A124: 2017-11-01 | B124: 34618.16148 | C124: 186.9720894 | D124: 1020.64731 | E124: 287872656 | F124: 0.421 | G124: 0.120328838 | H124: 5400.982645 | I124: 0.028638648
A125: 2017-12-01 | B125: 34348.38871 | C125: 187.3000837 | D125: 1027.04122 | E125: 288911200.9 | F125: 0.423 | G125: 0.119391139 | H125: 5452.951093 | I125: 0.029032615
A126: 2018-01-01 | B126: 34070.84141 | C126: 187.6062956 | D126: 1033.345523 | E126: 289976000.9 | F126: 0.425 | G126: 0.118426415 | H126: 5506.359333 | I126: 0.029436532
A127: 2018-02-01 | B127: 33796.3719 | C127: 187.9073565 | D127: 1039.510128 | E127: 291032197 | F127: 0.426 | G127: 0.11747239 | H127: 5559.986057 | I127: 0.029840213
A128: 2018-03-01 | B128: 33545.6446 | C128: 188.1596794 | D128: 1044.803163 | E128: 291978495.4 | F128: 0.427 | G128: 0.11660089 | H128: 5609.064356 | I128: 0.030204962
A129: 2018-04-01 | B129: 33270.91679 | C129: 188.4267098 | D129: 1050.413307 | E129: 293018410.4 | F129: 0.429 | G129: 0.115645967 | H129: 5663.406002 | I129: 0.030605262
A130: 2018-05-01 | B130: 32994.39798 | C130: 188.7079057 | D130: 1055.360746 | E130: 294016537.9 | F130: 0.43 | G130: 0.114684819 | H130: 5719.392298 | I130: 0.030994661
A131: 2018-06-01 | B131: 32736.85742 | C131: 188.977189 | D131: 1060.98844 | E131: 295039364.2 | F131: 0.432 | G131: 0.113789637 | H131: 5772.612399 | I131: 0.031392191
A132: 2018-07-01 | B132: 32478.1227 | C132: 189.2570848 | D132: 1065.892289 | E132: 296021470 | F132: 0.433 | G132: 0.112890304 | H132: 5827.217496 | I132: 0.03177593
A133: 2018-08-01 | B133: 32199.5289 | C133: 189.5691517 | D133: 1070.396081 | E133: 297028291.8 | F133: 0.435 | G133: 0.111921943 | H133: 5887.326871 | I133: 0.032173084
A134: 2018-09-01 | B134: 31948.58184 | C134: 189.8713541 | D134: 1075.451171 | E134: 298026477.2 | F134: 0.436 | G134: 0.11104968 | H134: 5943.02918 | I134: 0.032565713
A135: 2018-10-01 | B135: 31689.10206 | C135: 190.13571 | D135: 1079.581061 | E135: 298984934.6 | F135: 0.438 | G135: 0.110147757 | H135: 6000.034639 | I135: 0.032945513
A136: 2018-11-01 | B136: 31421.48316 | C136: 190.4084943 | D136: 1083.911018 | E136: 299967296.8 | F136: 0.439 | G136: 0.109217544 | H136: 6059.818798 | I136: 0.033345574
A137: 2018-12-01 | B137: 31168.56127 | C137: 190.6916191 | D137: 1088.01261 | E137: 300909941.3 | F137: 0.441 | G137: 0.108338416 | H137: 6118.075758 | I137: 0.03372995
A138: 2019-01-01 | B138: 30953.37671 | C138: 191.3092779 | D138: 1093.515558 | E138: 301876166.7 | F138: 0.442 | G138: 0.107590458 | H138: 6180.562454 | I138: 0.034122359
A139: 2019-02-01 | B139: 30700.54235 | C139: 191.5866261 | D139: 1097.499189 | E139: 302835721.4 | F139: 0.443 | G139: 0.106711635 | H139: 6240.496467 | I139: 0.034514679
A140: 2019-03-01 | B140: 30475.47555 | C140: 191.8349402 | D140: 1100.743899 | E140: 303695336.5 | F140: 0.445 | G140: 0.105929328 | H140: 6294.731641 | I140: 0.034859901
A141: 2019-04-01 | B141: 30232.10218 | C141: 192.0999827 | D141: 1104.316557 | E141: 304640076.3 | F141: 0.446 | G141: 0.105083389 | H141: 6354.172182 | I141: 0.035240675
A142: 2019-05-01 | B142: 29981.88152 | C142: 192.3286904 | D142: 1106.784921 | E142: 305547039.4 | F142: 0.447 | G142: 0.10421365 | H142: 6414.830579 | I142: 0.035600913
A143: 2019-06-01 | B143: 29745.66881 | C143: 192.5657848 | D143: 1110.155515 | E143: 306476477.7 | F143: 0.449 | G143: 0.103392602 | H143: 6473.741976 | I143: 0.035978799
A144: 2019-07-01 | B144: 29518.76571 | C144: 192.7326199 | D144: 1112.624884 | E144: 307368847.7 | F144: 0.45 | G144: 0.102603912 | H144: 6529.155784 | I144: 0.036323029
A145: 2019-08-01 | B145: 29258.68147 | C145: 192.9470492 | D145: 1114.689675 | E145: 308283929.5 | F145: 0.451 | G145: 0.101699888 | H145: 6594.523045 | I145: 0.03669957
A146: 2019-09-01 | B146: 29338.89395 | C146: 195.1702641 | D146: 1129.150202 | E146: 309190948.6 | F146: 0.453 | G146: 0.101978698 | H146: 6652.270684 | I146: 0.037060147
A147: 2019-10-01 | B147: 28801.02023 | C147: 193.3202232 | D147: 1119.694709 | E147: 310071115.4 | F147: 0.454 | G147: 0.100109109 | H147: 6712.269969 | I147: 0.037422057
A148: 2019-11-01 | B148: 28905.91613 | C148: 195.5684678 | D148: 1134.4057 | E148: 310963947.1 | F148: 0.455 | G148: 0.100473716 | H148: 6765.690004 | I148: 0.037762768
A149: 2019-12-01 | B149: 28650.49177 | C149: 195.7592476 | D149: 1135.73585 | E149: 311831124.5 | F149: 0.457 | G149: 0.099585889 | H149: 6832.66623 | I149: 0.038129563
A150: 2020-01-01 | B150: 28416.63711 | C150: 195.9148244 | D150: 1137.100146 | E150: 312719289.8 | F150: 0.458 | G150: 0.098773037 | H150: 6894.37049 | I150: 0.03847568
A151: 2020-02-01 | B151: 28194.11581 | C151: 196.0864551 | D151: 1138.965422 | E151: 313600205.5 | F151: 0.459 | G151: 0.097999578 | H151: 6954.87159 | I151: 0.0388287
A152: 2020-03-01 | B152: 28009.05677 | C152: 196.1914546 | D152: 1140.838175 | E152: 314417834.9 | F152: 0.46 | G152: 0.097356333 | H152: 7004.571991 | I152: 0.039136957
A153: 2020-04-01 | B153: 27786.71245 | C153: 196.3223882 | D153: 1142.255871 | E153: 315286115.7 | F153: 0.462 | G153: 0.096583489 | H153: 7065.333425 | I153: 0.039484846
A154: 2020-05-01 | B154: 27586.31567 | C154: 196.419446 | D154: 1143.441828 | E154: 316119717 | F154: 0.463 | G154: 0.095886933 | H154: 7120.176841 | I154: 0.039799912
A155: 2020-06-01 | B155: 27368.27927 | C155: 196.5251909 | D155: 1144.309383 | E155: 316974892.8 | F155: 0.464 | G155: 0.095129063 | H155: 7180.765329 | I155: 0.040133479
A156: 2020-07-01 | B156: 27176.80916 | C156: 196.6104871 | D156: 1145.294191 | E156: 317795941.2 | F156: 0.465 | G156: 0.094463534 | H156: 7234.494894 | I156: 0.040438176
A157: 2020-08-01 | B157: 26970.44611 | C157: 196.6937423 | D157: 1146.112177 | E157: 318638422.3 | F157: 0.467 | G157: 0.093746239 | H157: 7292.936183 | I157: 0.04076289
A158: 2020-09-01 | B158: 26778.78501 | C158: 196.7410452 | D158: 1146.744916 | E158: 319474506.1 | F158: 0.468 | G158: 0.093080047 | H158: 7346.899612 | I158: 0.041064392
A159: 2020-10-01 | B159: 26570.342 | C159: 196.7991936 | D159: 1146.606194 | E159: 320277869.7 | F159: 0.469 | G159: 0.092355522 | H159: 7406.724143 | I159: 0.041368414
A160: 2020-11-01 | B160: 26387.80659 | C160: 196.8352467 | D160: 1147.041309 | E160: 321101550.3 | F160: 0.47 | G160: 0.09172105 | H160: 7459.325805 | I160: 0.041657804
A161: 2020-12-01 | B161: 26206.4067 | C161: 196.897356 | D161: 1147.455295 | E161: 321893184.5 | F161: 0.471 | G161: 0.091090524 | H161: 7513.329021 | I161: 0.041948566
A162: 2021-01-01 | B162: 26072.49689 | C162: 197.221319 | D162: 1149.481217 | E162: 322705583.1 | F162: 0.472 | G162: 0.090625069 | H162: 7564.34337 | I162: 0.042226219
A163: 2021-02-01 | B163: 25888.44951 | C163: 197.2814848 | D163: 1149.548873 | E163: 323513830.5 | F163: 0.474 | G163: 0.089985341 | H163: 7620.444195 | I163: 0.042516049
A164: 2021-03-01 | B164: 25730.05541 | C164: 197.3285236 | D164: 1149.560465 | E164: 324238707 | F164: 0.475 | G164: 0.089434781 | H164: 7669.18378 | I164: 0.042766998
A165: 2021-04-01 | B165: 25553.94704 | C165: 197.3630044 | D165: 1149.332472 | E165: 325036338.8 | F165: 0.476 | G165: 0.088822648 | H165: 7723.386296 | I165: 0.043040873
A166: 2021-05-01 | B166: 25387.5988 | C166: 197.4159146 | D166: 1149.113804 | E166: 325802957.2 | F166: 0.477 | G166: 0.08824444 | H166: 7776.076667 | I166: 0.043302794
A167: 2021-06-01 | B167: 25214.19155 | C167: 197.4721414 | D167: 1148.718205 | E167: 326589972.7 | F167: 0.478 | G167: 0.087641696 | H167: 7831.785566 | I167: 0.043573271
A168: 2021-07-01 | B168: 25045.96387 | C168: 197.5427607 | D168: 1148.254245 | E168: 327346398.5 | F168: 0.479 | G168: 0.087056955 | H168: 7887.209362 | I168: 0.043836172
A169: 2021-08-01 | B169: 24877.85433 | C169: 197.6285733 | D169: 1147.825908 | E169: 328122823.4 | F169: 0.48 | G169: 0.086472626 | H169: 7943.955721 | I169: 0.044103589
A170: 2021-09-01 | B170: 24710.40684 | C170: 197.7118103 | D170: 1147.349404 | E170: 328894036.9 | F170: 0.482 | G170: 0.085890597 | H170: 8001.155609 | I170: 0.044371576
A171: 2021-10-01 | B171: 24532.69356 | C171: 197.8131922 | D171: 1146.11639 | E171: 329635349.1 | F171: 0.483 | G171: 0.085272885 | H171: 8063.247997 | I171: 0.044632769
A172: 2021-11-01 | B172: 24357.64466 | C172: 197.9126768 | D172: 1145.002752 | E172: 330395862.6 | F172: 0.484 | G172: 0.084664435 | H172: 8125.279745 | I172: 0.044897407
A173: 2021-12-01 | B173: 24181.74851 | C173: 198.0099727 | D173: 1143.578738 | E173: 331126591.9 | F173: 0.485 | G173: 0.08405304 | H173: 8188.405922 | I173: 0.045155536
A174: 2022-01-01 | B174: 24007.71089 | C174: 198.1354532 | D174: 1142.233246 | E174: 331876226.1 | F174: 0.486 | G174: 0.083448105 | H174: 8252.992303 | I174: 0.04541693
A175: 2022-02-01 | B175: 23831.46415 | C175: 198.2668394 | D175: 1140.683913 | E175: 332620465.1 | F175: 0.487 | G175: 0.082835491 | H175: 8319.540847 | I175: 0.045678246
A176: 2022-03-01 | B176: 23676.40226 | C176: 198.3871891 | D176: 1139.287846 | E176: 333287746.1 | F176: 0.488 | G176: 0.082296513 | H176: 8379.110432 | I176: 0.04590998
A177: 2022-04-01 | B177: 23498.76187 | C177: 198.5156266 | D177: 1137.255114 | E177: 334021714.6 | F177: 0.489 | G177: 0.081679055 | H177: 8447.918561 | I177: 0.046162296
A178: 2022-05-01 | B178: 23332.61864 | C178: 198.6418212 | D178: 1135.303105 | E178: 334726677.5 | F178: 0.49 | G178: 0.08110156 | H178: 8513.481673 | I178: 0.046399654
A179: 2022-06-01 | B179: 23165.24689 | C179: 198.762331 | D179: 1133.120221 | E179: 335449988.6 | F179: 0.491 | G179: 0.080519795 | H179: 8580.194803 | I179: 0.046633595
A180: 2022-07-01 | B180: 23006.75487 | C180: 198.8647448 | D180: 1130.879784 | E180: 336144946 | F180: 0.492 | G180: 0.079968894 | H180: 8643.754666 | I180: 0.046851309
A181: 2022-08-01 | B181: 22848.42505 | C181: 198.9789419 | D181: 1128.591492 | E181: 336858155.4 | F181: 0.493 | G181: 0.079418557 | H181: 8708.65022 | I181: 0.047069722
A182: 2022-09-01 | B182: 22705.28455 | C182: 199.0975086 | D182: 1126.800494 | E182: 337566456.6 | F182: 0.494 | G182: 0.078921017 | H182: 8768.773993 | I182: 0.047280819
A183: 2022-10-01 | B183: 22545.59211 | C183: 199.1887314 | D183: 1124.009937 | E183: 338247615.2 | F183: 0.495 | G183: 0.078365944 | H183: 8834.930145 | I183: 0.047487488
A184: 2022-11-01 | B184: 22401.13414 | C184: 199.2897822 | D184: 1121.895519 | E184: 338946528.5 | F184: 0.496 | G184: 0.077863825 | H184: 8896.414839 | I184: 0.047693496
A185: 2022-12-01 | B185: 22244.99594 | C185: 199.3798734 | D185: 1119.002498 | E185: 339618562.5 | F185: 0.497 | G185: 0.077321106 | H185: 8962.908958 | I185: 0.047894306
A186: 2023-01-01 | B186: 22106.01885 | C186: 199.4954363 | D186: 1116.869175 | E186: 340308157.4 | F186: 0.498 | G186: 0.076838037 | H186: 9024.485036 | I186: 0.048093466
A187: 2023-02-01 | B187: 21957.38817 | C187: 199.6194283 | D187: 1114.296273 | E187: 340993444 | F187: 0.499 | G187: 0.076321413 | H187: 9091.21917 | I187: 0.048297136
A188: 2023-03-01 | B188: 21820.47201 | C188: 199.7228702 | D188: 1111.80356 | E188: 341608250.9 | F188: 0.5 | G188: 0.075845508 | H188: 9153.00412 | I188: 0.048482043
A189: 2023-04-01 | B189: 21670.45571 | C189: 199.8566642 | D189: 1109.088728 | E189: 342284685.5 | F189: 0.501 | G189: 0.075324068 | H189: 9222.540904 | I189: 0.048687924
A190: 2023-05-01 | B190: 21517.95481 | C190: 199.9769921 | D190: 1105.923804 | E190: 342934799.2 | F190: 0.502 | G190: 0.074793992 | H190: 9293.494382 | I190: 0.048883033
A191: 2023-06-01 | B191: 21364.85531 | C191: 200.0901321 | D191: 1102.929874 | E191: 343601855.8 | F191: 0.503 | G191: 0.074261836 | H191: 9365.386719 | I191: 0.04908939
A192: 2023-07-01 | B192: 21230.99158 | C192: 200.2310269 | D192: 1100.616497 | E192: 344242801.4 | F192: 0.504 | G192: 0.07379654 | H192: 9431.072786 | I192: 0.049285143
A193: 2023-08-01 | B193: 21076.06109 | C193: 200.3732471 | D193: 1097.34407 | E193: 344900962.2 | F193: 0.505 | G193: 0.07325802 | H193: 9507.148714 | I193: 0.049489199
A194: 2023-09-01 | B194: 20926.3278 | C194: 200.4883905 | D194: 1094.344941 | E194: 345554320.1 | F194: 0.506 | G194: 0.072737563 | H194: 9580.677147 | I194: 0.049696254
A195: 2023-10-01 | B195: 20789.3504 | C195: 200.6284386 | D195: 1091.615855 | E195: 346182109.9 | F195: 0.507 | G195: 0.072261445 | H195: 9650.539083 | I195: 0.049888832
A196: 2023-11-01 | B196: 20648.13288 | C196: 200.7542947 | D196: 1088.667977 | E196: 346826579.8 | F196: 0.508 | G196: 0.071770589 | H196: 9722.636709 | I196: 0.050084094
A197: 2023-12-01 | B197: 20521.3821 | C197: 200.8450313 | D197: 1086.14154 | E197: 347446023.7 | F197: 0.509 | G197: 0.071330018 | H197: 9787.110358 | I197: 0.050266822
A198: 2024-01-01 | B198: 20373.97458 | C198: 200.9403696 | D198: 1082.577871 | E198: 348082186.6 | F198: 0.51 | G198: 0.070817646 | H198: 9862.60039 | I198: 0.050454418
A199: 2024-02-01 | B199: 20235.0014 | C199: 201.0560555 | D199: 1079.600944 | E199: 348713779.8 | F199: 0.511 | G199: 0.070334591 | H199: 9936.053453 | I199: 0.050650766
A200: 2024-03-01 | B200: 20113.06935 | C200: 201.145418 | D200: 1077.226078 | E200: 349300594.8 | F200: 0.511 | G200: 0.069910768 | H200: 10000.73208 | I200: 0.050835822
A201: 2024-04-01 | B201: 19983.46881 | C201: 201.226524 | D201: 1074.158214 | E201: 349924100 | F201: 0.512 | G201: 0.069460292 | H201: 10069.64937 | I201: 0.051010411
... 45 more rows

Sheet Predict_prof_qp_150k
A1: Prediction with production potential curve | H1: From simulator | N1: Production potential curve | Q1: Deviation pot-model | S1: max [%] | T1: =MAX(Q4:Q244) -> 1.872237625
A2: time | B2: days | C2: Desired rate | D2: qmax | E2: actual rate | F2: Np | H2: Date | I2: days | J2: Average Oil Rate | K2: Average Gas Rate | L2: Average Water Rate | N2: Np | O2: qmax | Q2: [%] | S2: average [%] | T2: =AVERAGE(Q4:Q244) -> 0.4539901396
C3: [stb/d] | D3: [stb/d] | E3: [stb/d] | F3: [stb] | J3: stb/d | K3: 1E06 scf/d | L3: stb/d | N3: [stb] | O3: stb/d
A4: 2008-01-01 | B4: 0 | C4: 150000 | D4: =BOtabinterpol(F4,2,$N$4:$O$244) -> 287696.5559 | E4: =IF(C4<D4,C4,D4) -> 150000 | F4: 0 | H4: 2008-01-01 | I4: 0 | J4: 150004.8041 | K4: 97.50327747 | L4: 0.004 | N4: 0 | O4: 287696.5559 | Q4: =ABS(E4-J4)*100/J4 -> 0.003202662766
A5: 2008-02-01 | B5: =A5-A4+B4 -> 31 | C5: 150000 | D5: =BOtabinterpol(F5,2,$N$4:$O$244) -> 286113.7553 | E5: =IF(C5<D5,C5,D5) -> 150000 | F5: =F4+(A5-A4)*E4 -> 4650000 | H5: 2008-02-01 | I5: =H5-H4+I4 -> 31 | J5: 149997.6368 | K5: 97.49877701 | L5: 49.38014008 | N5: 8918593.232 | O5: 284660.7808 | Q5: =ABS(E5-J5)*100/J5 -> 0.001575499498
A6: 2008-03-01 | B6: =A6-A5+B5 -> 60 | C6: 150000 | D6: =BOtabinterpol(F6,2,$N$4:$O$244) -> 284632.624 | E6: =IF(C6<D6,C6,D6) -> 150000 | F6: =F5+(A6-A5)*E5 -> 9000000 | H6: 2008-03-01 | I6: =H6-H5+I5 -> 60 | J6: 150004.8121 | K6: 97.50262876 | L6: 54.36138703 | N6: 17173755.87 | O6: 281805.5003 | Q6: 0.00320794382
A7: 2008-04-01 | B7: 91 | C7: 150000 | D7: 283024.2905 | E7: 150000 | F7: 13650000 | H7: 2008-04-01 | I7: 91 | J7: 149998.2123 | K7: 97.4987552 | L7: 59.62728886 | N7: 25909726.38 | O7: 278734.8906 | Q7: 0.001191812467
A8: 2008-05-01 | B8: 121 | C8: 150000 | D8: 281462.3598 | E8: 150000 | F8: 18150000 | H8: 2008-05-01 | I8: 121 | J8: 150004.1144 | K8: 97.50259627 | L8: 68.62631221 | N8: 34271773.1 | O8: 274395.7578 | Q8: 0.002742872575
A9: 2008-06-01 | B9: 152 | C9: 150000 | D9: 279827.9295 | E9: 150000 | F9: 22800000 | H9: 2008-06-01 | I9: 152 | J9: 150003.5206 | K9: 97.67389403 | L9: 73.59245915 | N9: 42778041.59 | O9: 268116.9743 | Q9: 0.002347003538
A10: 2008-07-01 | B10: 182 | C10: 150000 | D10: 278013.4665 | E10: 150000 | F10: 27300000 | H10: 2008-07-01 | I10: 182 | J10: 150003.9698 | K10: 98.13917531 | L10: 81.94652783 | N10: 50821550.82 | O10: 260912.9889 | Q10: 0.002646442883
A11: 2008-08-01 | B11: 213 | C11: 150000 | D11: 275600.5444 | E11: 150000 | F11: 31950000 | H11: 2008-08-01 | I11: 213 | J11: 150005.1666 | K11: 99.34261425 | L11: 89.63768227 | N11: 58909853.48 | O11: 252879.6136 | Q11: 0.003444294444
A12: 2008-09-01 | B12: 244 | C12: 150000 | D12: 272677.2096 | E12: 150000 | F12: 36600000 | H12: 2008-09-01 | I12: 244 | J12: 149999.0852 | K12: 101.8244343 | L12: 96.53071984 | N12: 66749121.5 | O12: 244870.7708 | Q12: 0.0006098570159
A13: 2008-10-01 | B13: 274 | C13: 150000 | D13: 269355.5973 | E13: 150000 | F13: 41100000 | H13: 2008-10-01 | I13: 274 | J13: 149999.3583 | K13: 105.0717055 | L13: 104.2534763 | N13: 74095244.63 | O13: 236510.6367 | Q13: 0.0004277948874
A14: 2008-11-01 | B14: 305 | C14: 150000 | D14: 265455.2076 | E14: 150000 | F14: 45750000 | H14: 2008-11-01 | I14: 305 | J14: 149999.1588 | K14: 110.4562832 | L14: 112.8714302 | N14: 81427074.37 | O14: 228101.4357 | Q14: 0.0005607836434
A15: 2008-12-01 | B15: 335 | C15: 150000 | D15: 261424.8854 | E15: 150000 | F15: 50250000 | H15: 2008-12-01 | I15: 335 | J15: 150001.2923 | K15: 117.2565964 | L15: 120.4866662 | N15: 88270117.44 | O15: 219878.5494 | Q15: 0.0008615458926
A16: 2009-01-01 | B16: 366 | C16: 150000 | D16: 256862.2363 | E16: 150000 | F16: 54900000 | H16: 2009-01-01 | I16: 366 | J16: 150004.526 | K16: 124.6819213 | L16: 128.4591501 | N16: 95086352.47 | O16: 211940.635 | Q16: 0.003017254198
A17: 2009-02-01 | B17: 397 | C17: 150000 | D17: 252225.6198 | E17: 150000 | F17: 59550000 | H17: 2009-02-01 | I17: 397 | J17: 149999.0331 | K17: 133.2610554 | L17: 138.0381501 | N17: 101656512.2 | O17: 204270.5649 | Q17: 0.0006446042165
A18: 2009-03-01 | B18: 425 | C18: 150000 | D18: 247934.7677 | E18: 150000 | F18: 63750000 | H18: 2009-03-01 | I18: 425 | J18: 150032.5078 | K18: 141.8404962 | L18: 146.4003351 | N18: 107376088 | O18: 197757.5423 | Q18: 0.0216671501
A19: 2009-04-01 | B19: 456 | C19: 150000 | D19: 242992.0158 | E19: 150000 | F19: 68400000 | H19: 2009-04-01 | I19: 456 | J19: 150008.8197 | K19: 152.1786519 | L19: 155.7594852 | N19: 113506571.8 | O19: 190896.8411 | Q19: 0.005879447546
A20: 2009-05-01 | B20: 486 | C20: 150000 | D20: 237870.8651 | E20: 150000 | F20: 72900000 | H20: 2009-05-01 | I20: 486 | J20: 150000.4265 | K20: 162.9484309 | L20: 165.1446985 | N20: 119233477 | O20: 184605.1523 | Q20: 0.000284361452
A21: 2009-06-01 | B21: 517 | C21: 150000 | D21: 232548.2244 | E21: 150000 | F21: 77550000 | H21: 2009-06-01 | I21: 517 | J21: 150001.1669 | K21: 174.8960375 | L21: 175.0928127 | N21: 124956236.7 | O21: 178533.5805 | Q21: 0.0007779296442
A22: 2009-07-01 | B22: 547 | C22: 150000 | D22: 227352.9023 | E22: 150000 | F22: 82050000 | H22: 2009-07-01 | I22: 547 | J22: 150001.229 | K22: 187.1703199 | L22: 184.9753366 | N22: 130312244.2 | O22: 173021.4832 | Q22: 0.0008193239037
A23: 2009-08-01 | B23: 578 | C23: 150000 | D23: 221765.2681 | E23: 150000 | F23: 86700000 | H23: 2009-08-01 | I23: 578 | J23: 150002.0541 | K23: 200.5837639 | L23: 195.5779235 | N23: 135675910.1 | O23: 167551.3228 | Q23: 0.001369401828
A24: 2009-09-01 | B24: 609 | C24: 150000 | D24: 216291.8415 | E24: 150000 | F24: 91350000 | H24: 2009-09-01 | I24: 609 | J24: 150001.65 | K24: 214.7457396 | L24: 206.5381505 | N24: 140870001.1 | O24: 162400.4489 | Q24: 0.001100017684
A25: 2009-10-01 | B25: 639 | C25: 150000 | D25: 211049.1453 | E25: 150000 | F25: 95850000 | H25: 2009-10-01 | I25: 639 | J25: 150003.7166 | K25: 229.2089413 | L25: 217.5021441 | N25: 145742014.6 | O25: 157501.4705 | Q25: 0.002477679685
A26: 2009-11-01 | B26: 670 | C26: 150000 | D26: 205620.6887 | E26: 150000 | F26: 100500000 | H26: 2009-11-01 | I26: 670 | J26: 150003.1968 | K26: 244.8549078 | L26: 229.0743887 | N26: 150624560.2 | O26: 152621.9644 | Q26: 0.002131139005
A27: 2009-12-01 | B27: 700 | C27: 150000 | D27: 200463.2525 | E27: 150000 | F27: 105000000 | H27: 2009-12-01 | I27: 700 | J27: 150003.7314 | K27: 260.6046918 | L27: 240.6727305 | N27: 155203219.1 | O27: 148107.7681 | Q27: 0.002487562126
A28: 2010-01-01 | B28: 731 | C28: 150000 | D28: 195212.7789 | E28: 150000 | F28: 109650000 | H28: 2010-01-01 | I28: 731 | J28: 150003.0925 | K28: 277.6316309 | L28: 253.1510052 | N28: 159794559.9 | O28: 143729.7841 | Q28: 0.002061620611
A29: 2010-02-01 | B29: 762 | C29: 150000 | D29: 190025.1655 | E29: 150000 | F29: 114300000 | H29: 2010-02-01 | I29: 762 | J29: 150004.2818 | K29: 295.5675465 | L29: 266.6647895 | N29: 164250183.2 | O29: 139459.0912 | Q29: 0.002854479476
A30: 2010-03-01 | B30: 790 | C30: 150000 | D30: 185410.9643 | E30: 150000 | F30: 118500000 | H30: 2010-03-01 | I30: 790 | J30: 150000.6349 | K30: 311.7359968 | L30: 277.8187041 | N30: 168155037.8 | O30: 135632.551 | Q30: 0.0004232778804
A31: 2010-04-01 | B31: 821 | C31: 150000 | D31: 180449.9105 | E31: 150000 | F31: 123150000 | H31: 2010-04-01 | I31: 821 | J31: 150001.87 | K31: 330.9438032 | L31: 292.7382976 | N31: 172359646.9 | O31: 131647.715 | Q31: 0.001246684408
A32: 2010-05-01 | B32: 851 | C32: 150000 | D32: 175761.313 | E32: 150000 | F32: 127650000 | H32: 2010-05-01 | I32: 851 | J32: 150002.7624 | K32: 350.1272902 | L32: 306.6714216 | N32: 176309078.3 | O32: 127927.1956 | Q32: 0.001841546912
A33: 2010-06-01 | B33: 882 | C33: 150000 | D33: 170994.2609 | E33: 150000 | F33: 132300000 | H33: 2010-06-01 | I33: 882 | J33: 150004.0828 | K33: 370.7696591 | L33: 321.6260711 | N33: 180274821.4 | O33: 124268.5049 | Q33: 0.002721791023
A34: 2010-07-01 | B34: 912 | C34: 150000 | D34: 166436.5859 | E34: 150000 | F34: 136800000 | H34: 2010-07-01 | I34: 912 | J34: 150005.2388 | K34: 391.5309163 | L34: 336.5610371 | N34: 184002876.5 | O34: 120939.9208 | Q34: 0.003492408621
A35: 2010-08-01 | B35: 943 | C35: 150000 | D35: 161817.2399 | E35: 150000 | F35: 141450000 | H35: 2010-08-01 | I35: 943 | J35: 149997.8249 | K35: 413.7983277 | L35: 352.5584851 | N35: 187752014.1 | O35: 117711.4617 | Q35: 0.0014500573
A36: 2010-09-01 | B36: 974 | C36: 150000 | D36: 157143.708 | E36: 150000 | F36: 146100000 | H36: 2010-09-01 | I36: 974 | J36: 149996.3557 | K36: 437.00677 | L36: 369.2693522 | N36: 191401069.4 | O36: 114676.1468 | Q36: 0.002429625673
A37: 2010-10-01 | B37: 1004 | C37: 150000 | D37: 152646.5093 | E37: 150000 | F37: 150600000 | H37: 2010-10-01 | I37: 1004 | J37: 150013.5037 | K37: 460.3184959 | L37: 386.679088 | N37: 194841353.8 | O37: 111866.3917 | Q37: 0.009001658833
A38: 2010-11-01 | B38: 1035 | C38: 150000 | D38: 148063.1611 | E38: 148063.1611 | F38: 155250000 | H38: 2010-11-01 | I38: 1035 | J38: 145418.1858 | K38: 470.4721325 | L38: 391.5166167 | N38: 198309211.9 | O38: 109112.4932 | Q38: 1.818875156
A39: 2010-12-01 | B39: 1065 | C39: 150000 | D39: 143827.6784 | E39: 143827.6784 | F39: 159691894.8 | H39: 2010-12-01 | I39: 1065 | J39: 141194.0065 | K39: 479.1544859 | L39: 394.9856622 | N39: 201582586.7 | O39: 106596.6254 | Q39: 1.865285874
A40: 2011-01-01 | B40: 1096 | C40: 150000 | D40: 139554.5864 | E40: 139554.5864 | F40: 164150552.9 | H40: 2011-01-01 | I40: 1096 | J40: 136989.8116 | K40: 487.5627603 | L40: 398.71744 | N40: 204887082.1 | O40: 104072.5976 | Q40: 1.872237625
A41: 2011-02-01 | B41: 1127 | C41: 150000 | D41: 135327.6593 | E41: 135327.6593 | F41: 168476745 | H41: 2011-02-01 | I41: 1127 | J41: 133037.8122 | K41: 495.6700927 | L41: 402.4812198 | N41: 208113332.6 | O41: 101609.5677 | Q41: 1.72120017
A42: 2011-03-01 | B42: 1155 | C42: 150000 | D42: 131736.5433 | E42: 131736.5433 | F42: 172265919.5 | H42: 2011-03-01 | I42: 1155 | J42: 129656.2944 | K42: 502.8170302 | L42: 405.9619349 | N42: 210958400.5 | O42: 99642.9924 | Q42: 1.604433432
A43: 2011-04-01 | B43: 1186 | C43: 150000 | D43: 127889.6709 | E43: 127889.6709 | F43: 176349752.3 | H43: 2011-04-01 | I43: 1186 | J43: 126101.9397 | K43: 510.3835075 | L43: 409.7504013 | N43: 214047333.3 | O43: 97366.37056 | Q43: 1.417687301
A44: 2011-05-01 | B44: 1216 | C44: 150000 | D44: 124350.041 | E44: 124350.041 | F44: 180186442.5 | H44: 2011-05-01 | I44: 1216 | J44: 122747.6513 | K44: 517.0702765 | L44: 413.1113789 | N44: 216968324.4 | O44: 95204.2143 | Q44: 1.305434071
A45: 2011-06-01 | B45: 1247 | C45: 150000 | D45: 120906.8389 | E45: 120906.8389 | F45: 184041293.7 | H45: 2011-06-01 | I45: 1247 | J45: 119470.4731 | K45: 523.6611505 | L45: 416.4425564 | N45: 219919655.1 | O45: 92959.50058 | Q45: 1.202276847
A46: 2011-07-01 | B46: 1277 | C46: 150000 | D46: 117783.3783 | E46: 117783.3783 | F46: 187668498.9 | H46: 2011-07-01 | I46: 1277 | J46: 116476.9329 | K46: 529.9051201 | L46: 419.7597587 | N46: 222708440.1 | O46: 90926.67196 | Q46: 1.121634423
A47: 2011-08-01 | B47: 1308 | C47: 150000 | D47: 114743.761 | E47: 114743.761 | F47: 191319783.6 | H47: 2011-08-01 | I47: 1308 | J47: 113516.9755 | K47: 536.0139317 | L47: 423.0324301 | N47: 225527166.9 | O47: 88935.41557 | Q47: 1.08070666
A48: 2011-09-01 | B48: 1339 | C48: 150000 | D48: 111838.2112 | E48: 111838.2112 | F48: 194876840.2 | H48: 2011-09-01 | I48: 1339 | J48: 110700.6741 | K48: 541.8938378 | L48: 426.2483565 | N48: 228284164.8 | O48: 87022.38133 | Q48: 1.027579205
A49: 2011-10-01 | B49: 1369 | C49: 150000 | D49: 109173.8195 | E49: 109173.8195 | F49: 198231986.6 | H49: 2011-10-01 | I49: 1369 | J49: 108098.1091 | K49: 547.3514885 | L49: 429.2953154 | N49: 230894836.2 | O49: 85193.45339 | Q49: 0.9951241579
A50: 2011-11-01 | B50: 1400 | C50: 150000 | D50: 106570.8174 | E50: 106570.8174 | F50: 201616375 | H50: 2011-11-01 | I50: 1400 | J50: 105526.7236 | K50: 552.7622965 | L50: 432.3019118 | N50: 233535833.3 | O50: 83338.77184 | Q50: 0.9894117475
A51: 2011-12-01 | B51: 1430 | C51: 150000 | D51: 104128.8012 | E51: 104128.8012 | F51: 204813499.5 | H51: 2011-12-01 | I51: 1430 | J51: 103161.6236 | K51: 557.9618425 | L51: 435.2644026 | N51: 236035996.4 | O51: 81578.48364 | Q51: 0.9375362314
A52: 2012-01-01 | B52: 1461 | C52: 150000 | D52: 101664.413 | E52: 101664.413 | F52: 208041492.3 | H52: 2012-01-01 | I52: 1461 | J52: 100819.7475 | K52: 563.1915707 | L52: 438.2438246 | N52: 238564929.4 | O52: 79798.4282 | Q52: 0.8377977427
A53: 2012-02-01 | B53: 1492 | C53: 150000 | D53: 99470.02095 | E53: 99470.02095 | F53: 211193089.1 | H53: 2012-02-01 | I53: 1492 | J53: 98662.79791 | K53: 568.7498017 | L53: 441.5185706 | N53: 241038680.7 | O53: 78102.34509 | Q53: 0.8181635445
A54: 2012-03-01 | B54: 1521 | C54: 150000 | D54: 97343.87812 | E54: 97343.87812 | F54: 214077719.7 | H54: 2012-03-01 | I54: 1521 | J54: 96642.6128 | K54: 573.375015 | L54: 444.2260098 | N54: 243303648.7 | O54: 76567.46031 | Q54: 0.7256274388
A55: 2012-04-01 | B55: 1552 | C55: 150000 | D55: 95107.57881 | E55: 95107.57881 | F55: 217095380 | H55: 2012-04-01 | I55: 1552 | J55: 94479.52977 | K55: 577.5926265 | L55: 446.5686661 | N55: 245677240 | O55: 74985.07416 | Q55: 0.6647461514
A56: 2012-05-01 | B56: 1582 | C56: 150000 | D56: 92938.39641 | E56: 92938.39641 | F56: 219948607.3 | H56: 2012-05-01 | I56: 1582 | J56: 92459.03685 | K56: 581.3347528 | L56: 448.6700595 | N56: 247926792.2 | O56: 73526.59928 | Q56: 0.5184561524
A57: 2012-06-01 | B57: 1613 | C57: 150000 | D57: 90841.01101 | E57: 90841.01101 | F57: 222829697.6 | H57: 2012-06-01 | I57: 1613 | J57: 90384.10624 | K57: 584.5663344 | L57: 450.4383624 | N57: 250206116.8 | O57: 72082.83027 | Q57: 0.5055145161
A58: 2012-07-01 | B58: 1643 | C58: 150000 | D58: 88916.15266 | E58: 88916.15266 | F58: 225554927.9 | H58: 2012-07-01 | I58: 1643 | J58: 88438.24541 | K58: 587.4187863 | L58: 451.9438275 | N58: 252368601.7 | O58: 70837.73713 | Q58: 0.5403852653
A59: 2012-08-01 | B59: 1674 | C59: 150000 | D59: 87003.35145 | E59: 87003.35145 | F59: 228311328.7 | H59: 2012-08-01 | I59: 1674 | J59: 86486.35266 | K59: 590.0126837 | L59: 453.2741854 | N59: 254564571.6 | O59: 69409.34065 | Q59: 0.5977807733
A60: 2012-09-01 | B60: 1705 | C60: 150000 | D60: 85113.67859 | E60: 85113.67859 | F60: 231008432.6 | H60: 2012-09-01 | I60: 1705 | J60: 84596.21289 | K60: 592.3428023 | L60: 454.4506435 | N60: 256716261.1 | O60: 68393.63714 | Q60: 0.6116889627
A61: 2012-10-01 | B61: 1735 | C61: 150000 | D61: 83320.45925 | E61: 83320.45925 | F61: 233561842.9 | H61: 2012-10-01 | I61: 1735 | J61: 82790.36788 | K61: 594.2618232 | L61: 455.3266429 | N61: 258768070.2 | O61: 67154.76678 | Q61: 0.6402814622
A62: 2012-11-01 | B62: 1766 | C62: 150000 | D62: 81501.9155 | E62: 81501.9155 | F62: 236144777.2 | H62: 2012-11-01 | I62: 1766 | J62: 80975.52419 | K62: 596.0248734 | L62: 456.0821449 | N62: 260849868 | O62: 65957.26575 | Q62: 0.6500622452
A63: 2012-12-01 | B63: 1796 | C63: 150000 | D63: 79781.35241 | E63: 79781.35241 | F63: 238589834.6 | H63: 2012-12-01 | I63: 1796 | J63: 79288.28525 | K63: 597.6965969 | L63: 456.9397461 | N63: 262828586 | O63: 64858.23407 | Q63: 0.6218663367
A64: 2013-01-01 | B64: 1827 | C64: 150000 | D64: 78085.82649 | E64: 78085.82649 | F64: 241063056.6 | H64: 2013-01-01 | I64: 1827 | J64: 77594.2903 | K64: 599.2568414 | L64: 458.9771387 | N64: 264839191.2 | O64: 63574.79722 | Q64: 0.6334695314
A65: 2013-02-01 | B65: 1858 | C65: 150000 | D65: 76447.41528 | E65: 76447.41528 | F65: 243483717.2 | H65: 2013-02-01 | I65: 1858 | J65: 75965.92067 | K65: 600.7615072 | L65: 461.1892295 | N65: 266810009.9 | O65: 62486.30893 | Q65: 0.6338297664
A66: 2013-03-01 | B66: 1886 | C66: 150000 | D66: 75020.40411 | E66: 75020.40411 | F66: 245624244.8 | H66: 2013-03-01 | I66: 1886 | J66: 74554.58901 | K66: 602.16775 | L66: 464.3643725 | N66: 268559626.6 | O66: 61537.44766 | Q66: 0.6247973553
A67: 2013-04-01 | B67: 1917 | C67: 150000 | D67: 73511.97671 | E67: 73511.97671 | F67: 247949877.3 | H67: 2013-04-01 | I67: 1917 | J67: 73225.67441 | K67: 605.0645009 | L67: 469.4932187 | N67: 270467287.5 | O67: 60894.49903 | Q67: 0.3909862254
A68: 2013-05-01 | B68: 1947 | C68: 150000 | D68: 72115.05877 | E68: 72115.05877 | F68: 250155236.6 | H68: 2013-05-01 | I68: 1947 | J68: 71665.56172 | K68: 605.2549246 | L68: 474.1050981 | N68: 272294122.4 | O68: 59630.11618 | Q68: 0.6272148521
A69: 2013-06-01 | B69: 1978 | C69: 150000 | D69: 70823.29572 | E69: 70823.29572 | F69: 252390803.5 | H69: 2013-06-01 | I69: 1978 | J69: 70377.66812 | K69: 607.4987821 | L69: 481.711983 | N69: 274142656 | O69: 58621.5363 | Q69: =ABS(E69-J69)*100/J69 -> 0.6331946064
A70: 2013-07-01 | B70: =A70-A69+B69 -> 2008 | C70: 150000 | D70: =BOtabinterpol(F70,2,$N$4:$O$244) -> 69441.25836 | E70: =IF(C70<D70,C70,D70) -> 69441.25836 | F70: =F69+(A70-A69)*E69 -> 254515502.3 | H70: 2013-07-01 | I70: =H70-H69+I69 -> 2008 | J70: 69028.87024 | K70: 608.3838945 | L70: 488.132656 | N70: 275901302.1 | O70: 58159.89159 | Q70: 0.5974139763
A71: 2013-08-01 | B71: 2039 | C71: 150000 | D71: 68416.33316 | E71: 68416.33316 | F71: 256668181.3 | H71: 2013-08-01 | I71: 2039 | J71: 68031.63298 | K71: 612.3297025 | L71: 497.1213995 | N71: 277704258.8 | O71: 57238.62973 | Q71: 0.5654725104
A72: 2013-09-01 | B72: 2070 | C72: 150000 | D72: 67142.67704 | E72: 67142.67704 | F72: 258789087.7 | H72: 2013-09-01 | I72: 2070 | J72: 66848.20342 | K72: 614.1550675 | L72: 506.6171979 | N72: 279478656.3 | O72: 56351.44167 | Q72: 0.4405109044
A73: 2013-10-01 | B73: 2100 | C73: 150000 | D73: 65984.01371 | E73: 65984.01371 | F73: 260803368 | H73: 2013-10-01 | I73: 2100 | J73: 65690.93741 | K73: 615.3356571 | L73: 515.0892747 | N73: 281169199.5 | O73: 55469.5928 | Q73: 0.4461441824
A74: 2013-11-01 | B74: 2131 | C74: 150000 | D74: 64845.28456 | E74: 64845.28456 | F74: 262848872.4 | H74: 2013-11-01 | I74: 2131 | J74: 64492.82274 | K74: 615.8599096 | L74: 522.8917788 | N74: 282888756.9 | O74: 54600.04162 | Q74: 0.5465132495
A75: 2013-12-01 | B75: 2161 | C75: 150000 | D75: 63603.49688 | E75: 63603.49688 | F75: 264794230.9 | H75: 2013-12-01 | I75: 2161 | J75: 63318.99954 | K75: 615.859879 | L75: 529.6876179 | N75: 284526758.2 | O75: 53772.6788 | Q75: 0.449308023
A76: 2014-01-01 | B76: 2192 | C76: 150000 | D76: 62510.64924 | E76: 62510.64924 | F76: 266765939.3 | H76: 2014-01-01 | I76: 2192 | J76: 62493.93457 | K76: 619.1134069 | L76: 539.3544383 | N76: 286193711.2 | O76: 52911.15444 | Q76: 0.02674606809
A77: 2014-02-01 | B77: 2223 | C77: 150000 | D77: 61488.86646 | E77: 61488.86646 | F77: 268703769.5 | H77: 2014-02-01 | I77: 2223 | J77: 61274.18198 | K77: 618.2973709 | L77: 545.4702986 | N77: 287833957 | O77: 52078.21869 | Q77: 0.350366949
A78: 2014-03-01 | B78: 2251 | C78: 150000 | D78: 60908.59712 | E78: 60908.59712 | F78: 270425457.7 | H78: 2014-03-01 | I78: 2251 | J78: 60298.37147 | K78: 618.4691137 | L78: 551.4024453 | N78: 289292147.1 | O78: 51334.27695 | Q78: 1.012010178
A79: 2014-04-01 | B79: 2282 | C79: 150000 | D79: 59619.47579 | E79: 59619.47579 | F79: 272313624.2 | H79: 2014-04-01 | I79: 2282 | J79: 59325.17774 | K79: 619.455399 | L79: 558.7638809 | N79: 290883509.7 | O79: 50529.63288 | Q79: 0.496076143
A80: 2014-05-01 | B80: 2312 | C80: 150000 | D80: 58643.60491 | E80: 58643.60491 | F80: 274102208.5 | H80: 2014-05-01 | I80: 2312 | J80: 58582.28165 | K80: 622.2288571 | L80: 567.496425 | N80: 292399398.7 | O80: 49793.21948 | Q80: 0.104678859
A81: 2014-06-01 | B81: 2343 | C81: 150000 | D81: 58150.25559 | E81: 58150.25559 | F81: 275920160.3 | H81: 2014-06-01 | I81: 2343 | J81: 57900.12173 | K81: 625.9483774 | L81: 577.3001974 | N81: 293942988.5 | O81: 49044.15087 | Q81: 0.4320092121
A82: 2014-07-01 | B82: 2373 | C82: 150000 | D82: 57258.85958 | E82: 57258.85958 | F82: 277664667.9 | H82: 2014-07-01 | I82: 2373 | J82: 57033.48511 | K82: 627.2353395 | L82: 584.504471 | N82: 295414313 | O82: 48351.59579 | Q82: 0.3951616651
A83: 2014-08-01 | B83: 2404 | C83: 150000 | D83: 56370.92329 | E83: 56370.92329 | F83: 279439692.6 | H83: 2014-08-01 | I83: 2404 | J83: 56099.64203 | K83: 627.9377139 | L83: 591.1779696 | N83: 296913212.5 | O83: 47653.83793 | Q83: 0.4835703994
A84: 2014-09-01 | B84: 2435 | C84: 150000 | D84: 55460.49472 | E84: 55460.49472 | F84: 281187191.2 | H84: 2014-09-01 | I84: 2435 | J84: 55217.82645 | K84: 629.0167074 | L84: 598.1714632 | N84: 298390481.5 | O84: 46986.48425 | Q84: 0.4394745081
A85: 2014-10-01 | B85: 2465 | C85: 150000 | D85: 54619.13161 | E85: 54619.13161 | F85: 282851006 | H85: 2014-10-01 | I85: 2465 | J85: 54377.88729 | K85: 629.8194138 | L85: 604.7175304 | N85: 299800076 | O85: 46348.3548 | Q85: 0.4436441463
A86: 2014-11-01 | B86: 2496 | C86: 150000 | D86: 53763.66487 | E86: 53763.66487 | F86: 284544199.1 | H86: 2014-11-01 | I86: 2496 | J86: 53476.99599 | K86: 630.1282493 | L86: 611.0315638 | N86: 301236875 | O86: 45718.28767 | Q86: 0.5360601684
A87: 2014-12-01 | B87: 2526 | C87: 150000 | D87: 52930.07138 | E87: 52930.07138 | F87: 286157109.1 | H87: 2014-12-01 | I87: 2526 | J87: 52652.24729 | K87: 630.4431182 | L87: 617.3193601 | N87: 302608423.6 | O87: 45118.9653 | Q87: 0.52765856
A88: 2015-01-01 | B88: 2557 | C88: 150000 | D88: 52096.50789 | E88: 52096.50789 | F88: 287797941.3 | H88: 2015-01-01 | I88: 2557 | J88: 51805.70024 | K88: 630.4604983 | L88: 623.6404887 | N88: 304007111.5 | O88: 44522.2936 | Q88: 0.56134296
A89: 2015-02-01 | B89: 2588 | C89: 150000 | D89: 51273.20372 | E89: 51273.20372 | F89: 289412933 | H89: 2015-02-01 | I89: 2588 | J89: 50975.44325 | K89: 630.4148022 | L89: 629.9838091 | N89: 305387302.7 | O89: 43941.81253 | Q89: 0.5841253237
A90: 2015-03-01 | B90: 2616 | C90: 150000 | D90: 50547.29309 | E90: 50547.29309 | F90: 290848582.7 | H90: 2015-03-01 | I90: 2616 | J90: 50264.69755 | K90: 630.3545237 | L90: 635.8076456 | N90: 306617673.4 | O90: 43436.10865 | Q90: 0.562214737
A91: 2015-04-01 | B91: 2647 | C91: 150000 | D91: 49785.3822 | E91: 49785.3822 | F91: 292415548.8 | H91: 2015-04-01 | I91: 2647 | J91: 49502.30396 | K91: 630.3748199 | L91: 643.6835478 | N91: 307964192.8 | O91: 42883.52709 | Q91: 0.5718486039
A92: 2015-05-01 | B92: 2677 | C92: 150000 | D92: 49060.59119 | E92: 49060.59119 | F92: 293909110.3 | H92: 2015-05-01 | I92: 2677 | J92: 48789.12444 | K92: 630.4019958 | L92: 650.9691997 | N92: 309250698.6 | O92: 42377.01769 | Q92: 0.5564083114
A93: 2015-06-01 | B93: 2708 | C93: 150000 | D93: 48344.29859 | E93: 48344.29859 | F93: 295429988.6 | H93: 2015-06-01 | I93: 2708 | J93: 48081.05934 | K93: 630.4902969 | L93: 658.3089735 | N93: 310564386.1 | O93: 41862.16129 | Q93: 0.547490547
A94: 2015-07-01 | B94: 2738 | C94: 150000 | D94: 47669.15096 | E94: 47669.15096 | F94: 296880317.6 | H94: 2015-07-01 | I94: 2738 | J94: 47414.44591 | K94: 630.6376112 | L94: 665.3694864 | N94: 311820251 | O94: 41380.51702 | Q94: 0.5371887165
A95: 2015-08-01 | B95: 2769 | C95: 150000 | D95: 47001.13003 | E95: 47001.13003 | F95: 298358061.2 | H95: 2015-08-01 | I95: 2769 | J95: 46751.1545 | K95: 630.7908459 | L95: 672.6901092 | N95: 313103047 | O95: 40889.60098 | Q95: 0.5346938115
A96: 2015-09-01 | B96: 2800 | C96: 150000 | D96: 46341.76808 | E96: 46341.76808 | F96: 299815096.3 | H96: 2015-09-01 | I96: 2800 | J96: 46104.74717 | K96: 631.0041585 | L96: 680.0255495 | N96: 314370624.6 | O96: 40417.44362 | Q96: 0.5140922079
A97: 2015-10-01 | B97: 2830 | C97: 150000 | D97: 45732.11235 | E97: 45732.11235 | F97: 301205349.3 | H97: 2015-10-01 | I97: 2830 | J97: 45493.77757 | K97: 631.2518888 | L97: 687.8968467 | N97: 315583147.9 | O97: 39962.41659 | Q97: 0.5238843432
A98: 2015-11-01 | B98: 2861 | C98: 150000 | D98: 45112.728 | E98: 45112.728 | F98: 302623044.8 | H98: 2015-11-01 | I98: 2861 | J98: 44882.65047 | K98: 631.563394 | L98: 696.5457154 | N98: 316821982.8 | O98: 39540.98826 | Q98: 0.5126201956
A99: 2015-12-01 | B99: 2891 | C99: 150000 | D99: 44535.3836 | E99: 44535.3836 | F99: 303976426.6 | H99: 2015-12-01 | I99: 2891 | J99: 44306.85657 | K99: 631.886728 | L99: 704.7122822 | N99: 318008212.5 | O99: 39093.80468 | Q99: 0.5157825211
A100: 2016-01-01 | B100: 2922 | C100: 150000 | D100: 43954.54733 | E100: 43954.54733 | F100: 305357023.5 | H100: 2016-01-01 | I100: 2922 | J100: 43738.48147 | K100: 632.2533246 | L100: 712.9235575 | N100: 319220120.4 | O100: 38637.8024 | Q100: 0.4939948692
A101: 2016-02-01 | B101: 2953 | C101: 150000 | D101: 43394.2743 | E101: 43394.2743 | F101: 306719614.5 | H101: 2016-02-01 | I101: 2953 | J101: 43187.40391 | K101: 632.6564752 | L101: 720.9220449 | N101: 320417892.3 | O101: 38175.71025 | Q101: 0.4790063087
A102: 2016-03-01 | B102: 2982 | C102: 150000 | D102: 42878.07197 | E102: 42878.07197 | F102: 307978048.5 | H102: 2016-03-01 | I102: 2982 | J102: 42687.36294 | K102: 632.9519258 | L102: 728.0335276 | N102: 321524987.9 | O102: 37759.6155 | Q102: 0.4467575922
A103: 2016-04-01 | B103: 3013 | C103: 150000 | D103: 42354.8469 | E103: 42354.8469 | F103: 309307268.7 | H103: 2016-04-01 | I103: 3013 | J103: 42159.37565 | K103: 633.2772582 | L103: 735.312272 | N103: 322695536 | O103: 37331.69476 | Q103: 0.4636483529
A104: 2016-05-01 | B104: 3043 | C104: 150000 | D104: 41856.9731 | E104: 41856.9731 | F104: 310577914.1 | H104: 2016-05-01 | I104: 3043 | J104: 41666.94816 | K104: 633.6222944 | L104: 742.0367551 | N104: 323815486.8 | O104: 36932.81974 | Q104: 0.4560567751
A105: 2016-06-01 | B105: 3074 | C105: 150000 | D105: 41359.38121 | E105: 41359.38121 | F105: 311875480.3 | H105: 2016-06-01 | I105: 3074 | J105: 41164.52675 | K105: 634.0445834 | L105: 748.6710633 | N105: 324960404.2 | O105: 36521.16263 | Q105: 0.4733552758
A106: 2016-07-01 | B106: 3104 | C106: 150000 | D106: 40884.67866 | E106: 40884.67866 | F106: 313116261.7 | H106: 2016-07-01 | I106: 3104 | J106: 40697.43971 | K106: 634.4836289 | L106: 754.7685864 | N106: 326056039.1 | O106: 36136.57712 | Q106: 0.4600755036
A107: 2016-08-01 | B107: 3135 | C107: 150000 | D107: 40412.54176 | E107: 40412.54176 | F107: 314383686.7 | H107: 2016-08-01 | I107: 3135 | J107: 40223.46097 | K107: 635.0202927 | L107: 760.7677939 | N107: 327176273 | O107: 35756.8991 | Q107: 0.4700758934
A108: 2016-09-01 | B108: 3166 | C108: 150000 | D108: 39944.27554 | E108: 39944.27554 | F108: 315636475.5 | H108: 2016-09-01 | I108: 3166 | J108: 39751.17008 | K108: 635.60307 | L108: 766.4331184 | N108: 328284736.9 | O108: 35388.58992 | Q108: 0.4857855955
A109: 2016-10-01 | B109: 3196 | C109: 150000 | D109: 39536.15503 | E109: 39536.15503 | F109: 316834803.8 | H109: 2016-10-01 | I109: 3196 | J109: 39344.60999 | K109: 636.762758 | L109: 772.4768353 | N109: 329346394.6 | O109: 35043.59028 | Q109: 0.4868393475
A110: 2016-11-01 | B110: 3227 | C110: 150000 | D110: 39074.15893 | E110: 39074.15893 | F110: 318060424.6 | H110: 2016-11-01 | I110: 3227 | J110: 38889.91008 | K110: 637.3382644 | L110: 777.6943974 | N110: 330432745.9 | O110: 34693.16705 | Q110: 0.4737703189
A111: 2016-12-01 | B111: 3257 | C111: 150000 | D111: 38632.96883 | E111: 38632.96883 | F111: 319232649.4 | H111: 2016-12-01 | I111: 3257 | J111: 38439.58045 | K111: 637.6286897 | L111: 782.1892768 | N111: 331473540.9 | O111: 34371.91436 | Q111: 0.5030969896
A112: 2017-01-01 | B112: 3288 | C112: 150000 | D112: 38171.05765 | E112: 38171.05765 | F112: 320430271.4 | H112: 2017-01-01 | I112: 3288 | J112: 37983.68349 | K112: 637.8624138 | L112: 786.541318 | N112: 332539070.2 | O112: 34046.04212 | Q112: 0.493301713
A113: 2017-02-01 | B113: 3319 | C113: 150000 | D113: 37727.23075 | E113: 37727.23075 | F113: 321613574.2 | H113: 2017-02-01 | I113: 3319 | J113: 37545.56134 | K113: 638.1500464 | L113: 790.7518285 | N113: 333594497.5 | O113: 33722.85955 | Q113: 0.4838638829
A114: 2017-03-01 | B114: 3347 | C114: 150000 | D114: 37341.05319 | E114: 37341.05319 | F114: 322669936.6 | H114: 2017-03-01 | I114: 3347 | J114: 37156.59871 | K114: 638.4380671 | L114: 794.3943986 | N114: 334538737.6 | O114: 33427.39285 | Q114: 0.4964245381
A115: 2017-04-01 | B115: 3378 | C115: 150000 | D115: 36928.49705 | E115: 36928.49705 | F115: 323827509.3 | H115: 2017-04-01 | I115: 3378 | J115: 36740.98725 | K115: 638.6537507 | L115: 798.083484 | N115: 335574986.8 | O115: 33118.71939 | Q115: 0.5103558939
A116: 2017-05-01 | B116: 3408 | C116: 150000 | D116: 36530.16582 | E116: 36530.16582 | F116: 324935364.2 | H116: 2017-05-01 | I116: 3408 | J116: 36348.91342 | K116: 638.9079716 | L116: 801.4834146 | N116: 336568548.4 | O116: 32813.50331 | Q116: 0.4986459809
A117: 2017-06-01 | B117: 3439 | C117: 150000 | D117: 36132.59126 | E117: 36132.59126 | F117: 326067799.3 | H117: 2017-06-01 | I117: 3439 | J117: 35955.4823 | K117: 639.2318552 | L117: 804.8369674 | N117: 337585767 | O117: 32498.35775 | Q117: 0.4925784364
A118: 2017-07-01 | B118: 3469 | C118: 150000 | D118: 35765.20145 | E118: 35765.20145 | F118: 327151777.1 | H118: 2017-07-01 | I118: 3469 | J118: 35590.69782 | K118: 639.5572322 | L118: 808.3549768 | N118: 338560717.7 | O118: 32189.06726 | Q118: 0.4903068378
A119: 2017-08-01 | B119: 3500 | C119: 150000 | D119: 35396.64366 | E119: 35396.64366 | F119: 328260498.3 | H119: 2017-08-01 | I119: 3500 | J119: 35224.78359 | K119: 639.9571388 | L119: 811.7451312 | N119: 339558578.8 | O119: 31889.7618 | Q119: 0.4878953374
A120: 2017-09-01 | B120: 3531 | C120: 150000 | D120: 35039.91309 | E120: 35039.91309 | F120: 329357794.3 | H120: 2017-09-01 | I120: 3531 | J120: 34871.19634 | K120: 640.412501 | L120: 815.0489615 | N120: 340547161.4 | O120: 31590.37012 | Q120: 0.483828392
A121: 2017-10-01 | B121: 3561 | C121: 150000 | D121: 34700.82943 | E121: 34700.82943 | F121: 330408991.7 | H121: 2017-10-01 | I121: 3561 | J121: 34536.77753 | K121: 640.8704102 | L121: 817.8873126 | N121: 341494872.5 | O121: 31299.66725 | Q121: 0.4750063633
A122: 2017-11-01 | B122: 3592 | C122: 150000 | D122: 34368.49624 | E122: 34368.49624 | F122: 331484717.4 | H122: 2017-11-01 | I122: 3592 | J122: 34205.22745 | K122: 641.389913 | L122: 820.5792118 | N122: 342465162.2 | O122: 31016.21385 | Q122: 0.4773211595
A123: 2017-12-01 | B123: 3622 | C123: 150000 | D123: 34053.16737 | E123: 34053.16737 | F123: 332515772.3 | H123: 2017-12-01 | I123: 3622 | J123: 33878.12597 | K123: 641.7893184 | L123: 822.7645572 | N123: 343395648.6 | O123: 30741.05254 | Q123: 0.5166797011
A124: 2018-01-01 | B124: 3653 | C124: 150000 | D124: 33729.92599 | E124: 33729.92599 | F124: 333571420.5 | H124: 2018-01-01 | I124: 3653 | J124: 33559.7647 | K124: 642.1401822 | L124: 824.7389207 | N124: 344348621.2 | O124: 30458.28969 | Q124: 0.5070395624
A125: 2018-02-01 | B125: 3684 | C125: 150000 | D125: 33404.06604 | E125: 33404.06604 | F125: 334617048.2 | H125: 2018-02-01 | I125: 3684 | J125: 33237.46108 | K125: 642.5340392 | L125: 826.4873465 | N125: 345292828.2 | O125: 30186.20109 | Q125: 0.5012565595
A126: 2018-03-01 | B126: 3712 | C126: 150000 | D126: 33125.45876 | E126: 33125.45876 | F126: 335552362 | H126: 2018-03-01 | I126: 3712 | J126: 32951.99154 | K126: 642.7859075 | L126: 827.7373421 | N126: 346138041.9 | O126: 29938.43399 | Q126: 0.5264240734
A127: 2018-04-01 | B127: 3743 | C127: 150000 | D127: 32810.18745 | E127: 32810.18745 | F127: 336579251.2 | H127: 2018-04-01 | I127: 3743 | J127: 32639.65919 | K127: 643.0129634 | L127: 828.7857492 | N127: 347066133.3 | O127: 29675.144 | Q127: 0.5224572334
A128: 2018-05-01 | B128: 3773 | C128: 150000 | D128: 32505.23868 | E128: 32505.23868 | F128: 337563556.9 | H128: 2018-05-01 | I128: 3773 | J128: 32333.70888 | K128: 643.1507101 | L128: 829.4600225 | N128: 347956387.6 | O128: 29417.26228 | Q128: 0.5304983743
A129: 2018-06-01 | B129: 3804 | C129: 150000 | D129: 32185.91736 | E129: 32185.91736 | F129: 338571219.3 | H129: 2018-06-01 | I129: 3804 | J129: 32026.11413 | K129: 643.2516952 | L129: 829.874861 | N129: 348868322.8 | O129: 29161.88614 | Q129: 0.4989778799
A130: 2018-07-01 | B130: 3834 | C130: 150000 | D130: 31896.29525 | E130: 31896.29525 | F130: 339536796.8 | H130: 2018-07-01 | I130: 3834 | J130: 31727.35371 | K130: 643.3921847 | L130: 830.0873717 | N130: 349743179.3 | O130: 28905.54988 | Q130: 0.5324791184
A131: 2018-08-01 | B131: 3865 | C131: 150000 | D131: 31596.90546 | E131: 31596.90546 | F131: 340525581.9 | H131: 2018-08-01 | I131: 3865 | J131: 31431.98839 | K131: 643.5623675 | L131: 830.1167018 | N131: 350639251.4 | O131: 28657.81422 | Q131: 0.5246790783
A132: 2018-09-01 | B132: 3896 | C132: 150000 | D132: 31296.68356 | E132: 31296.68356 | F132: 341505086 | H132: 2018-09-01 | I132: 3896 | J132: 31142.21082 | K132: 643.7603291 | L132: 829.9435891 | N132: 351527643.6 | O132: 28411.99448 | Q132: 0.4960236668
A133: 2018-10-01 | B133: 3926 | C133: 150000 | D133: 31022.39997 | E133: 31022.39997 | F133: 342443986.5 | H133: 2018-10-01 | I133: 3926 | J133: 30859.23659 | K133: 643.9885189 | L133: 829.6104341 | N133: 352380003.5 | O133: 28171.11563 | Q133: =ABS(E133-J133)*100/J133 -> 0.5287343306
A134: 2018-11-01 | B134: =A134-A133+B133 -> 3957 | C134: 150000 | D134: =BOtabinterpol(F134,2,$N$4:$O$244) -> 30738.07579 | E134: =IF(C134<D134,C134,D134) -> 30738.07579 | F134: =F133+(A134-A133)*E133 -> 343405680.9 | H134: 2018-11-01 | I134: =H134-H133+I133 -> 3957 | J134: 30582.38915 | K134: 644.2682408 | L134: 829.1029365 | N134: 353253308.1 | O134: 27942.68068 | Q134: 0.5090728597
A135: 2018-12-01 | B135: 3987 | C135: 150000 | D135: 30464.46082 | E135: 30464.46082 | F135: 344327823.2 | H135: 2018-12-01 | I135: 3987 | J135: 30307.25669 | K135: 644.5710902 | L135: 828.4241585 | N135: 354091588.5 | O135: 27731.36529 | Q135: 0.5187012948
A136: 2019-01-01 | B136: 4018 | C136: 150000 | D136: 30192.13926 | E136: 30192.13926 | F136: 345272221.5 | H136: 2019-01-01 | I136: 4018 | J136: 30035.91342 | K136: 644.8795605 | L136: 827.515647 | N136: 354951260.8 | O136: 27506.05394 | Q136: 0.5201301679
A137: 2019-02-01 | B137: 4049 | C137: 150000 | D137: 29918.53715 | E137: 29918.53715 | F137: 346208177.8 | H137: 2019-02-01 | I137: 4049 | J137: 29761.12624 | K137: 645.273072 | L137: 826.6611792 | N137: 355803948.5 | O137: 27283.07688 | Q137: 0.52891448
A138: 2019-03-01 | B138: 4077 | C138: 150000 | D138: 29680.88488 | E138: 29680.88488 | F138: 347045896.8 | H138: 2019-03-01 | I138: 4077 | J138: 29523.57342 | K138: 645.6187397 | L138: 825.6760426 | N138: 356567874.6 | O138: 27091.88564 | Q138: 0.5328334039
A139: 2019-04-01 | B139: 4108 | C139: 150000 | D139: 29414.56926 | E139: 29414.56926 | F139: 347966004.3 | H139: 2019-04-01 | I139: 4108 | J139: 29260.03145 | K139: 646.0342574 | L139: 824.3893288 | N139: 357407723.1 | O139: 26874.69084 | Q139: 0.528153271
A140: 2019-05-01 | B140: 4138 | C140: 150000 | D140: 29167.45369 | E140: 29167.45369 | F140: 348848441.3 | H140: 2019-05-01 | I140: 4138 | J140: 29008.86375 | K140: 646.4939116 | L140: 823.0059486 | N140: 358213963.8 | O140: 26668.61872 | Q140: 0.5466947483
A141: 2019-06-01 | B141: 4169 | C141: 150000 | D141: 28902.93641 | E141: 28902.93641 | F141: 349752632.4 | H141: 2019-06-01 | I141: 4169 | J141: 28754.17966 | K141: 646.940134 | L141: 821.3369075 | N141: 359040691 | O141: 26458.78947 | Q141: 0.5173395727
A142: 2019-07-01 | B142: 4199 | C142: 150000 | D142: 28663.2139 | E142: 28663.2139 | F142: 350619720.5 | H142: 2019-07-01 | I142: 4199 | J142: 28512.82547 | K142: 647.4527194 | L142: 819.6551997 | N142: 359834454.7 | O142: 26274.27532 | Q142: 0.5274413398
A143: 2019-08-01 | B143: 4230 | C143: 150000 | D143: 28417.3524 | E143: 28417.3524 | F143: 351508280.1 | H143: 2019-08-01 | I143: 4230 | J143: 28267.57667 | K143: 648.0307087 | L143: 817.7575432 | N143: 360648957.2 | O143: 26071.94067 | Q143: 0.5298499013
A144: 2019-09-01 | B144: 4261 | C144: 150000 | D144: 28168.70532 | E144: 28168.70532 | F144: 352389218 | H144: 2019-09-01 | I144: 4261 | J144: 28023.76069 | K144: 648.6249954 | L144: 815.7430528 | N144: 361457187.4 | O144: 25890.22397 | Q144: 0.5172204824
A145: 2019-10-01 | B145: 4291 | C145: 150000 | D145: 27947.65816 | E145: 27947.65816 | F145: 353234279.2 | H145: 2019-10-01 | I145: 4291 | J145: 27795.43766 | K145: 649.3385757 | L145: 813.7079409 | N145: 362233894.1 | O145: 25700.93864 | Q145: 0.5476456308
A146: 2019-11-01 | B146: 4322 | C146: 150000 | D146: 27728.98863 | E146: 27728.98863 | F146: 354100656.6 | H146: 2019-11-01 | I146: 4322 | J146: 27572.62661 | K146: 649.9739277 | L146: 811.4461435 | N146: 363030623.2 | O146: 25515.2002 | Q146: 0.5670914863
A147: 2019-12-01 | B147: 4352 | C147: 150000 | D147: 27510.96407 | E147: 27510.96407 | F147: 354932526.3 | H147: 2019-12-01 | I147: 4352 | J147: 27360.34206 | K147: 650.622554 | L147: 809.1532239 | N147: 363796079.2 | O147: 25344.86302 | Q147: 0.5505121634
A148: 2020-01-01 | B148: 4383 | C148: 150000 | D148: 27287.93614 | E148: 27287.93614 | F148: 355785366.2 | H148: 2020-01-01 | I148: 4383 | J148: 27140.13092 | K148: 651.3020218 | L148: 806.6912253 | N148: 364581769.9 | O148: 25163.7491 | Q148: 0.5446002551
A149: 2020-02-01 | B149: 4414 | C149: 150000 | D149: 27075.48511 | E149: 27075.48511 | F149: 356631292.2 | H149: 2020-02-01 | I149: 4414 | J149: 26930.18504 | K149: 652.0172067 | L149: 804.1654438 | N149: 365361846.2 | O149: 24997.10789 | Q149: 0.5395435312
A150: 2020-03-01 | B150: 4443 | C150: 150000 | D150: 26872.45228 | E150: 26872.45228 | F150: 357416481.2 | H150: 2020-03-01 | I150: 4443 | J150: 26724.07349 | K150: 652.68901 | L150: 801.7101023 | N150: 366086762.3 | O150: 24842.4942 | Q150: 0.5552251953
A151: 2020-04-01 | B151: 4474 | C151: 150000 | D151: 26659.59246 | E151: 26659.59246 | F151: 358249527.3 | H151: 2020-04-01 | I151: 4474 | J151: 26521.1931 | K151: 653.3746661 | L151: 798.9813024 | N151: 366856879.6 | O151: 24673.46144 | Q151: 0.5218443755
A152: 2020-05-01 | B152: 4504 | C152: 150000 | D152: 26456.78476 | E152: 26456.78476 | F152: 359049315 | H152: 2020-05-01 | I152: 4504 | J152: 26321.16849 | K152: 654.0929449 | L152: 796.2986803 | N152: 367597083.5 | O152: 24521.35509 | Q152: 0.515236527
A153: 2020-06-01 | B153: 4535 | C153: 150000 | D153: 26265.57565 | E153: 26265.57565 | F153: 359869475.4 | H153: 2020-06-01 | I153: 4535 | J153: 26128.22206 | K153: 654.8012543 | L153: 793.4075921 | N153: 368357245.5 | O153: 24362.0771 | Q153: 0.5256905532
A154: 2020-07-01 | B154: 4565 | C154: 150000 | D154: 26070.03287 | E154: 26070.03287 | F154: 360657442.6 | H154: 2020-07-01 | I154: 4565 | J154: 25945.07233 | K154: 655.4829665 | L154: 790.5295139 | N154: 369088107.8 | O154: 24209.13774 | Q154: 0.4816349511
A155: 2020-08-01 | B155: 4596 | C155: 150000 | D155: 25888.17047 | E155: 25888.17047 | F155: 361465613.7 | H155: 2020-08-01 | I155: 4596 | J155: 25753.75159 | K155: 656.2503691 | L155: 787.5211002 | N155: 369838591 | O155: 24059.9955 | Q155: 0.5219390106
A156: 2020-09-01 | B156: 4627 | C156: 150000 | D156: 25692.9534 | E156: 25692.9534 | F156: 362268146.9 | H156: 2020-09-01 | I156: 4627 | J156: 25563.72519 | K156: 657.0576218 | L156: 784.4669038 | N156: 370584450.9 | O156: 23905.62682 | Q156: 0.5055140175
A157: 2020-10-01 | B157: 4657 | C157: 150000 | D157: 25513.35045 | E157: 25513.35045 | F157: 363038935.5 | H157: 2020-10-01 | I157: 4657 | J157: 25391.04056 | K157: 657.8132774 | L157: 781.431833 | N157: 371301619.7 | O157: 23761.56878 | Q157: 0.4817049218
A158: 2020-11-01 | B158: 4688 | C158: 150000 | D158: 25337.07846 | E158: 25337.07846 | F158: 363829849.4 | H158: 2020-11-01 | I158: 4688 | J158: 25215.3756 | K158: 658.5930037 | L158: 778.2367496 | N158: 372038228.3 | O158: 23613.7315 | Q158: 0.4826533507
A159: 2020-12-01 | B159: 4718 | C159: 150000 | D159: 25161.99915 | E159: 25161.99915 | F159: 364589961.8 | H159: 2020-12-01 | I159: 4718 | J159: 25048.52259 | K159: 659.3943841 | L159: 775.2616501 | N159: 372746640.3 | O159: 23475.64953 | Q159: 0.4530269566
A160: 2021-01-01 | B160: 4749 | C160: 150000 | D160: 24995.37227 | E160: 24995.37227 | F160: 365369983.7 | H160: 2021-01-01 | I160: 4749 | J160: 24877.21572 | K160: 660.2314872 | L160: 772.1380538 | N160: 373474385.4 | O160: 23327.9663 | Q160: 0.4749589095
A161: 2021-02-01 | B161: 4780 | C161: 150000 | D161: 24829.74668 | E161: 24829.74668 | F161: 366144840.3 | H161: 2021-02-01 | I161: 4780 | J161: 24716.9768 | K161: 661.0425237 | L161: 768.9306591 | N161: 374197552.4 | O161: 23189.34581 | Q161: 0.4562446665
A162: 2021-03-01 | B162: 4808 | C162: 150000 | D162: 24677.15027 | E162: 24677.15027 | F162: 366840073.2 | H162: 2021-03-01 | I162: 4808 | J162: 24564.49063 | K162: 661.8489877 | L162: 766.0499318 | N162: 374846854.1 | O162: 23054.43207 | Q162: 0.4586280272
A163: 2021-04-01 | B163: 4839 | C163: 150000 | D163: 24519.68274 | E163: 24519.68274 | F163: 367605064.8 | H163: 2021-04-01 | I163: 4839 | J163: 24406.77871 | K163: 662.6795003 | L163: 762.7576786 | N163: 375561541.5 | O163: 22918.54186 | Q163: 0.462592894
A164: 2021-05-01 | B164: 4869 | C164: 150000 | D164: 24365.55326 | E164: 24365.55326 | F164: 368340655.3 | H164: 2021-05-01 | I164: 4869 | J164: 24259.57455 | K164: 663.5104938 | L164: 759.5488253 | N164: 376249097.7 | O164: 22774.04355 | Q164: 0.4368531318
A165: 2021-06-01 | B165: 4900 | C165: 150000 | D165: 24207.57182 | E165: 24207.57182 | F165: 369095987.5 | H165: 2021-06-01 | I165: 4900 | J165: 24104.46615 | K165: 664.4062408 | L165: 756.2185664 | N165: 376955093.1 | O165: 22627.35474 | Q165: 0.4277450845
A166: 2021-07-01 | B166: 4930 | C166: 150000 | D166: 24063.24995 | E166: 24063.24995 | F166: 369822214.6 | H166: 2021-07-01 | I166: 4930 | J166: 23954.3401 | K166: 665.2990787 | L166: 753.062568 | N166: 377633913.7 | O166: 22495.94824 | Q166: 0.454656035
A167: 2021-08-01 | B167: 4961 | C167: 150000 | D167: 23908.99532 | E167: 23908.99532 | F167: 370568175.4 | H167: 2021-08-01 | I167: 4961 | J167: 23810.41056 | K167: 666.1738211 | L167: 749.6931297 | N167: 378331288.1 | O167: 22337.75615 | Q167: 0.4140405928
A168: 2021-09-01 | B168: 4992 | C168: 150000 | D168: 23760.01646 | E168: 23760.01646 | F168: 371309354.2 | H168: 2021-09-01 | I168: 4992 | J168: 23656.41154 | K168: 667.1650115 | L168: 746.3581165 | N168: 379023758.5 | O168: 22200.79949 | Q168: 0.4379570383
A169: 2021-10-01 | B169: 5022 | C169: 150000 | D169: 23616.95747 | E169: 23616.95747 | F169: 372022154.7 | H169: 2021-10-01 | I169: 5022 | J169: 23518.266 | K169: 668.0873091 | L169: 743.0795436 | N169: 379689782.5 | O169: 22051.68568 | Q169: 0.4196375343
A170: 2021-11-01 | B170: 5053 | C170: 150000 | D170: 23474.0991 | E170: 23474.0991 | F170: 372754280.4 | H170: 2021-11-01 | I170: 5053 | J170: 23368.63983 | K170: 669.0729681 | L170: 739.6769277 | N170: 380373384.8 | O170: 21924.13764 | Q170: 0.4512854628
A171: 2021-12-01 | B171: 5083 | C171: 150000 | D171: 23331.18928 | E171: 23331.18928 | F171: 373458503.4 | H171: 2021-12-01 | I171: 5083 | J171: 23234.98179 | K171: 670.0141574 | L171: 736.334676 | N171: 381031108.9 | O171: 21771.72044 | Q171: 0.414063094
A172: 2022-01-01 | B172: 5114 | C172: 150000 | D172: 23192.37101 | E172: 23192.37101 | F172: 374181770.2 | H172: 2022-01-01 | I172: 5114 | J172: 23089.58388 | K172: 671.0466479 | L172: 732.9115664 | N172: 381706032.2 | O172: 21650.79466 | Q172: 0.4451666809
A173: 2022-02-01 | B173: 5145 | C173: 150000 | D173: 23044.18742 | E173: 23044.18742 | F173: 374900733.7 | H173: 2022-02-01 | I173: 5145 | J173: 22947.2797 | K173: 672.0909268 | L173: 729.467012 | N173: 382377206.9 | O173: 21498.66594 | Q173: 0.4223059113
A174: 2022-03-01 | B174: 5173 | C174: 150000 | D174: 22921.50241 | E174: 22921.50241 | F174: 375545971 | H174: 2022-03-01 | I174: 5173 | J174: 22819.73522 | K174: 673.0599401 | L174: 726.3583408 | N174: 382979169.5 | O174: 21381.46792 | Q174: 0.4459613121
A175: 2022-04-01 | B175: 5204 | C175: 150000 | D175: 22772.49773 | E175: 22772.49773 | F175: 376256537.6 | H175: 2022-04-01 | I175: 5204 | J175: 22674.28744 | K175: 674.0667825 | L175: 722.8200103 | N175: 383641995 | O175: 21231.19893 | Q175: 0.4331350844
A176: 2022-05-01 | B176: 5234 | C176: 150000 | D176: 22630.55045 | E176: 22630.55045 | F176: 376939712.5 | H176: 2022-05-01 | I176: 5234 | J176: 22539.02638 | K176: 675.0334535 | L176: 719.3820004 | N176: 384278931 | O176: 21107.51665 | Q176: 0.4060693025
A177: 2022-06-01 | B177: 5265 | C177: 150000 | D177: 22494.28191 | E177: 22494.28191 | F177: 377641259.6 | H177: 2022-06-01 | I177: 5265 | J177: 22384.31191 | K177: 675.9733692 | L177: 715.7249275 | N177: 384933264 | O177: 20959.72508 | Q177: 0.4912815859
A178: 2022-07-01 | B178: 5295 | C178: 150000 | D178: 22341.20413 | E178: 22341.20413 | F178: 378316088 | H178: 2022-07-01 | I178: 5295 | J178: 22247.06335 | K178: 676.8449938 | L178: 712.1339489 | N178: 385562055.8 | O178: 20842.04393 | Q178: 0.4231604837
A179: 2022-08-01 | B179: 5326 | C179: 150000 | D179: 22203.78462 | E179: 22203.78462 | F179: 379008665.4 | H179: 2022-08-01 | I179: 5326 | J179: 22098.11185 | K179: 677.8121974 | L179: 708.4732965 | N179: 386208159.1 | O179: 20701.18066 | Q179: 0.4781981894
A180: 2022-09-01 | B180: 5357 | C180: 150000 | D180: 22050.34226 | E180: 22050.34226 | F180: 379696982.7 | H180: 2022-09-01 | I180: 5357 | J180: 21963.4337 | K180: 678.7261606 | L180: 704.7815313 | N180: 386849895.7 | O180: 20581.05458 | Q180: 0.395696602
A181: 2022-10-01 | B181: 5387 | C181: 150000 | D181: 21926.9162 | E181: 21926.9162 | F181: 380358492.9 | H181: 2022-10-01 | I181: 5387 | J181: 21815.02993 | K181: 679.6883013 | L181: 701.4576904 | N181: 387467327.4 | O181: 20454.65495 | Q181: 0.5128861266
A182: 2022-11-01 | B182: 5418 | C182: 150000 | D182: 21770.44503 | E182: 21770.44503 | F182: 381038227.3 | H182: 2022-11-01 | I182: 5418 | J182: 21690.57009 | K182: 680.5984396 | L182: 697.9124859 | N182: 388101421.7 | O182: 20344.77269 | Q182: 0.368247324
A183: 2022-12-01 | B183: 5448 | C183: 150000 | D183: 21653.42694 | E183: 21653.42694 | F183: 381691340.7 | H183: 2022-12-01 | I183: 5448 | J183: 21547.97266 | K183: 681.5651665 | L183: 694.4623693 | N183: 388711764.8 | O183: 20216.51207 | Q183: 0.4893930139
A184: 2023-01-01 | B184: 5479 | C184: 150000 | D184: 21501.97743 | E184: 21501.97743 | F184: 382362596.9 | H184: 2023-01-01 | I184: 5479 | J184: 21410.23907 | K184: 682.3966489 | L184: 690.7114022 | N184: 389338476.7 | O184: 20109.45361 | Q184: 0.4284789201
A185: 2023-02-01 | B185: 5510 | C185: 150000 | D185: 21370.13499 | E185: 21370.13499 | F185: 383029158.2 | H185: 2023-02-01 | I185: 5510 | J185: 21268.19024 | K185: 683.3183153 | L185: 687.0170839 | N185: 389961869.8 | O185: 19985.14175 | Q185: 0.4793297141
A186: 2023-03-01 | B186: 5538 | C186: 150000 | D186: 21234.4801 | E186: 21234.4801 | F186: 383627522 | H186: 2023-03-01 | I186: 5538 | J186: 21153.39127 | K186: 684.0728136 | L186: 683.6150408 | N186: 390521453.8 | O186: 19898.06455 | Q186: 0.3833372634
A187: 2023-04-01 | B187: 5569 | C187: 150000 | D187: 21105.96723 | E187: 21105.96723 | F187: 384285790.9 | H187: 2023-04-01 | I187: 5569 | J187: 20995.84482 | K187: 685.0707711 | L187: 679.9475046 | N187: 391138293.8 | O187: 19772.23719 | Q187: 0.524496228
A188: 2023-05-01 | B188: 5599 | C188: 150000 | D188: 20962.95363 | E188: 20962.95363 | F188: 384918969.9 | H188: 2023-05-01 | I188: 5599 | J188: 20888.69025 | K188: 685.8368994 | L188: 676.2907533 | N188: 391731460.9 | O188: 19669.59284 | Q188: 0.3555195371
A189: 2023-06-01 | B189: 5630 | C189: 150000 | D189: 20840.56887 | E189: 20840.56887 | F189: 385568821.5 | H189: 2023-06-01 | I189: 5630 | J189: 20741.60356 | K189: 686.8086067 | L189: 672.6667843 | N189: 392341218.2 | O189: 19579.21862 | Q189: 0.4771343051
A190: 2023-07-01 | B190: 5660 | C190: 150000 | D190: 20704.25923 | E190: 20704.25923 | F190: 386194038.5 | H190: 2023-07-01 | I190: 5660 | J190: 20628.46652 | K190: 687.6681831 | L190: 669.1281645 | N190: 392928594.8 | O190: 19466.09231 | Q190: 0.3674180671
A191: 2023-08-01 | B191: 5691 | C191: 150000 | D191: 20583.67993 | E191: 20583.67993 | F191: 386835870.6 | H191: 2023-08-01 | I191: 5691 | J191: 20488.44344 | K191: 688.6577864 | L191: 665.5707651 | N191: 393532043.7 | O191: 19351.79537 | Q191: 0.464830266
A192: 2023-09-01 | B192: 5722 | C192: 150000 | D192: 20453.50478 | E192: 20453.50478 | F192: 387473964.7 | H192: 2023-09-01 | I192: 5722 | J192: 20382.78496 | K192: 689.4876384 | L192: 661.9221668 | N192: 394131949.3 | O192: 19261.58913 | Q192: 0.3469585425
A193: 2023-10-01 | B193: 5752 | C193: 150000 | D193: 20347.17309 | E193: 20347.17309 | F193: 388087569.8 | H193: 2023-10-01 | I193: 5752 | J193: 20255.37662 | K193: 690.4496229 | L193: 658.5359989 | N193: 394709797 | O193: 19175.3314 | Q193: 0.4531955435
A194: 2023-11-01 | B194: 5783 | C194: 150000 | D194: 20215.39021 | E194: 20215.39021 | F194: 388718332.2 | H194: 2023-11-01 | I194: 5783 | J194: 20136.2956 | K194: 691.3635577 | L194: 654.9958695 | N194: 395304232.3 | O194: 19069.6665 | Q194: 0.3927962459
A195: 2023-12-01 | B195: 5813 | C195: 150000 | D195: 20111.79099 | E195: 20111.79099 | F195: 389324793.9 | H195: 2023-12-01 | I195: 5813 | J195: 20022.71561 | K195: 692.2953756 | L195: 651.6176323 | N195: 395876322.3 | O195: 19021.66247 | Q195: 0.4448716451
A196: 2024-01-01 | B196: 5844 | C196: 150000 | D196: 19987.85582 | E196: 19987.85582 | F196: 389948259.4 | H196: 2024-01-01 | I196: 5844 | J196: 19930.02229 | K196: 693.1330412 | L196: 648.0871143 | N196: 396465993.8 | O196: 18880.77192 | Q196: 0.2901830023
A197: 2024-02-01 | B197: 5875 | C197: 150000 | D197: 19888.5936 | E197: 19888.5936 | F197: 390567882.9 | H197: 2024-02-01 | I197: 5875 | J197: 19798.16494 | K197: 694.194611 | L197: 644.7180854 | N197: 397051297.7 | O197: 18801.46884 | Q197: =ABS(E197-J197)*100/J197 -> 0.4567527584
A198: 2024-03-01 | B198: =A198-A197+B197 -> 5904 | C198: 150000 | D198: =BOtabinterpol(F198,2,$N$4:$O$244) -> 19771.13691 | E198: =IF(C198<D198,C198,D198) -> 19771.13691 | F198: =F197+(A198-A197)*E197 -> 391144652.1 | H198: 2024-03-01 | I198: =H198-H197+I197 -> 5904 | J198: 19693.17034 | K198: 695.115357 | L198: 641.5745877 | N198: 397596540.3 | O198: 18706.35035 | Q198: 0.395906625
A199: 2024-04-01 | B199: 5935 | C199: 150000 | D199: 19665.72499 | E199: 19665.72499 | F199: 391757557.4 | H199: 2024-04-01 | I199: 5935 | J199: 19588.604 | K199: 696.0617226 | L199: 638.2308833 | N199: 398176437.2 | O199: 18616.6558 | Q199: 0.3937033216
A200: 2024-05-01 | B200: 5965 | C200: 150000 | D200: 19578.00317 | E200: 19578.00317 | F200: 392347529.1 | H200: 2024-05-01 | I200: 5965 | J200: 19482.82098 | K200: 697.005205 | L200: 635.038514 | N200: 398734936.9 | O200: 18527.98191 | Q200: 0.4885442008
... 44 more rows

Sheet Predict_prof_qp_75k
A1: Prediction with production potential curve | H1: From simulator | N1: Production potential curve | Q1: Deviation pot-model | S1: max [%] | T1: =MAX(Q4:Q244) -> 2.350628281
A2: time | B2: days | C2: Desired rate | D2: qmax | E2: actual rate | F2: Np | H2: Date | I2: days | J2: Average Oil Rate | K2: Average Gas Rate | L2: Average Water Rate | N2: Np | O2: qmax | Q2: [%] | S2: average [%] | T2: =AVERAGE(Q4:Q244) -> 0.5671054465
C3: [stb/d] | D3: [stb/d] | E3: [stb/d] | F3: [stb] | J3: stb/d | K3: 1E06 scf/d | L3: stb/d | N3: [stb] | O3: stb/d
A4: 2008-01-01 | B4: 0 | C4: 75000 | D4: =BOtabinterpol(F4,2,$N$4:$O$244) -> 287696.5559 | E4: =IF(C4<D4,C4,D4) -> 75000 | F4: 0 | H4: 2008-01-01 | I4: 0 | J4: 74999.50533 | K4: 48.74974198 | L4: 0.004 | N4: 0 | O4: 287696.5559 | Q4: =ABS(E4-J4)*100/J4 -> 0.0006595640582
A5: 2008-02-01 | B5: =A5-A4+B4 -> 31 | C5: 75000 | D5: =BOtabinterpol(F5,2,$N$4:$O$244) -> 286905.1556 | E5: =IF(C5<D5,C5,D5) -> 75000 | F5: =F4+(A5-A4)*E4 -> 2325000 | H5: 2008-02-01 | I5: =H5-H4+I4 -> 31 | J5: 74998.29007 | K5: 48.74883927 | L5: 13.5225035 | N5: 8918593.232 | O5: 284660.7808 | Q5: =ABS(E5-J5)*100/J5 -> 0.002279954342
A6: 2008-03-01 | B6: =A6-A5+B5 -> 60 | C6: 75000 | D6: =BOtabinterpol(F6,2,$N$4:$O$244) -> 286164.8134 | E6: =IF(C6<D6,C6,D6) -> 75000 | F6: =F5+(A6-A5)*E5 -> 4500000 | H6: 2008-03-01 | I6: =H6-H5+I5 -> 60 | J6: 75002.79447 | K6: 48.7518241 | L6: 14.93917912 | N6: 17173755.87 | O6: 281805.5003 | Q6: 0.00372581656
A7: 2008-04-01 | B7: 91 | C7: 75000 | D7: 285373.4131 | E7: 75000 | F7: 6825000 | H7: 2008-04-01 | I7: 91 | J7: 75001.63156 | K7: 48.75120604 | L7: 17.45018455 | N7: 25909726.38 | O7: 278734.8906 | Q7: 0.002175370995
A8: 2008-05-01 | B8: 121 | C8: 75000 | D8: 284606.6831 | E8: 75000 | F8: 9075000 | H8: 2008-05-01 | I8: 121 | J8: 74999.47716 | K8: 48.7495423 | L8: 19.76968161 | N8: 34271773.1 | O8: 274395.7578 | Q8: 0.0006971191104
A9: 2008-06-01 | B9: 152 | C9: 75000 | D9: 283802.5164 | E9: 75000 | F9: 11400000 | H9: 2008-06-01 | I9: 152 | J9: 75003.22601 | K9: 48.75204237 | L9: 20.46691116 | N9: 42778041.59 | O9: 268116.9743 | Q9: 0.004301165098
A10: 2008-07-01 | B10: 182 | C10: 75000 | D10: 283024.2905 | E10: 75000 | F10: 13650000 | H10: 2008-07-01 | I10: 182 | J10: 75003.17058 | K10: 48.75189194 | L10: 23.00340312 | N10: 50821550.82 | O10: 260912.9889 | Q10: 0.004227266763
A11: 2008-08-01 | B11: 213 | C11: 75000 | D11: 282220.1237 | E11: 75000 | F11: 15975000 | H11: 2008-08-01 | I11: 213 | J11: 75000.9877 | K11: 48.75064377 | L11: 25.10741116 | N11: 58909853.48 | O11: 252879.6136 | Q11: 0.001316920948
A12: 2008-09-01 | B12: 244 | C12: 75000 | D12: 281409.6363 | E12: 75000 | F12: 18300000 | H12: 2008-09-01 | I12: 244 | J12: 75003.79336 | K12: 48.7524045 | L12: 27.87098235 | N12: 66749121.5 | O12: 244870.7708 | Q12: 0.005057563966
A13: 2008-10-01 | B13: 274 | C13: 75000 | D13: 280618.7829 | E13: 75000 | F13: 20550000 | H13: 2008-10-01 | I13: 274 | J13: 75000.66772 | K13: 48.8080381 | L13: 29.32566587 | N13: 74095244.63 | O13: 236510.6367 | Q13: 0.0008902856632
A14: 2008-11-01 | B14: 305 | C14: 75000 | D14: 279801.5678 | E14: 75000 | F14: 22875000 | H14: 2008-11-01 | I14: 305 | J14: 75002.2057 | K14: 48.91355768 | L14: 31.46715247 | N14: 81427074.37 | O14: 228101.4357 | Q14: 0.002940848817
A15: 2008-12-01 | B15: 335 | C15: 75000 | D15: 279010.7144 | E15: 75000 | F15: 25125000 | H15: 2008-12-01 | I15: 335 | J15: 75001.82428 | K15: 49.03345823 | L15: 33.91917567 | N15: 88270117.44 | O15: 219878.5494 | Q15: 0.002432308296
A16: 2009-01-01 | B16: 366 | C16: 75000 | D16: 277935.6303 | E16: 75000 | F16: 27450000 | H16: 2009-01-01 | I16: 366 | J16: 75003.03754 | K16: 49.29418824 | L16: 36.17015591 | N16: 95086352.47 | O16: 211940.635 | Q16: 0.004049892964
A17: 2009-02-01 | B17: 397 | C17: 75000 | D17: 276729.1693 | E17: 75000 | F17: 29775000 | H17: 2009-02-01 | I17: 397 | J17: 75005.06739 | K17: 49.6184278 | L17: 38.21696894 | N17: 101656512.2 | O17: 204270.5649 | Q17: 0.006756056933
A18: 2009-03-01 | B18: 425 | C18: 75000 | D18: 275639.4625 | E18: 75000 | F18: 31875000 | H18: 2009-03-01 | I18: 425 | J18: 75005.04792 | K18: 49.93995768 | L18: 40.3193216 | N18: 107376088 | O18: 197757.5423 | Q18: 0.006730106533
A19: 2009-04-01 | B19: 456 | C19: 75000 | D19: 274433.0014 | E19: 75000 | F19: 34200000 | H19: 2009-04-01 | I19: 456 | J19: 75004.80941 | K19: 50.34145527 | L19: 42.59571625 | N19: 113506571.8 | O19: 190896.8411 | Q19: 0.006412137101
A20: 2009-05-01 | B20: 486 | C20: 75000 | D20: 272787.93 | E20: 75000 | F20: 36450000 | H20: 2009-05-01 | I20: 486 | J20: 75004.88683 | K20: 50.78145705 | L20: 44.85803619 | N20: 119233477 | O20: 184605.1523 | Q20: 0.006515355223
A21: 2009-06-01 | B21: 517 | C21: 75000 | D21: 271071.7637 | E21: 75000 | F21: 38775000 | H21: 2009-06-01 | I21: 517 | J21: 75006.62004 | K21: 51.79675456 | L21: 46.97237818 | N21: 124956236.7 | O21: 178533.5805 | Q21: 0.008825942527
A22: 2009-07-01 | B22: 547 | C22: 75000 | D22: 269410.9575 | E22: 75000 | F22: 41025000 | H22: 2009-07-01 | I22: 547 | J22: 75000.72473 | K22: 52.70719512 | L22: 48.9441884 | N22: 130312244.2 | O22: 173021.4832 | Q22: 0.0009662961066
A23: 2009-08-01 | B23: 578 | C23: 75000 | D23: 267604.7128 | E23: 75000 | F23: 43350000 | H23: 2009-08-01 | I23: 578 | J23: 75000.25654 | K23: 53.74544375 | L23: 51.19003281 | N23: 135675910.1 | O23: 167551.3228 | Q23: 0.000342049794
A24: 2009-09-01 | B24: 609 | C24: 75000 | D24: 265522.3797 | E24: 75000 | F24: 45675000 | H24: 2009-09-01 | I24: 609 | J24: 74999.82576 | K24: 55.00970752 | L24: 53.50088302 | N24: 140870001.1 | O24: 162400.4489 | Q24: 0.0002323270517
A25: 2009-10-01 | B25: 639 | C25: 75000 | D25: 263507.2185 | E25: 75000 | F25: 47925000 | H25: 2009-10-01 | I25: 639 | J25: 75001.61201 | K25: 56.74057888 | L25: 55.81023441 | N25: 145742014.6 | O25: 157501.4705 | Q25: 0.002149303949
A26: 2009-11-01 | B26: 670 | C26: 75000 | D26: 261424.8854 | E26: 75000 | F26: 50250000 | H26: 2009-11-01 | I26: 670 | J26: 74999.68385 | K26: 58.64412562 | L26: 57.95572144 | N26: 150624560.2 | O26: 152621.9644 | Q26: 0.0004215349089
A27: 2009-12-01 | B27: 700 | C27: 75000 | D27: 259245.938 | E27: 75000 | F27: 52500000 | H27: 2009-12-01 | I27: 700 | J27: 75000.77962 | K27: 60.55876842 | L27: 60.27026431 | N27: 155203219.1 | O27: 148107.7681 | Q27: 0.001039477432
A28: 2010-01-01 | B28: 731 | C28: 75000 | D28: 256936.727 | E28: 75000 | F28: 54825000 | H28: 2010-01-01 | I28: 731 | J28: 75001.1573 | K28: 62.66951833 | L28: 62.67880975 | N28: 159794559.9 | O28: 143729.7841 | Q28: 0.001543040601
A29: 2010-02-01 | B29: 762 | C29: 75000 | D29: 254627.516 | E29: 75000 | F29: 57150000 | H29: 2010-02-01 | I29: 762 | J29: 75002.46907 | K29: 65.01317382 | L29: 65.11823082 | N29: 164250183.2 | O29: 139459.0912 | Q29: 0.003291988037
A30: 2010-03-01 | B30: 790 | C30: 75000 | D30: 252532.1093 | E30: 75000 | F30: 59250000 | H30: 2010-03-01 | I30: 790 | J30: 75000.70583 | K30: 67.25506076 | L30: 67.32861792 | N30: 168155037.8 | O30: 135632.551 | Q30: 0.0009410917021
A31: 2010-04-01 | B31: 821 | C31: 75000 | D31: 250156.8161 | E31: 75000 | F31: 61575000 | H31: 2010-04-01 | I31: 821 | J31: 75000.30276 | K31: 69.77488838 | L31: 69.82422419 | N31: 172359646.9 | O31: 131647.715 | Q31: 0.0004036761745
A32: 2010-05-01 | B32: 851 | C32: 75000 | D32: 247858.1453 | E32: 75000 | F32: 63825000 | H32: 2010-05-01 | I32: 851 | J32: 75002.06108 | K32: 72.39854468 | L32: 72.27459384 | N32: 176309078.3 | O32: 127927.1956 | Q32: 0.002748030992
A33: 2010-06-01 | B33: 882 | C33: 75000 | D33: 245482.8522 | E33: 75000 | F33: 66150000 | H33: 2010-06-01 | I33: 882 | J33: 75001.90218 | K33: 75.14348582 | L33: 74.84465459 | N33: 180274821.4 | O33: 124268.5049 | Q33: 0.002536178008
A34: 2010-07-01 | B34: 912 | C34: 75000 | D34: 242992.0158 | E34: 75000 | F34: 68400000 | H34: 2010-07-01 | I34: 912 | J34: 75002.00254 | K34: 78.00165285 | L34: 77.36248606 | N34: 184002876.5 | O34: 120939.9208 | Q34: 0.002669979782
A35: 2010-08-01 | B35: 943 | C35: 75000 | D35: 240346.088 | E35: 75000 | F35: 70725000 | H35: 2010-08-01 | I35: 943 | J35: 75001.74037 | K35: 80.98803384 | L35: 80.03616557 | N35: 187752014.1 | O35: 117711.4617 | Q35: 0.002320436172
A36: 2010-09-01 | B36: 974 | C36: 75000 | D36: 237700.1601 | E36: 75000 | F36: 73050000 | H36: 2010-09-01 | I36: 974 | J36: 74999.84561 | K36: 84.16211246 | L36: 82.70966947 | N36: 191401069.4 | O36: 114676.1468 | Q36: 0.0002058524571
A37: 2010-10-01 | B37: 1004 | C37: 75000 | D37: 235128.8493 | E37: 75000 | F37: 75300000 | H37: 2010-10-01 | I37: 1004 | J37: 75003.42284 | K37: 87.29479735 | L37: 85.43406278 | N37: 194841353.8 | O37: 111866.3917 | Q37: 0.00456358254
A38: 2010-11-01 | B38: 1035 | C38: 75000 | D38: 232462.2036 | E38: 75000 | F38: 77625000 | H38: 2010-11-01 | I38: 1035 | J38: 74999.23678 | K38: 90.64926177 | L38: 88.17986377 | N38: 198309211.9 | O38: 109112.4932 | Q38: 0.001017633528
A39: 2010-12-01 | B39: 1065 | C39: 75000 | D39: 229881.5787 | E39: 75000 | F39: 79875000 | H39: 2010-12-01 | I39: 1065 | J39: 75001.59665 | K39: 93.97131056 | L39: 91.01588116 | N39: 201582586.7 | O39: 106596.6254 | Q39: 0.002128815451
A40: 2011-01-01 | B40: 1096 | C40: 75000 | D40: 227172.656 | E40: 75000 | F40: 82200000 | H40: 2011-01-01 | I40: 1096 | J40: 75001.38248 | K40: 97.45459632 | L40: 93.85950095 | N40: 204887082.1 | O40: 104072.5976 | Q40: 0.001843277259
A41: 2011-02-01 | B41: 1127 | C41: 75000 | D41: 224378.8389 | E41: 75000 | F41: 84525000 | H41: 2011-02-01 | I41: 1127 | J41: 75001.15359 | K41: 101.0270762 | L41: 96.88195484 | N41: 208113332.6 | O41: 101609.5677 | Q41: 0.001538094688
A42: 2011-03-01 | B42: 1155 | C42: 75000 | D42: 221855.3912 | E42: 75000 | F42: 86625000 | H42: 2011-03-01 | I42: 1155 | J42: 75010.89911 | K42: 104.3085814 | L42: 99.56674899 | N42: 210958400.5 | O42: 99642.9924 | Q42: 0.01453003734
A43: 2011-04-01 | B43: 1186 | C43: 75000 | D43: 219086.7854 | E43: 75000 | F43: 88950000 | H43: 2011-04-01 | I43: 1186 | J43: 74930.81294 | K43: 107.9476578 | L43: 102.5363715 | N43: 214047333.3 | O43: 97366.37056 | Q43: 0.0923345975
A44: 2011-05-01 | B44: 1216 | C44: 75000 | D44: 216466.5255 | E44: 75000 | F44: 91200000 | H44: 2011-05-01 | I44: 1216 | J44: 75005.14374 | K44: 111.7106276 | L44: 105.6265 | N44: 216968324.4 | O44: 95204.2143 | Q44: 0.006857854606
A45: 2011-06-01 | B45: 1247 | C45: 75000 | D45: 213758.9236 | E45: 75000 | F45: 93525000 | H45: 2011-06-01 | I45: 1247 | J45: 75002.04395 | K45: 115.5900595 | L45: 108.7287532 | N45: 219919655.1 | O45: 92959.50058 | Q45: 0.002725192666
A46: 2011-07-01 | B46: 1277 | C46: 75000 | D46: 211136.701 | E46: 75000 | F46: 95775000 | H46: 2011-07-01 | I46: 1277 | J46: 75003.64075 | K46: 119.4193067 | L46: 111.7862837 | N46: 222708440.1 | O46: 90926.67196 | Q46: 0.004854093641
A47: 2011-08-01 | B47: 1308 | C47: 75000 | D47: 208422.4727 | E47: 75000 | F47: 98100000 | H47: 2011-08-01 | I47: 1308 | J47: 75003.22586 | K47: 123.4581401 | L47: 115.0215184 | N47: 225527166.9 | O47: 88935.41557 | Q47: 0.004300957614
A48: 2011-09-01 | B48: 1339 | C48: 75000 | D48: 205708.2445 | E48: 75000 | F48: 100425000 | H48: 2011-09-01 | I48: 1339 | J48: 75005.56691 | K48: 127.5501404 | L48: 118.2135522 | N48: 228284164.8 | O48: 87022.38133 | Q48: 0.007421997659
A49: 2011-10-01 | B49: 1369 | C49: 75000 | D49: 203110.7876 | E49: 75000 | F49: 102675000 | H49: 2011-10-01 | I49: 1369 | J49: 75003.61749 | K49: 131.6203657 | L49: 121.427983 | N49: 230894836.2 | O49: 85193.45339 | Q49: 0.004823088015
A50: 2011-11-01 | B50: 1400 | C50: 75000 | D50: 200463.2525 | E50: 75000 | F50: 105000000 | H50: 2011-11-01 | I50: 1400 | J50: 75002.09603 | K50: 135.301686 | L50: 125.1398475 | N50: 233535833.3 | O50: 83338.77184 | Q50: 0.002794626808
A51: 2011-12-01 | B51: 1430 | C51: 75000 | D51: 197901.1218 | E51: 75000 | F51: 107250000 | H51: 2011-12-01 | I51: 1430 | J51: 75003.01707 | K51: 139.9943687 | L51: 128.1354506 | N51: 236035996.4 | O51: 81578.48364 | Q51: 0.004022604477
A52: 2012-01-01 | B52: 1461 | C52: 75000 | D52: 195296.7123 | E52: 75000 | F52: 109575000 | H52: 2012-01-01 | I52: 1461 | J52: 75002.18208 | K52: 144.1788522 | L52: 131.8614872 | N52: 238564929.4 | O52: 79798.4282 | Q52: 0.002909360455
A53: 2012-02-01 | B53: 1492 | C53: 75000 | D53: 192694.7757 | E53: 75000 | F53: 111900000 | H53: 2012-02-01 | I53: 1492 | J53: 74999.51816 | K53: 148.7592862 | L53: 134.4957686 | N53: 241038680.7 | O53: 78102.34509 | Q53: 0.0006424538141
A54: 2012-03-01 | B54: 1521 | C54: 75000 | D54: 190272.3549 | E54: 75000 | F54: 114075000 | H54: 2012-03-01 | I54: 1521 | J54: 74998.95364 | K54: 152.8038197 | L54: 138.5759528 | N54: 243303648.7 | O54: 76567.46031 | Q54: 0.001395166114
A55: 2012-04-01 | B55: 1552 | C55: 75000 | D55: 187718.0649 | E55: 75000 | F55: 116400000 | H55: 2012-04-01 | I55: 1552 | J55: 75017.05369 | K55: 157.5375028 | L55: 140.4850259 | N55: 245677240 | O55: 74985.07416 | Q55: 0.02273308623
A56: 2012-05-01 | B56: 1582 | C56: 75000 | D56: 185246.1714 | E56: 75000 | F56: 118650000 | H56: 2012-05-01 | I56: 1582 | J56: 74998.47385 | K56: 161.898869 | L56: 144.9046702 | N56: 247926792.2 | O56: 73526.59928 | Q56: 0.002034908752
A57: 2012-06-01 | B57: 1613 | C57: 75000 | D57: 182757.4805 | E57: 75000 | F57: 120975000 | H57: 2012-06-01 | I57: 1613 | J57: 75019.50689 | K57: 166.0025043 | L57: 147.3784604 | N57: 250206116.8 | O57: 72082.83027 | Q57: 0.02600242502
A58: 2012-07-01 | B58: 1643 | C58: 75000 | D58: 180370.3391 | E58: 75000 | F58: 123225000 | H58: 2012-07-01 | I58: 1643 | J58: 74998.81834 | K58: 171.8583685 | L58: 151.3477171 | N58: 252368601.7 | O58: 70837.73713 | Q58: 0.00157556998
A59: 2012-08-01 | B59: 1674 | C59: 75000 | D59: 177922.5132 | E59: 75000 | F59: 125550000 | H59: 2012-08-01 | I59: 1674 | J59: 74998.7832 | K59: 174.6742758 | L59: 154.7516471 | N59: 254564571.6 | O59: 69409.34065 | Q59: 0.001622423434
A60: 2012-09-01 | B60: 1705 | C60: 75000 | D60: 175529.7559 | E60: 75000 | F60: 127875000 | H60: 2012-09-01 | I60: 1705 | J60: 74999.86761 | K60: 182.2427083 | L60: 158.0576753 | N60: 256716261.1 | O60: 68393.63714 | Q60: 0.0001765262356
A61: 2012-10-01 | B61: 1735 | C61: 75000 | D61: 173214.1842 | E61: 75000 | F61: 130125000 | H61: 2012-10-01 | I61: 1735 | J61: 74999.75073 | K61: 183.8396546 | L61: 162.432997 | N61: 258768070.2 | O61: 67154.76678 | Q61: 0.0003323570259
A62: 2012-11-01 | B62: 1766 | C62: 75000 | D62: 170841.2827 | E62: 75000 | F62: 132450000 | H62: 2012-11-01 | I62: 1766 | J62: 75001.75976 | K62: 192.5560955 | L62: 164.6019786 | N62: 260849868 | O62: 65957.26575 | Q62: 0.002346294741
A63: 2012-12-01 | B63: 1796 | C63: 75000 | D63: 168546.6095 | E63: 75000 | F63: 134700000 | H63: 2012-12-01 | I63: 1796 | J63: 75000.98735 | K63: 193.1918444 | L63: 170.4067336 | N63: 262828586 | O63: 64858.23407 | Q63: 0.001316444929
A64: 2013-01-01 | B64: 1827 | C64: 75000 | D64: 166213.458 | E64: 75000 | F64: 137025000 | H64: 2013-01-01 | I64: 1827 | J64: 75002.85843 | K64: 202.914271 | L64: 171.7192631 | N64: 264839191.2 | O64: 63574.79722 | Q64: 0.003811090132
A65: 2013-02-01 | B65: 1858 | C65: 75000 | D65: 163907.803 | E65: 75000 | F65: 139350000 | H65: 2013-02-01 | I65: 1858 | J65: 75002.97841 | K65: 203.3736031 | L65: 178.6545193 | N65: 266810009.9 | O65: 62486.30893 | Q65: 0.003971058409
A66: 2013-03-01 | B66: 1886 | C66: 75000 | D66: 161817.2399 | E66: 75000 | F66: 141450000 | H66: 2013-03-01 | I66: 1886 | J66: 75003.1979 | K66: 212.6107257 | L66: 180.1742513 | N66: 268559626.6 | O66: 61537.44766 | Q66: 0.00426368074
A67: 2013-04-01 | B67: 1917 | C67: 75000 | D67: 159479.3719 | E67: 75000 | F67: 143775000 | H67: 2013-04-01 | I67: 1917 | J67: 75003.51079 | K67: 214.5114537 | L67: 186.4792781 | N67: 270467287.5 | O67: 60894.49903 | Q67: 0.004680834668
A68: 2013-05-01 | B68: 1947 | C68: 75000 | D68: 157218.6613 | E68: 75000 | F68: 146025000 | H68: 2013-05-01 | I68: 1947 | J68: 75004.14358 | K68: 223.7289949 | L68: 188.1348456 | N68: 272294122.4 | O68: 59630.11618 | Q68: 0.005524468248
A69: 2013-06-01 | B69: 1978 | C69: 75000 | D69: 154895.1086 | E69: 75000 | F69: 148350000 | H69: 2013-06-01 | I69: 1978 | J69: 75003.89514 | K69: 225.3615313 | L69: 194.8570111 | N69: 274142656 | O69: 58621.5363 | Q69: =ABS(E69-J69)*100/J69 -> 0.005193247241
A70: 2013-07-01 | B70: =A70-A69+B69 -> 2008 | C70: 75000 | D70: =BOtabinterpol(F70,2,$N$4:$O$244) -> 152646.5093 | E70: =IF(C70<D70,C70,D70) -> 75000 | F70: =F69+(A70-A69)*E69 -> 150600000 | H70: 2013-07-01 | I70: =H70-H69+I69 -> 2008 | J70: 74992.76416 | K70: 234.9500128 | L70: 196.7594196 | N70: 275901302.1 | O70: 58159.89159 | Q70: 0.009648721147
A71: 2013-08-01 | B71: 2039 | C71: 75000 | D71: 150353.9123 | E71: 75000 | F71: 152925000 | H71: 2013-08-01 | I71: 2039 | J71: 75004.77242 | K71: 236.4183363 | L71: 203.4256587 | N71: 277704258.8 | O71: 57238.62973 | Q71: 0.006362825145
A72: 2013-09-01 | B72: 2070 | C72: 75000 | D72: 148063.1611 | E72: 75000 | F72: 155250000 | H72: 2013-09-01 | I72: 2070 | J72: 75005.15145 | K72: 246.4202943 | L72: 205.8556802 | N72: 279478656.3 | O72: 56351.44167 | Q72: 0.006868124803
A73: 2013-10-01 | B73: 2100 | C73: 75000 | D73: 145917.7172 | E73: 75000 | F73: 157500000 | H73: 2013-10-01 | I73: 2100 | J73: 75005.29662 | K73: 247.7998851 | L73: 212.1457384 | N73: 281169199.5 | O73: 55469.5928 | Q73: 0.007061662857
A74: 2013-11-01 | B74: 2131 | C74: 75000 | D74: 143700.6074 | E74: 75000 | F74: 159825000 | H74: 2013-11-01 | I74: 2131 | J74: 75008.88799 | K74: 258.199799 | L74: 214.5119384 | N74: 282888756.9 | O74: 54600.04162 | Q74: 0.01184925113
A75: 2013-12-01 | B75: 2161 | C75: 75000 | D75: 141543.9935 | E75: 75000 | F75: 162075000 | H75: 2013-12-01 | I75: 2161 | J75: 75006.41419 | K75: 259.5355763 | L75: 221.2655594 | N75: 284526758.2 | O75: 53772.6788 | Q75: 0.008551527838
A76: 2014-01-01 | B76: 2192 | C76: 75000 | D76: 139312.2791 | E76: 75000 | F76: 164400000 | H76: 2014-01-01 | I76: 2192 | J76: 75000.49161 | K76: 270.3405736 | L76: 223.5912943 | N76: 286193711.2 | O76: 52911.15444 | Q76: 0.0006554739289
A77: 2014-02-01 | B77: 2223 | C77: 75000 | D77: 137033.9085 | E77: 75000 | F77: 166725000 | H77: 2014-02-01 | I77: 2223 | J77: 75007.87633 | K77: 272.1208715 | L77: 230.7709155 | N77: 287833957 | O77: 52078.21869 | Q77: 0.01050067561
A78: 2014-03-01 | B78: 2251 | C78: 75000 | D78: 134997.6075 | E78: 75000 | F78: 168825000 | H78: 2014-03-01 | I78: 2251 | J78: 75000.78426 | K78: 282.337365 | L78: 232.9891031 | N78: 289292147.1 | O78: 51334.27695 | Q78: 0.001045667398
A79: 2014-04-01 | B79: 2282 | C79: 75000 | D79: 132794.1342 | E79: 75000 | F79: 171150000 | H79: 2014-04-01 | I79: 2282 | J79: 75000.76684 | K79: 284.8650167 | L79: 239.9150961 | N79: 290883509.7 | O79: 50529.63288 | Q79: 0.001022446106
A80: 2014-05-01 | B80: 2312 | C80: 75000 | D80: 130667.6616 | E80: 75000 | F80: 173400000 | H80: 2014-05-01 | I80: 2312 | J80: 75002.86563 | K80: 294.0344063 | L80: 244.7871693 | N80: 292399398.7 | O80: 49793.21948 | Q80: 0.003820692861
A81: 2014-06-01 | B81: 2343 | C81: 75000 | D81: 128477.4203 | E81: 75000 | F81: 175725000 | H81: 2014-06-01 | I81: 2343 | J81: 75000.88328 | K81: 299.3796131 | L81: 249.2134914 | N81: 293942988.5 | O81: 49044.15087 | Q81: 0.001177694589
A82: 2014-07-01 | B82: 2373 | C82: 75000 | D82: 126390.2599 | E82: 75000 | F82: 177975000 | H82: 2014-07-01 | I82: 2373 | J82: 75000.04895 | K82: 306.8532261 | L82: 255.4594231 | N82: 295414313 | O82: 48351.59579 | Q82: 6.52618374e-05
A83: 2014-08-01 | B83: 2404 | C83: 75000 | D83: 124246.0242 | E83: 75000 | F83: 180300000 | H83: 2014-08-01 | I83: 2404 | J83: 75005.00536 | K83: 312.7725801 | L83: 261.034177 | N83: 296913212.5 | O83: 47653.83793 | Q83: 0.006673367233
A84: 2014-09-01 | B84: 2435 | C84: 75000 | D84: 122170.1542 | E84: 75000 | F84: 182625000 | H84: 2014-09-01 | I84: 2435 | J84: 74999.97854 | K84: 320.4269187 | L84: 265.9794892 | N84: 298390481.5 | O84: 46986.48425 | Q84: 2.861227351e-05
A85: 2014-10-01 | B85: 2465 | C85: 75000 | D85: 120188.9174 | E85: 75000 | F85: 184875000 | H85: 2014-10-01 | I85: 2465 | J85: 74999.81071 | K85: 326.9314561 | L85: 271.4056185 | N85: 299800076 | O85: 46348.3548 | Q85: 0.0002523860743
A86: 2014-11-01 | B86: 2496 | C86: 75000 | D86: 118186.8123 | E86: 75000 | F86: 187200000 | H86: 2014-11-01 | I86: 2496 | J86: 74999.66167 | K86: 334.4320263 | L86: 276.9449817 | N86: 301236875 | O86: 45718.28767 | Q86: 0.0004511102217
A87: 2014-12-01 | B87: 2526 | C87: 75000 | D87: 116299.0627 | E87: 75000 | F87: 189450000 | H87: 2014-12-01 | I87: 2526 | J87: 75000.06819 | K87: 341.6369088 | L87: 282.4377274 | N87: 302608423.6 | O87: 45118.9653 | Q87: 9.092601732e-05
A88: 2015-01-01 | B88: 2557 | C88: 75000 | D88: 114370.7495 | E88: 75000 | F88: 191775000 | H88: 2015-01-01 | I88: 2557 | J88: 74999.65779 | K88: 349.4498108 | L88: 288.2366951 | N88: 304007111.5 | O88: 44522.2936 | Q88: 0.0004562827953
A89: 2015-02-01 | B89: 2588 | C89: 75000 | D89: 112471.8715 | E89: 75000 | F89: 194100000 | H89: 2015-02-01 | I89: 2588 | J89: 74999.74347 | K89: 357.4445667 | L89: 294.1794881 | N89: 305387302.7 | O89: 43941.81253 | Q89: 0.0003420398486
A90: 2015-03-01 | B90: 2616 | C90: 75000 | D90: 110787.4624 | E90: 75000 | F90: 196200000 | H90: 2015-03-01 | I90: 2616 | J90: 75000.99558 | K90: 364.8111987 | L90: 299.6734803 | N90: 306617673.4 | O90: 43436.10865 | Q90: 0.001327419815
A91: 2015-04-01 | B91: 2647 | C91: 75000 | D91: 108946.6416 | E91: 75000 | F91: 198525000 | H91: 2015-04-01 | I91: 2647 | J91: 75000.80792 | K91: 373.0632271 | L91: 305.8148556 | N91: 307964192.8 | O91: 42883.52709 | Q91: 0.001077211764
A92: 2015-05-01 | B92: 2677 | C92: 75000 | D92: 107217.3247 | E92: 75000 | F92: 200775000 | H92: 2015-05-01 | I92: 2677 | J92: 75000.33205 | K92: 381.1457025 | L92: 312.4788213 | N92: 309250698.6 | O92: 42377.01769 | Q92: 0.0004427338465
A93: 2015-06-01 | B93: 2708 | C93: 75000 | D93: 105437.6002 | E93: 75000 | F93: 203100000 | H93: 2015-06-01 | I93: 2708 | J93: 74999.08056 | K93: 389.6225069 | L93: 319.8638156 | N93: 310564386.1 | O93: 41862.16129 | Q93: 0.001225936532
A94: 2015-07-01 | B94: 2738 | C94: 75000 | D94: 103719.1903 | E94: 75000 | F94: 205350000 | H94: 2015-07-01 | I94: 2738 | J94: 75001.63037 | K94: 397.9601427 | L94: 327.7140569 | N94: 311820251 | O94: 41380.51702 | Q94: 0.002173783728
A95: 2015-08-01 | B95: 2769 | C95: 75000 | D95: 101944.2058 | E95: 75000 | F95: 207675000 | H95: 2015-08-01 | I95: 2769 | J95: 75001.74159 | K95: 406.6301867 | L95: 336.0284893 | N95: 313103047 | O95: 40889.60098 | Q95: 0.002322059475
A96: 2015-09-01 | B96: 2800 | C96: 75000 | D96: 100305.4605 | E96: 75000 | F96: 210000000 | H96: 2015-09-01 | I96: 2800 | J96: 75001.85215 | K96: 415.4793082 | L96: 344.7047874 | N96: 314370624.6 | O96: 40417.44362 | Q96: 0.00246946572
A97: 2015-10-01 | B97: 2830 | C97: 75000 | D97: 98691.05082 | E97: 75000 | F97: 212250000 | H97: 2015-10-01 | I97: 2830 | J97: 75001.56298 | K97: 425.7417559 | L97: 355.3897084 | N97: 315583147.9 | O97: 39962.41659 | Q97: 0.002083928297
A98: 2015-11-01 | B98: 2861 | C98: 75000 | D98: 96975.78469 | E98: 75000 | F98: 214575000 | H98: 2015-11-01 | I98: 2861 | J98: 75002.47387 | K98: 431.1625766 | L98: 363.0047107 | N98: 316821982.8 | O98: 39540.98826 | Q98: 0.003298386983
A99: 2015-12-01 | B99: 2891 | C99: 75000 | D99: 95310.30494 | E99: 75000 | F99: 216825000 | H99: 2015-12-01 | I99: 2891 | J99: 75001.88351 | K99: 444.9451688 | L99: 374.0227498 | N99: 318008212.5 | O99: 39093.80468 | Q99: 0.002511288645
A100: 2016-01-01 | B100: 2922 | C100: 75000 | D100: 93544.88239 | E100: 75000 | F100: 219150000 | H100: 2016-01-01 | I100: 2922 | J100: 74998.59043 | K100: 450.5255327 | L100: 384.3601847 | N100: 319220120.4 | O100: 38637.8024 | Q100: 0.00187945615
A101: 2016-02-01 | B101: 2953 | C101: 75000 | D101: 91825.76325 | E101: 75000 | F101: 221475000 | H101: 2016-02-01 | I101: 2953 | J101: 74998.49198 | K101: 461.6976959 | L101: 395.8234875 | N101: 320417892.3 | O101: 38175.71025 | Q101: 0.002010737473
A102: 2016-03-01 | B102: 2982 | C102: 75000 | D102: 90261.51804 | E102: 75000 | F102: 223650000 | H102: 2016-03-01 | I102: 2982 | J102: 74999.94207 | K102: 471.0038606 | L102: 408.2065738 | N102: 321524987.9 | O102: 37759.6155 | Q102: 7.723504632e-05
A103: 2016-04-01 | B103: 3013 | C103: 75000 | D103: 88624.67176 | E103: 75000 | F103: 225975000 | H103: 2016-04-01 | I103: 3013 | J103: 75001.7072 | K103: 481.3479523 | L103: 421.5906112 | N103: 322695536 | O103: 37331.69476 | Q103: 0.002276218934
A104: 2016-05-01 | B104: 3043 | C104: 75000 | D104: 87063.43479 | E104: 75000 | F104: 228225000 | H104: 2016-05-01 | I104: 3043 | J104: 75002.19745 | K104: 491.6090571 | L104: 435.6728527 | N104: 323815486.8 | O104: 36932.81974 | Q104: 0.002929850405
A105: 2016-06-01 | B105: 3074 | C105: 75000 | D105: 85435.03133 | E105: 75000 | F105: 230550000 | H105: 2016-06-01 | I105: 3074 | J105: 75000.92348 | K105: 502.2369798 | L105: 449.8705421 | N105: 324960404.2 | O105: 36521.16263 | Q105: 0.00123129228
A106: 2016-07-01 | B106: 3104 | C106: 75000 | D106: 83855.5223 | E106: 75000 | F106: 232800000 | H106: 2016-07-01 | I106: 3104 | J106: 75001.24856 | K106: 512.7935524 | L106: 462.856813 | N106: 326056039.1 | O106: 36136.57712 | Q106: 0.00166471754
A107: 2016-08-01 | B107: 3135 | C107: 75000 | D107: 82219.8883 | E107: 75000 | F107: 235125000 | H107: 2016-08-01 | I107: 3135 | J107: 75001.53594 | K107: 523.2412426 | L107: 476.6110908 | N107: 327176273 | O107: 35756.8991 | Q107: 0.002047879504
A108: 2016-09-01 | B108: 3166 | C108: 75000 | D108: 80583.20037 | E108: 75000 | F108: 237450000 | H108: 2016-09-01 | I108: 3166 | J108: 75001.968 | K108: 534.7068462 | L108: 491.4094153 | N108: 328284736.9 | O108: 35388.58992 | Q108: 0.002623931028
A109: 2016-10-01 | B109: 3196 | C109: 75000 | D109: 79020.18747 | E109: 75000 | F109: 239700000 | H109: 2016-10-01 | I109: 3196 | J109: 75004.31388 | K109: 545.9556495 | L109: 505.8214754 | N109: 329346394.6 | O109: 35043.59028 | Q109: 0.005751510261
A110: 2016-11-01 | B110: 3227 | C110: 75000 | D110: 77433.9531 | E110: 75000 | F110: 242025000 | H110: 2016-11-01 | I110: 3227 | J110: 75008.85261 | K110: 557.8304805 | L110: 520.9418484 | N110: 330432745.9 | O110: 34693.16705 | Q110: 0.01180209251
A111: 2016-12-01 | B111: 3257 | C111: 75000 | D111: 75919.89608 | E111: 75000 | F111: 244275000 | H111: 2016-12-01 | I111: 3257 | J111: 75001.99991 | K111: 569.4046286 | L111: 536.9196224 | N111: 331473540.9 | O111: 34371.91436 | Q111: 0.00266647084
A112: 2017-01-01 | B112: 3288 | C112: 75000 | D112: 74386.81186 | E112: 74386.81186 | F112: 246600000 | H112: 2017-01-01 | I112: 3288 | J112: 75000.37864 | K112: 583.0719527 | L112: 554.8061904 | N112: 332539070.2 | O112: 34046.04212 | Q112: 0.818084909
A113: 2017-02-01 | B113: 3319 | C113: 75000 | D113: 72906.35541 | E113: 72906.35541 | F113: 248905991.2 | H113: 2017-02-01 | I113: 3319 | J113: 74116.7857 | K113: 589.7103122 | L113: 565.108309 | N113: 333594497.5 | O113: 33722.85955 | Q113: 1.63313922
A114: 2017-03-01 | B114: 3347 | C114: 75000 | D114: 71656.03969 | E114: 71656.03969 | F114: 250947369.1 | H114: 2017-03-01 | I114: 3347 | J114: 73122.78745 | K114: 593.8883424 | L114: 572.1320099 | N114: 334538737.6 | O114: 33427.39285 | Q114: 2.0058696
A115: 2017-04-01 | B115: 3378 | C115: 75000 | D115: 70317.2989 | E115: 70317.2989 | F115: 253168706.3 | H115: 2017-04-01 | I115: 3378 | J115: 71421.34246 | K115: 593.3516107 | L115: 575.0245508 | N115: 335574986.8 | O115: 33118.71939 | Q115: 1.545817432
A116: 2017-05-01 | B116: 3408 | C116: 75000 | D116: 69072.46091 | E116: 69072.46091 | F116: 255278225.3 | H116: 2017-05-01 | I116: 3408 | J116: 70056.52288 | K116: 594.4454173 | L116: 579.3026612 | N116: 336568548.4 | O116: 32813.50331 | Q116: 1.404668599
A117: 2017-06-01 | B117: 3439 | C117: 75000 | D117: 67969.04275 | E117: 67969.04275 | F117: 257419471.6 | H117: 2017-06-01 | I117: 3439 | J117: 68782.66104 | K117: 596.0863035 | L117: 584.6542425 | N117: 337585767 | O117: 32498.35775 | Q117: 1.182882832
A118: 2017-07-01 | B118: 3469 | C118: 75000 | D118: 66757.59001 | E118: 66757.59001 | F118: 259458542.9 | H118: 2017-07-01 | I118: 3469 | J118: 67599.32954 | K118: 597.6906126 | L118: 589.9805958 | N118: 338560717.7 | O118: 32189.06726 | Q118: 1.24518917
A119: 2017-08-01 | B119: 3500 | C119: 75000 | D119: 65580.59786 | E119: 65580.59786 | F119: 261528028.2 | H119: 2017-08-01 | I119: 3500 | J119: 66552.53388 | K119: 600.319443 | L119: 596.5387666 | N119: 339558578.8 | O119: 31889.7618 | Q119: 1.460404228
A120: 2017-09-01 | B120: 3531 | C120: 75000 | D120: 64390.69255 | E120: 64390.69255 | F120: 263561026.7 | H120: 2017-09-01 | I120: 3531 | J120: 65599.75312 | K120: 603.5642979 | L120: 603.8024436 | N120: 340547161.4 | O120: 31590.37012 | Q120: 1.843087067
A121: 2017-10-01 | B121: 3561 | C121: 75000 | D121: 63213.8364 | E121: 63213.8364 | F121: 265492747.5 | H121: 2017-10-01 | I121: 3561 | J121: 64477.53772 | K121: 604.5734457 | L121: 608.7511096 | N121: 341494872.5 | O121: 31299.66725 | Q121: 1.959909399
A122: 2017-11-01 | B122: 3592 | C122: 75000 | D122: 62137.93738 | E122: 62137.93738 | F122: 267452376.4 | H122: 2017-11-01 | I122: 3592 | J122: 63234.41117 | K122: 604.4194263 | L122: 612.5828182 | N122: 342465162.2 | O122: 31016.21385 | Q122: 1.733982769
A123: 2017-12-01 | B123: 3622 | C123: 75000 | D123: 61282.34988 | E123: 61282.34988 | F123: 269316514.5 | H123: 2017-12-01 | I123: 3622 | J123: 62498.63364 | K123: 608.397686 | L123: 620.5474502 | N123: 343395648.6 | O123: 30741.05254 | Q123: 1.946096572
A124: 2018-01-01 | B124: 3653 | C124: 75000 | D124: 60376.11758 | E124: 60376.11758 | F124: 271216267.4 | H124: 2018-01-01 | I124: 3653 | J124: 61281.23784 | K124: 607.8219039 | L124: 624.1193943 | N124: 344348621.2 | O124: 30458.28969 | Q124: 1.476994076
A125: 2018-02-01 | B125: 3684 | C125: 75000 | D125: 59197.00783 | E125: 59197.00783 | F125: 273087927 | H125: 2018-02-01 | I125: 3684 | J125: 60622.00585 | K125: 612.5136 | L125: 632.9772682 | N125: 345292828.2 | O125: 30186.20109 | Q125: 2.350628281
A126: 2018-03-01 | B126: 3712 | C126: 75000 | D126: 58463.30462 | E126: 58463.30462 | F126: 274745443.2 | H126: 2018-03-01 | I126: 3712 | J126: 59327.9079 | K126: 609.5968326 | L126: 633.824913 | N126: 346138041.9 | O126: 29938.43399 | Q126: 1.457329792
A127: 2018-04-01 | B127: 3743 | C127: 75000 | D127: 57824.4361 | E127: 57824.4361 | F127: 276557805.7 | H127: 2018-04-01 | I127: 3743 | J127: 58477.4486 | K127: 612.0408592 | L127: 640.4498933 | N127: 347066133.3 | O127: 29675.144 | Q127: 1.116691162
A128: 2018-05-01 | B128: 3773 | C128: 75000 | D128: 56944.49328 | E128: 56944.49328 | F128: 278292538.8 | H128: 2018-05-01 | I128: 3773 | J128: 57775.16862 | K128: 615.4832779 | L128: 648.5445198 | N128: 347956387.6 | O128: 29417.26228 | Q128: 1.437772247
A129: 2018-06-01 | B129: 3804 | C129: 75000 | D129: 56049.32982 | E129: 56049.32982 | F129: 280057818.1 | H129: 2018-06-01 | I129: 3804 | J129: 57013.50889 | K129: 618.6311295 | L129: 657.661148 | N129: 348868322.8 | O129: 29161.88614 | Q129: 1.691141442
A130: 2018-07-01 | B130: 3834 | C130: 75000 | D130: 55181.30364 | E130: 55181.30364 | F130: 281739298 | H130: 2018-07-01 | I130: 3834 | J130: 56062.65103 | K130: 619.2771869 | L130: 663.7218083 | N130: 349743179.3 | O130: 28905.54988 | Q130: 1.572075843
A131: 2018-08-01 | B131: 3865 | C131: 75000 | D131: 54316.5961 | E131: 54316.5961 | F131: 283449918.4 | H131: 2018-08-01 | I131: 3865 | J131: 55128.50716 | K131: 620.1819762 | L131: 670.0678765 | N131: 350639251.4 | O131: 28657.81422 | Q131: 1.472760833
A132: 2018-09-01 | B132: 3896 | C132: 75000 | D132: 53458.97862 | E132: 53458.97862 | F132: 285133732.9 | H132: 2018-09-01 | I132: 3896 | J132: 54210.05168 | K132: 620.8681863 | L132: 676.2596416 | N132: 351527643.6 | O132: 28411.99448 | Q132: 1.385486702
A133: 2018-10-01 | B133: 3926 | C133: 75000 | D133: 52635.01109 | E133: 52635.01109 | F133: 286737502.2 | H133: 2018-10-01 | I133: 3926 | J133: 53337.21146 | K133: 621.3017798 | L133: 682.1599204 | N133: 352380003.5 | O133: 28171.11563 | Q133: =ABS(E133-J133)*100/J133 -> 1.316529954
A134: 2018-11-01 | B134: =A134-A133+B133 -> 3957 | C134: 75000 | D134: =BOtabinterpol(F134,2,$N$4:$O$244) -> 51805.15392 | E134: =IF(C134<D134,C134,D134) -> 51805.15392 | F134: =F133+(A134-A133)*E133 -> 288369187.6 | H134: 2018-11-01 | I134: =H134-H133+I133 -> 3957 | J134: 52431.46474 | K134: 621.4539953 | L134: 688.7030596 | N134: 353253308.1 | O134: 27942.68068 | Q134: 1.194532366
A135: 2018-12-01 | B135: 3987 | C135: 75000 | D135: 51015.12445 | E135: 51015.12445 | F135: 289923342.2 | H135: 2018-12-01 | I135: 3987 | J135: 51595.99055 | K135: 621.4903231 | L135: 695.3037035 | N135: 354091588.5 | O135: 27731.36529 | Q135: 1.125796975
A136: 2019-01-01 | B136: 4018 | C136: 75000 | D136: 50227.80694 | E136: 50227.80694 | F136: 291504811 | H136: 2019-01-01 | I136: 4018 | J136: 50768.33811 | K136: 621.571154 | L136: 702.0243907 | N136: 354951260.8 | O136: 27506.05394 | Q136: 1.064701318
A137: 2019-02-01 | B137: 4049 | C137: 75000 | D137: 49471.73592 | E137: 49471.73592 | F137: 293061873 | H137: 2019-02-01 | I137: 4049 | J137: 49986.70767 | K137: 621.622947 | L137: 708.7049485 | N137: 355803948.5 | O137: 27283.07688 | Q137: 1.030217386
A138: 2019-03-01 | B138: 4077 | C138: 75000 | D138: 48806.87332 | E138: 48806.87332 | F138: 294447081.7 | H138: 2019-03-01 | I138: 4077 | J138: 49303.66514 | K138: 621.7231704 | L138: 714.8507341 | N138: 356567874.6 | O138: 27091.88564 | Q138: 1.007616409
A139: 2019-04-01 | B139: 4108 | C139: 75000 | D139: 48097.52707 | E139: 48097.52707 | F139: 295960094.7 | H139: 2019-04-01 | I139: 4108 | J139: 48578.43226 | K139: 621.8682304 | L139: 721.6446479 | N139: 357407723.1 | O139: 26874.69084 | Q139: 0.989956175
A140: 2019-05-01 | B140: 4138 | C140: 75000 | D140: 47432.568 | E140: 47432.568 | F140: 297403020.5 | H140: 2019-05-01 | I140: 4138 | J140: 47893.47874 | K140: 622.0312013 | L140: 728.0929322 | N140: 358213963.8 | O140: 26668.61872 | Q140: 0.9623663814
A141: 2019-06-01 | B141: 4169 | C141: 75000 | D141: 46767.85132 | E141: 46767.85132 | F141: 298873430.1 | H141: 2019-06-01 | I141: 4169 | J141: 47210.39449 | K141: 622.2687037 | L141: 734.669948 | N141: 359040691 | O141: 26458.78947 | Q141: 0.9373850196
A142: 2019-07-01 | B142: 4199 | C142: 75000 | D142: 46139.44772 | E142: 46139.44772 | F142: 300276465.7 | H142: 2019-07-01 | I142: 4199 | J142: 46563.61316 | K142: 622.5503768 | L142: 740.8941647 | N142: 359834454.7 | O142: 26274.27532 | Q142: 0.91093757
A143: 2019-08-01 | B143: 4230 | C143: 75000 | D143: 45512.95064 | E143: 45512.95064 | F143: 301706788.6 | H143: 2019-08-01 | I143: 4230 | J143: 45912.86933 | K143: 622.8790559 | L143: 747.2138528 | N143: 360648957.2 | O143: 26071.94067 | Q143: 0.871038328
A144: 2019-09-01 | B144: 4261 | C144: 75000 | D144: 44901.71537 | E144: 44901.71537 | F144: 303117690 | H144: 2019-09-01 | I144: 4261 | J144: 45282.62758 | K144: 623.2781711 | L144: 753.4553395 | N144: 361457187.4 | O144: 25890.22397 | Q144: 0.8411883935
A145: 2019-10-01 | B145: 4291 | C145: 75000 | D145: 44329.8235 | E145: 44329.8235 | F145: 304464741.5 | H145: 2019-10-01 | I145: 4291 | J145: 44682.98552 | K145: 623.6772124 | L145: 759.3293212 | N145: 362233894.1 | O145: 25700.93864 | Q145: 0.7903724823
A146: 2019-11-01 | B146: 4322 | C146: 75000 | D146: 43756.17099 | E146: 43756.17099 | F146: 305838966 | H146: 2019-11-01 | I146: 4322 | J146: 44071.23657 | K146: 624.1911559 | L146: 765.3452082 | N146: 363030623.2 | O146: 25515.2002 | Q146: 0.7149007038
A147: 2019-12-01 | B147: 4352 | C147: 75000 | D147: 43216.97607 | E147: 43216.97607 | F147: 307151651.2 | H147: 2019-12-01 | I147: 4352 | J147: 43507.37078 | K147: 624.6933468 | L147: 771.03011 | N147: 363796079.2 | O147: 25344.86302 | Q147: 0.667460933
A148: 2020-01-01 | B148: 4383 | C148: 75000 | D148: 42675.96955 | E148: 42675.96955 | F148: 308491377.4 | H148: 2020-01-01 | I148: 4383 | J148: 42940.1445 | K148: 625.2488403 | L148: 776.8682472 | N148: 364581769.9 | O148: 25163.7491 | Q148: 0.6152167286
A149: 2020-02-01 | B149: 4414 | C149: 75000 | D149: 42156.12002 | E149: 42156.12002 | F149: 309814332.5 | H149: 2020-02-01 | I149: 4414 | J149: 42395.28918 | K149: 625.8163529 | L149: 782.5778402 | N149: 365361846.2 | O149: 24997.10789 | Q149: 0.5641408863
A150: 2020-03-01 | B150: 4443 | C150: 75000 | D150: 41680.96002 | E150: 41680.96002 | F150: 311036859.9 | H150: 2020-03-01 | I150: 4443 | J150: 41898.04308 | K150: 626.3437763 | L150: 787.7396498 | N150: 366086762.3 | O150: 24842.4942 | Q150: 0.5181222049
A151: 2020-04-01 | B151: 4474 | C151: 75000 | D151: 41185.83433 | E151: 41185.83433 | F151: 312328969.7 | H151: 2020-04-01 | I151: 4474 | J151: 41368.59955 | K151: 626.8665887 | L151: 792.9281918 | N151: 366856879.6 | O151: 24673.46144 | Q151: 0.4417969761
A152: 2020-05-01 | B152: 4504 | C152: 75000 | D152: 40717.69864 | E152: 40717.69864 | F152: 313564544.7 | H152: 2020-05-01 | I152: 4504 | J152: 40875.87907 | K152: 627.3958626 | L152: 797.7231789 | N152: 367597083.5 | O152: 24521.35509 | Q152: 0.3869774398
A153: 2020-06-01 | B153: 4535 | C153: 75000 | D153: 40246.25588 | E153: 40246.25588 | F153: 314826793.4 | H153: 2020-06-01 | I153: 4535 | J153: 40370.66053 | K153: 628.0239243 | L153: 802.4528309 | N153: 368357245.5 | O153: 24362.0771 | Q153: 0.3081560985
A154: 2020-07-01 | B154: 4565 | C154: 75000 | D154: 39808.9836 | E154: 39808.9836 | F154: 316034181.1 | H154: 2020-07-01 | I154: 4565 | J154: 39894.86058 | K154: 628.6797176 | L154: 806.8259246 | N154: 369088107.8 | O154: 24209.13774 | Q154: 0.2152582543
A155: 2020-08-01 | B155: 4596 | C155: 75000 | D155: 39372.75134 | E155: 39372.75134 | F155: 317268259.6 | H155: 2020-08-01 | I155: 4596 | J155: 39442.95049 | K155: 629.8980765 | L155: 811.9919785 | N155: 369838591 | O155: 24059.9955 | Q155: 0.1779764144
A156: 2020-09-01 | B156: 4627 | C156: 75000 | D156: 38912.96935 | E156: 38912.96935 | F156: 318488814.9 | H156: 2020-09-01 | I156: 4627 | J156: 38973.78534 | K156: 630.696324 | L156: 816.3814366 | N156: 370584450.9 | O156: 23905.62682 | Q156: 0.1560433163
A157: 2020-10-01 | B157: 4657 | C157: 75000 | D157: 38469.56439 | E157: 38469.56439 | F157: 319656203.9 | H157: 2020-10-01 | I157: 4657 | J157: 38527.08818 | K157: 631.4180853 | L157: 820.3014382 | N157: 371301619.7 | O157: 23761.56878 | Q157: 0.1493074001
A158: 2020-11-01 | B158: 4688 | C158: 75000 | D158: 38013.77124 | E158: 38013.77124 | F158: 320848760.4 | H158: 2020-11-01 | I158: 4688 | J158: 38062.05584 | K158: 631.7902847 | L158: 824.0391388 | N158: 372038228.3 | O158: 23613.7315 | Q158: 0.1268575707
A159: 2020-12-01 | B159: 4718 | C159: 75000 | D159: 37589.92177 | E159: 37589.92177 | F159: 321989173.6 | H159: 2020-12-01 | I159: 4718 | J159: 37604.26939 | K159: 632.1483785 | L159: 827.1859857 | N159: 372746640.3 | O159: 23475.64953 | Q159: 0.03815422912
A160: 2021-01-01 | B160: 4749 | C160: 75000 | D160: 37168.24671 | E160: 37168.24671 | F160: 323154461.1 | H160: 2021-01-01 | I160: 4749 | J160: 37161.87387 | K160: 632.5443614 | L160: 830.1634012 | N160: 373474385.4 | O160: 23327.9663 | Q160: 0.01714888307
A161: 2021-02-01 | B161: 4780 | C161: 75000 | D161: 36756.21151 | E161: 36756.21151 | F161: 324306676.8 | H161: 2021-02-01 | I161: 4780 | J161: 36726.98417 | K161: 632.8145512 | L161: 832.715218 | N161: 374197552.4 | O161: 23189.34581 | Q161: 0.07958001571
A162: 2021-03-01 | B162: 4808 | C162: 75000 | D162: 36389.37486 | E162: 36389.37486 | F162: 325335850.7 | H162: 2021-03-01 | I162: 4808 | J162: 36342.04118 | K162: 633.1362643 | L162: 834.9566642 | N162: 374846854.1 | O162: 23054.43207 | Q162: 0.1302449665
A163: 2021-04-01 | B163: 4839 | C163: 75000 | D163: 35998.33464 | E163: 35998.33464 | F163: 326463921.3 | H163: 2021-04-01 | I163: 4839 | J163: 35941.9153 | K163: 633.5093257 | L163: 837.2624574 | N163: 375561541.5 | O163: 22918.54186 | Q163: 0.1569736595
A164: 2021-05-01 | B164: 4869 | C164: 75000 | D164: 35634.75723 | E164: 35634.75723 | F164: 327543871.4 | H164: 2021-05-01 | I164: 4869 | J164: 35563.63963 | K164: 633.8918863 | L164: 839.3392054 | N164: 376249097.7 | O164: 22774.04355 | Q164: 0.1999727981
A165: 2021-06-01 | B165: 4900 | C165: 75000 | D165: 35270.36443 | E165: 35270.36443 | F165: 328648548.8 | H165: 2021-06-01 | I165: 4900 | J165: 35189.60035 | K165: 634.3554984 | L165: 841.3437062 | N165: 376955093.1 | O165: 22627.35474 | Q165: 0.2295112377
A166: 2021-07-01 | B166: 4930 | C166: 75000 | D166: 34927.3799 | E166: 34927.3799 | F166: 329706659.8 | H166: 2021-07-01 | I166: 4930 | J166: 34840.67902 | K166: 634.7959439 | L166: 843.0819808 | N166: 377633913.7 | O166: 22495.94824 | Q166: 0.2488495842
A167: 2021-08-01 | B167: 4961 | C167: 75000 | D167: 34583.07924 | E167: 34583.07924 | F167: 330789408.6 | H167: 2021-08-01 | I167: 4961 | J167: 34481.20731 | K167: 635.3598743 | L167: 844.7292177 | N167: 378331288.1 | O167: 22337.75615 | Q167: 0.2954418945
A168: 2021-09-01 | B168: 4992 | C168: 75000 | D168: 34253.26921 | E168: 34253.26921 | F168: 331861484 | H168: 2021-09-01 | I168: 4992 | J168: 34146.32508 | K168: 635.8452939 | L168: 846.0785825 | N168: 379023758.5 | O168: 22200.79949 | Q168: 0.3131936842
A169: 2021-10-01 | B169: 5022 | C169: 75000 | D169: 33938.86494 | E169: 33938.86494 | F169: 332889082.1 | H169: 2021-10-01 | I169: 5022 | J169: 33807.44612 | K169: 636.2376915 | L169: 847.0105084 | N169: 379689782.5 | O169: 22051.68568 | Q169: 0.3887274179
A170: 2021-11-01 | B170: 5053 | C170: 75000 | D170: 33614.37532 | E170: 33614.37532 | F170: 333941186.9 | H170: 2021-11-01 | I170: 5053 | J170: 33474.78236 | K170: 636.6438429 | L170: 847.7558572 | N170: 380373384.8 | O170: 21924.13764 | Q170: 0.4170092842
A171: 2021-12-01 | B171: 5083 | C171: 75000 | D171: 33305.00151 | E171: 33305.00151 | F171: 334949618.2 | H171: 2021-12-01 | I171: 5083 | J171: 33156.10737 | K171: 636.9548805 | L171: 848.1708699 | N171: 381031108.9 | O171: 21771.72044 | Q171: 0.4490700409
A172: 2022-01-01 | B172: 5114 | C172: 75000 | D172: 32993.66492 | E172: 32993.66492 | F172: 335982073.2 | H172: 2022-01-01 | I172: 5114 | J172: 32822.06645 | K172: 637.2210034 | L172: 848.2795124 | N172: 381706032.2 | O172: 21650.79466 | Q172: 0.5228143289
A173: 2022-02-01 | B173: 5145 | C173: 75000 | D173: 32678.32394 | E173: 32678.32394 | F173: 337004876.8 | H173: 2022-02-01 | I173: 5145 | J173: 32494.45742 | K173: 637.4821473 | L173: 848.1722071 | N173: 382377206.9 | O173: 21498.66594 | Q173: 0.5658396243
A174: 2022-03-01 | B174: 5173 | C174: 75000 | D174: 32392.36793 | E174: 32392.36793 | F174: 337919869.9 | H174: 2022-03-01 | I174: 5173 | J174: 32211.11184 | K174: 637.7005994 | L174: 847.8846083 | N174: 382979169.5 | O174: 21381.46792 | Q174: 0.5627129215
A175: 2022-04-01 | B175: 5204 | C175: 75000 | D175: 32080.09183 | E175: 32080.09183 | F175: 338924033.3 | H175: 2022-04-01 | I175: 5204 | J175: 31888.58792 | K175: 637.8484943 | L175: 847.256688 | N175: 383641995 | O175: 21231.19893 | Q175: 0.600540576
A176: 2022-05-01 | B176: 5234 | C176: 75000 | D176: 31790.47042 | E176: 31790.47042 | F176: 339886436.1 | H176: 2022-05-01 | I176: 5234 | J176: 31582.36645 | K176: 638.0485763 | L176: 846.6984471 | N176: 384278931 | O176: 21107.51665 | Q176: 0.6589245565
A177: 2022-06-01 | B177: 5265 | C177: 75000 | D177: 31490.74667 | E177: 31490.74667 | F177: 340871940.6 | H177: 2022-06-01 | I177: 5265 | J177: 31278.90969 | K177: 638.2660808 | L177: 845.8790347 | N177: 384933264 | O177: 20959.72508 | Q177: 0.6772518006
A178: 2022-07-01 | B178: 5295 | C178: 75000 | D178: 31205.6617 | E178: 31205.6617 | F178: 341816663 | H178: 2022-07-01 | I178: 5295 | J178: 30982.57183 | K178: 638.5169155 | L178: 844.8637008 | N178: 385562055.8 | O178: 20842.04393 | Q178: 0.7200495485
A179: 2022-08-01 | B179: 5326 | C179: 75000 | D179: 30921.91647 | E179: 30921.91647 | F179: 342784038.5 | H179: 2022-08-01 | I179: 5326 | J179: 30688.26588 | K179: 638.8060126 | L179: 843.6364852 | N179: 386208159.1 | O179: 20701.18066 | Q179: 0.7613678589
A180: 2022-09-01 | B180: 5357 | C180: 75000 | D180: 30638.10096 | E180: 30638.10096 | F180: 343742618 | H180: 2022-09-01 | I180: 5357 | J180: 30393.19639 | K180: 639.1323411 | L180: 842.2239783 | N180: 386849895.7 | O180: 20581.05458 | Q180: 0.8057874723
A181: 2022-10-01 | B181: 5387 | C181: 75000 | D181: 30368.05338 | E181: 30368.05338 | F181: 344661761 | H181: 2022-10-01 | I181: 5387 | J181: 30115.25528 | K181: 639.4756714 | L181: 840.7365381 | N181: 387467327.4 | O181: 20454.65495 | Q181: 0.8394353356
A182: 2022-11-01 | B182: 5418 | C182: 75000 | D182: 30095.22688 | E182: 30095.22688 | F182: 345603170.6 | H182: 2022-11-01 | I182: 5418 | J182: 29831.80403 | K182: 639.8436395 | L182: 839.0224426 | N182: 388101421.7 | O182: 20344.77269 | Q182: 0.8830268812
A183: 2022-12-01 | B183: 5448 | C183: 75000 | D183: 29834.04027 | E183: 29834.04027 | F183: 346506027.5 | H183: 2022-12-01 | I183: 5448 | J183: 29567.05809 | K183: 640.2533731 | L183: 837.2764207 | N183: 388711764.8 | O183: 20216.51207 | Q183: 0.9029717193
A184: 2023-01-01 | B184: 5479 | C184: 75000 | D184: 29569.48633 | E184: 29569.48633 | F184: 347430882.7 | H184: 2023-01-01 | I184: 5479 | J184: 29296.80805 | K184: 640.6764662 | L184: 835.3063749 | N184: 389338476.7 | O184: 20109.45361 | Q184: 0.9307439869
A185: 2023-02-01 | B185: 5510 | C185: 75000 | D185: 29307.72581 | E185: 29307.72581 | F185: 348347536.8 | H185: 2023-02-01 | I185: 5510 | J185: 29031.94189 | K185: 641.1521659 | L185: 833.275996 | N185: 389961869.8 | O185: 19985.14175 | Q185: 0.9499327317
A186: 2023-03-01 | B186: 5538 | C186: 75000 | D186: 29074.03473 | E186: 29074.03473 | F186: 349168153.1 | H186: 2023-03-01 | I186: 5538 | J186: 28806.47873 | K186: 641.5547211 | L186: 831.28289 | N186: 390521453.8 | O186: 19898.06455 | Q186: 0.9288049339
A187: 2023-04-01 | B187: 5569 | C187: 75000 | D187: 28815.34684 | E187: 28815.34684 | F187: 350069448.2 | H187: 2023-04-01 | I187: 5569 | J187: 28542.53046 | K187: 642.1147313 | L187: 829.0705262 | N187: 391138293.8 | O187: 19772.23719 | Q187: 0.9558240855
A188: 2023-05-01 | B188: 5599 | C188: 75000 | D188: 28576.28205 | E188: 28576.28205 | F188: 350933908.6 | H188: 2023-05-01 | I188: 5599 | J188: 28299.53063 | K188: 642.6453682 | L188: 826.7560111 | N188: 391731460.9 | O188: 19669.59284 | Q188: 0.9779364316
A189: 2023-06-01 | B189: 5630 | C189: 75000 | D189: 28329.43796 | E189: 28329.43796 | F189: 351819773.3 | H189: 2023-06-01 | I189: 5630 | J189: 28056.29056 | K189: 643.2954807 | L189: 824.3411755 | N189: 392341218.2 | O189: 19579.21862 | Q189: 0.9735691984
A190: 2023-07-01 | B190: 5660 | C190: 75000 | D190: 28095.34954 | E190: 28095.34954 | F190: 352669656.5 | H190: 2023-07-01 | I190: 5660 | J190: 27827.15102 | K190: 643.9075988 | L190: 821.8874594 | N190: 392928594.8 | O190: 19466.09231 | Q190: 0.9638015844
A191: 2023-08-01 | B191: 5691 | C191: 75000 | D191: 27870.25646 | E191: 27870.25646 | F191: 353540612.3 | H191: 2023-08-01 | I191: 5691 | J191: 27608.22296 | K191: 644.5446014 | L191: 819.3234417 | N191: 393532043.7 | O191: 19351.79537 | Q191: 0.9491139466
A192: 2023-09-01 | B192: 5722 | C192: 75000 | D192: 27649.33072 | E192: 27649.33072 | F192: 354404590.2 | H192: 2023-09-01 | I192: 5722 | J192: 27379.7712 | K192: 645.223743 | L192: 816.6372093 | N192: 394131949.3 | O192: 19261.58913 | Q192: 0.9845207262
A193: 2023-10-01 | B193: 5752 | C193: 75000 | D193: 27432.09954 | E193: 27432.09954 | F193: 355234070.2 | H193: 2023-10-01 | I193: 5752 | J193: 27173.31639 | K193: 645.8866177 | L193: 813.9181464 | N193: 394709797 | O193: 19175.3314 | Q193: 0.9523428956
A194: 2023-11-01 | B194: 5783 | C194: 75000 | D194: 27212.87068 | E194: 27212.87068 | F194: 356084465.3 | H194: 2023-11-01 | I194: 5783 | J194: 26950.8716 | K194: 646.6248356 | L194: 811.0531034 | N194: 395304232.3 | O194: 19069.6665 | Q194: 0.9721358283
A195: 2023-12-01 | B195: 5813 | C195: 75000 | D195: 27005.77389 | E195: 27005.77389 | F195: 356900851.4 | H195: 2023-12-01 | I195: 5813 | J195: 26747.37894 | K195: 647.2743021 | L195: 808.1485984 | N195: 395876322.3 | O195: 19021.66247 | Q195: 0.966057098
A196: 2024-01-01 | B196: 5844 | C196: 75000 | D196: 26790.26553 | E196: 26790.26553 | F196: 357738030.4 | H196: 2024-01-01 | I196: 5844 | J196: 26526.29712 | K196: 648.0194327 | L196: 805.1478356 | N196: 396465993.8 | O196: 18880.77192 | Q196: 0.9951196991
A197: 2024-02-01 | B197: 5875 | C197: 75000 | D197: 26578.62764 | E197: 26578.62764 | F197: 358568528.6 | H197: 2024-02-01 | I197: 5875 | J197: 26321.15553 | K197: 648.7327262 | L197: 802.0531317 | N197: 397051297.7 | O197: 18801.46884 | Q197: =ABS(E197-J197)*100/J197 -> 0.9781945565
A198: 2024-03-01 | B198: =A198-A197+B197 -> 5904 | C198: 75000 | D198: =BOtabinterpol(F198,2,$N$4:$O$244) -> 26389.37433 | E198: =IF(C198<D198,C198,D198) -> 26389.37433 | F198: =F197+(A198-A197)*E197 -> 359339308.8 | H198: 2024-03-01 | I198: =H198-H197+I197 -> 5904 | J198: 26136.31561 | K198: 649.4258378 | L198: 799.1279364 | N198: 397596540.3 | O198: 18706.35035 | Q198: 0.9682264472
A199: 2024-04-01 | B199: 5935 | C199: 75000 | D199: 26194.05597 | E199: 26194.05597 | F199: 360157379.4 | H199: 2024-04-01 | I199: 5935 | J199: 25934.57402 | K199: 650.1889486 | L199: 795.9353257 | N199: 398176437.2 | O199: 18616.6558 | Q199: 1.000525221
A200: 2024-05-01 | B200: 5965 | C200: 75000 | D200: 26005.78498 | E200: 26005.78498 | F200: 360943201.1 | H200: 2024-05-01 | I200: 5965 | J200: 25741.43092 | K200: 650.9482211 | L200: 792.7923148 | N200: 398734936.9 | O200: 18527.98191 | Q200: 1.026959465
... 44 more rows

Sheet Predict_prof_qp_75k_N+20%
A1: Prediction with production potential curve | H1: From simulator | N1: Production potential curve | Q1: Deviation pot-model
A2: time | B2: days | C2: Desired rate | D2: qmax | E2: actual rate | F2: Np | H2: Date | I2: days | J2: Average Oil Rate | K2: Average Gas Rate | L2: Average Water Rate | N2: Np | O2: qmax | Q2: [%] | S2: max [%] | T2: =MAX(Q5:Q245) -> 1.918134655
C3: [stb/d] | D3: [stb/d] | E3: [stb/d] | F3: [stb] | J3: stb/d | K3: 1E06 scf/d | L3: stb/d | N3: [stb] | O3: stb/d | S3: average [%] | T3: =AVERAGE(Q5:Q245) -> 0.490208285
A4: 2008-01-01 | B4: 0 | C4: 75000 | D4: =BOtabinterpol(F4,2,$N$4:$O$244) -> 287696.5559 | E4: =IF(C4<D4,C4,D4) -> 75000 | F4: 0 | H4: 2008-01-01 | I4: 0 | J4: 74999.50533 | K4: 48.74974198 | L4: 0.004 | N4: 0 | O4: 287696.5559
A5: 2008-02-01 | B5: =A5-A4+B4 -> 31 | C5: 75000 | D5: =BOtabinterpol(F5,2,$N$4:$O$244) -> 287037.056 | E5: =IF(C5<D5,C5,D5) -> 75000 | F5: =F4+(A5-A4)*E4 -> 2325000 | H5: 2008-02-01 | I5: =H5-H4+I4 -> 31 | J5: 75000.91711 | K5: 48.75069424 | L5: 12.28954469 | N5: 10702317.1 | O5: 284660.7808 | Q5: =ABS(E5-J5)*100/J5 -> 0.001222793986
A6: 2008-03-01 | B6: =A6-A5+B5 -> 60 | C6: 75000 | D6: =BOtabinterpol(F6,2,$N$4:$O$244) -> 286420.1044 | E6: =IF(C6<D6,C6,D6) -> 75000 | F6: =F5+(A6-A5)*E5 -> 4500000 | H6: 2008-03-01 | I6: =H6-H5+I5 -> 60 | J6: 75000.32018 | K6: 48.75021284 | L6: 14.30669444 | N6: 20608517.1 | O6: 281805.5003 | Q6: =ABS(E6-J6)*100/J6 -> 0.0004269098681
A7: 2008-04-01 | B7: 91 | C7: 75000 | D7: 285760.6045 | E7: 75000 | F7: 6825000 | H7: 2008-04-01 | I7: 91 | J7: 75003.87292 | K7: 48.75267618 | L7: 15.12679544 | N7: 31091686.83 | O7: 278734.8906 | Q7: 0.005163630695
A8: 2008-05-01 | B8: 121 | C8: 75000 | D8: 285122.3788 | E8: 75000 | F8: 9075000 | H8: 2008-05-01 | I8: 121 | J8: 75002.43798 | K8: 48.75155636 | L8: 17.63049487 | N8: 41126147.78 | O8: 274395.7578 | Q8: 0.003250528813
A9: 2008-06-01 | B9: 152 | C9: 75000 | D9: 284459.6865 | E9: 75000 | F9: 11400000 | H9: 2008-06-01 | I9: 152 | J9: 75001.66736 | K9: 48.75118301 | L9: 19.69677791 | N9: 51333674.95 | O9: 268116.9743 | Q9: 0.002223096728
A10: 2008-07-01 | B10: 182 | C10: 75000 | D10: 283811.1652 | E10: 75000 | F10: 13650000 | H10: 2008-07-01 | I10: 182 | J10: 75000.72506 | K10: 48.75058208 | L10: 21.31195437 | N10: 60985890.74 | O10: 260912.9889 | Q10: 0.0009667435207
A11: 2008-08-01 | B11: 213 | C11: 75000 | D11: 283141.0266 | E11: 75000 | F11: 15975000 | H11: 2008-08-01 | I11: 213 | J11: 75001.52303 | K11: 48.75091391 | L11: 21.88005804 | N11: 70691858.66 | O11: 252879.6136 | Q11: 0.002030667434
A12: 2008-09-01 | B12: 244 | C12: 75000 | D12: 282470.888 | E12: 75000 | F12: 18300000 | H12: 2008-09-01 | I12: 244 | J12: 75001.53215 | K12: 48.75101899 | L12: 24.32811147 | N12: 80098984.88 | O12: 244870.7708 | Q12: 0.002042825849
A13: 2008-10-01 | B13: 274 | C13: 75000 | D13: 281822.3667 | E13: 75000 | F13: 20550000 | H13: 2008-10-01 | I13: 274 | J13: 74999.0713 | K13: 48.7495156 | L13: 26.25928694 | N13: 88914336.93 | O13: 236510.6367 | Q13: 0.001238281051
A14: 2008-11-01 | B14: 305 | C14: 75000 | D14: 281141.6281 | E14: 75000 | F14: 22875000 | H14: 2008-11-01 | I14: 305 | J14: 75000.16465 | K14: 48.7500863 | L14: 27.89732496 | N14: 97712536.91 | O14: 228101.4357 | Q14: 0.0002195271514
A15: 2008-12-01 | B15: 335 | C15: 75000 | D15: 280482.584 | E15: 75000 | F15: 25125000 | H15: 2008-12-01 | I15: 335 | J15: 75000.88501 | K15: 48.75052477 | L15: 30.5040595 | N15: 105924192.6 | O15: 219878.5494 | Q15: 0.00118000566
A16: 2009-01-01 | B16: 366 | C16: 75000 | D16: 279801.5717 | E16: 75000 | F16: 27450000 | H16: 2009-01-01 | I16: 366 | J16: 75002.14875 | K16: 48.81435657 | L16: 31.56087601 | N16: 114103678.6 | O16: 211940.635 | Q16: 0.002864917061
A17: 2009-02-01 | B17: 397 | C17: 75000 | D17: 279120.5594 | E17: 75000 | F17: 29775000 | H17: 2009-02-01 | I17: 397 | J17: 75001.92995 | K17: 48.90927131 | L17: 33.44065508 | N17: 121987874.1 | O17: 204270.5649 | Q17: 0.002573205396
A18: 2009-03-01 | B18: 425 | C18: 75000 | D18: 278396.1679 | E18: 75000 | F18: 31875000 | H18: 2009-03-01 | I18: 425 | J18: 75003.00518 | K18: 49.0774255 | L18: 35.38200856 | N18: 128851368.4 | O18: 197757.5423 | Q18: 0.004006741698
A19: 2009-04-01 | B19: 456 | C19: 75000 | D19: 277390.7842 | E19: 75000 | F19: 34200000 | H19: 2009-04-01 | I19: 456 | J19: 75002.47136 | K19: 49.30666853 | L19: 37.11484597 | N19: 136207952.6 | O19: 190896.8411 | Q19: 0.003295039708
A20: 2009-05-01 | B20: 486 | C20: 75000 | D20: 276417.8322 | E20: 75000 | F20: 36450000 | H20: 2009-05-01 | I20: 486 | J20: 75004.47863 | K20: 49.55319131 | L20: 39.02781582 | N20: 143080242.2 | O20: 184605.1523 | Q20: 0.005971143873
A21: 2009-06-01 | B21: 517 | C21: 75000 | D21: 275412.4484 | E21: 75000 | F21: 38775000 | H21: 2009-06-01 | I21: 517 | J21: 75004.86366 | K21: 49.84052974 | L21: 40.97206777 | N21: 149947557.2 | O21: 178533.5805 | Q21: 0.006484457675
A22: 2009-07-01 | B22: 547 | C22: 75000 | D22: 274439.4965 | E22: 75000 | F22: 41025000 | H22: 2009-07-01 | I22: 547 | J22: 75004.44087 | K22: 50.15316271 | L22: 42.86548429 | N22: 156374769.3 | O22: 173021.4832 | Q22: 0.005920811488
A23: 2009-08-01 | B23: 578 | C23: 75000 | D23: 273027.8372 | E23: 75000 | F23: 43350000 | H23: 2009-08-01 | I23: 578 | J23: 75004.25857 | K23: 50.51472388 | L23: 44.78456078 | N23: 162811171.6 | O23: 167551.3228 | Q23: 0.0056777699
A24: 2009-09-01 | B24: 609 | C24: 75000 | D24: 271597.6993 | E24: 75000 | F24: 45675000 | H24: 2009-09-01 | I24: 609 | J24: 75004.80875 | K24: 51.33877545 | L24: 46.4987897 | N24: 169044083.8 | O24: 162400.4489 | Q24: 0.006411258399
A25: 2009-10-01 | B25: 639 | C25: 75000 | D25: 270213.6949 | E25: 75000 | F25: 47925000 | H25: 2009-10-01 | I25: 639 | J25: 74998.936 | K25: 51.90379492 | L25: 48.17532676 | N25: 174890502.8 | O25: 157501.4705 | Q25: 0.001418682296
A26: 2009-11-01 | B26: 670 | C26: 75000 | D26: 268783.557 | E26: 75000 | F26: 50250000 | H26: 2009-11-01 | I26: 670 | J26: 75000.42495 | K26: 52.70589286 | L26: 50.08697242 | N26: 180749560.4 | O26: 152621.9644 | Q26: 0.0005666019083
A27: 2009-12-01 | B27: 700 | C27: 75000 | D27: 267246.4811 | E27: 75000 | F27: 52500000 | H27: 2009-12-01 | I27: 700 | J27: 75000.93593 | K27: 53.53820975 | L27: 51.84850998 | N27: 186243953.8 | O27: 148107.7681 | Q27: 0.001247890384
A28: 2010-01-01 | B28: 731 | C28: 75000 | D28: 265511.2043 | E28: 75000 | F28: 54825000 | H28: 2010-01-01 | I28: 731 | J28: 74999.83936 | K28: 54.70228929 | L28: 53.7715496 | N28: 191753565.5 | O28: 143729.7841 | Q28: 0.0002141899828
A29: 2010-02-01 | B29: 762 | C29: 75000 | D29: 263775.9275 | E29: 75000 | F29: 57150000 | H29: 2010-02-01 | I29: 762 | J29: 75000.60939 | K29: 56.20229762 | L29: 55.70131515 | N29: 197100316 | O29: 139459.0912 | Q29: 0.0008125114382
A30: 2010-03-01 | B30: 790 | C30: 75000 | D30: 262208.5807 | E30: 75000 | F30: 59250000 | H30: 2010-03-01 | I30: 790 | J30: 75000.58897 | K30: 57.60862457 | L30: 57.34791409 | N30: 201786143.8 | O30: 135632.551 | Q30: 0.0007852840012
A31: 2010-04-01 | B31: 821 | C31: 75000 | D31: 260425.3986 | E31: 75000 | F31: 61575000 | H31: 2010-04-01 | I31: 821 | J31: 74999.60157 | K31: 59.24126566 | L31: 59.3168653 | N31: 206831677.2 | O31: 131647.715 | Q31: 0.0005312476956
A32: 2010-05-01 | B32: 851 | C32: 75000 | D32: 258563.1326 | E32: 75000 | F32: 63825000 | H32: 2010-05-01 | I32: 851 | J32: 74999.15586 | K32: 60.86757521 | L32: 61.23836938 | N32: 211570997.2 | O32: 127927.1956 | Q32: 0.001125538132
A33: 2010-06-01 | B33: 882 | C33: 75000 | D33: 256638.791 | E33: 75000 | F33: 66150000 | H33: 2010-06-01 | I33: 882 | J33: 75000.63112 | K33: 62.64989585 | L33: 63.26725235 | N33: 216329891.2 | O33: 124268.5049 | Q33: 0.0008414928748
A34: 2010-07-01 | B34: 912 | C34: 75000 | D34: 254776.525 | E34: 75000 | F34: 68400000 | H34: 2010-07-01 | I34: 912 | J34: 74999.36229 | K34: 64.5731071 | L34: 65.23431009 | N34: 220803559.6 | O34: 120939.9208 | Q34: 0.0008502846271
A35: 2010-08-01 | B35: 943 | C35: 75000 | D35: 252851.3985 | E35: 75000 | F35: 70725000 | H35: 2010-08-01 | I35: 943 | J35: 75001.85369 | K35: 66.64376709 | L35: 67.27124772 | N35: 225302526.8 | O35: 117711.4617 | Q35: 0.002471519685
A36: 2010-09-01 | B36: 974 | C36: 75000 | D36: 250871.9885 | E36: 75000 | F36: 73050000 | H36: 2010-09-01 | I36: 974 | J36: 74999.81653 | K36: 68.75262632 | L36: 69.35901007 | N36: 229681395.3 | O36: 114676.1468 | Q36: 0.0002446299571
A37: 2010-10-01 | B37: 1004 | C37: 75000 | D37: 248956.4304 | E37: 75000 | F37: 75300000 | H37: 2010-10-01 | I37: 1004 | J37: 75001.94902 | K37: 70.90469479 | L37: 71.39353314 | N37: 233809738.6 | O37: 111866.3917 | Q37: 0.002598627956
A38: 2010-11-01 | B38: 1035 | C38: 75000 | D38: 246977.0205 | E38: 75000 | F38: 77625000 | H38: 2010-11-01 | I38: 1035 | J38: 75001.74374 | K38: 73.15669821 | L38: 73.51867439 | N38: 237971170.4 | O38: 109112.4932 | Q38: 0.002324938011
A39: 2010-12-01 | B39: 1065 | C39: 75000 | D39: 245061.4624 | E39: 75000 | F39: 79875000 | H39: 2010-12-01 | I39: 1065 | J39: 75000.77494 | K39: 75.47850801 | L39: 75.60244433 | N39: 241899222.1 | O39: 106596.6254 | Q39: 0.001033247976
A40: 2011-01-01 | B40: 1096 | C40: 75000 | D40: 242878.2505 | E40: 75000 | F40: 82200000 | H40: 2011-01-01 | I40: 1096 | J40: 75001.13664 | K40: 77.90503313 | L40: 77.79309727 | N40: 245864618.5 | O40: 104072.5976 | Q40: 0.001515493748
A41: 2011-02-01 | B41: 1127 | C41: 75000 | D41: 240673.3117 | E41: 75000 | F41: 84525000 | H41: 2011-02-01 | I41: 1127 | J41: 75001.87229 | K41: 80.47028619 | L41: 79.99124205 | N41: 249736121 | O41: 101609.5677 | Q41: 0.002496327982
A42: 2011-03-01 | B42: 1155 | C42: 75000 | D42: 238681.7541 | E42: 75000 | F42: 86625000 | H42: 2011-03-01 | I42: 1155 | J42: 75000.3351 | K42: 82.81950793 | L42: 82.0535548 | N42: 253150204.1 | O42: 99642.9924 | Q42: 0.0004467971024
A43: 2011-04-01 | B43: 1186 | C43: 75000 | D43: 236476.5504 | E43: 75000 | F43: 88950000 | H43: 2011-04-01 | I43: 1186 | J43: 75001.50199 | K43: 85.53419776 | L43: 84.30935678 | N43: 256856925.3 | O43: 97366.37056 | Q43: 0.002002612976
A44: 2011-05-01 | B44: 1216 | C44: 75000 | D44: 234326.0308 | E44: 75000 | F44: 91200000 | H44: 2011-05-01 | I44: 1216 | J44: 75002.21979 | K44: 88.19707932 | L44: 86.59122699 | N44: 260362116.3 | O44: 95204.2143 | Q44: 0.002959631239
A45: 2011-06-01 | B45: 1247 | C45: 75000 | D45: 232103.8271 | E45: 75000 | F45: 93525000 | H45: 2011-06-01 | I45: 1247 | J45: 75002.00929 | K45: 91.02876839 | L45: 88.89700829 | N45: 263903714.8 | O45: 92959.50058 | Q45: 0.002678983697
A46: 2011-07-01 | B46: 1277 | C46: 75000 | D46: 229953.3074 | E46: 75000 | F46: 95775000 | H46: 2011-07-01 | I46: 1277 | J46: 75001.61613 | K46: 93.8095185 | L46: 91.26211806 | N46: 267250258.5 | O46: 90926.67196 | Q46: 0.002154790365
A47: 2011-08-01 | B47: 1308 | C47: 75000 | D47: 227713.4427 | E47: 75000 | F47: 98100000 | H47: 2011-08-01 | I47: 1308 | J47: 75001.70056 | K47: 96.72849289 | L47: 93.63634124 | N47: 270632732.3 | O47: 88935.41557 | Q47: 0.002267358412
A48: 2011-09-01 | B48: 1339 | C48: 75000 | D48: 225385.263 | E48: 75000 | F48: 100425000 | H48: 2011-09-01 | I48: 1339 | J48: 75002.7484 | K48: 99.70821742 | L48: 96.14356203 | N48: 273941131.4 | O48: 87022.38133 | Q48: 0.003664404619
A49: 2011-10-01 | B49: 1369 | C49: 75000 | D49: 223132.1858 | E49: 75000 | F49: 102675000 | H49: 2011-10-01 | I49: 1369 | J49: 75001.04017 | K49: 102.613329 | L49: 98.51245451 | N49: 277073938.7 | O49: 85193.45339 | Q49: 0.001386870535
A50: 2011-11-01 | B50: 1400 | C50: 75000 | D50: 220804.006 | E50: 75000 | F50: 105000000 | H50: 2011-11-01 | I50: 1400 | J50: 75018.16275 | K50: 105.733956 | L50: 101.0911023 | N50: 280243136.7 | O50: 83338.77184 | Q50: 0.02421113226
A51: 2011-12-01 | B51: 1430 | C51: 75000 | D51: 218591.8982 | E51: 75000 | F51: 107250000 | H51: 2011-12-01 | I51: 1430 | J51: 74931.12289 | K51: 108.6387888 | L51: 103.4491072 | N51: 283243333.9 | O51: 81578.48364 | Q51: 0.09192056923
A52: 2012-01-01 | B52: 1461 | C52: 75000 | D52: 216335.5644 | E52: 75000 | F52: 109575000 | H52: 2012-01-01 | I52: 1461 | J52: 75006.85757 | K52: 111.9337154 | L52: 106.0989257 | N52: 286278055 | O52: 79798.4282 | Q52: 0.009142585945
A53: 2012-02-01 | B53: 1492 | C53: 75000 | D53: 214079.2306 | E53: 75000 | F53: 111900000 | H53: 2012-02-01 | I53: 1492 | J53: 75003.92305 | K53: 115.1874569 | L53: 108.7090236 | N53: 289246558 | O53: 78102.34509 | Q53: 0.0052304563
A54: 2012-03-01 | B54: 1521 | C54: 75000 | D54: 211968.4667 | E54: 75000 | F54: 114075000 | H54: 2012-03-01 | I54: 1521 | J54: 75004.48851 | K54: 118.2757972 | L54: 111.1600083 | N54: 291964520.9 | O54: 76567.46031 | Q54: 0.005984327741
A55: 2012-04-01 | B55: 1552 | C55: 75000 | D55: 209706.679 | E55: 75000 | F55: 116400000 | H55: 2012-04-01 | I55: 1552 | J55: 75004.36055 | K55: 121.6449799 | L55: 113.848576 | N55: 294812831.8 | O55: 74985.07416 | Q55: 0.005813724525
A56: 2012-05-01 | B56: 1582 | C56: 75000 | D56: 207517.7863 | E56: 75000 | F56: 118650000 | H56: 2012-05-01 | I56: 1582 | J56: 75002.8175 | K56: 124.9272599 | L56: 116.4134653 | N56: 297512295.8 | O56: 73526.59928 | Q56: 0.003756526182
A57: 2012-06-01 | B57: 1613 | C57: 75000 | D57: 205255.9305 | E57: 75000 | F57: 120975000 | H57: 2012-06-01 | I57: 1613 | J57: 75005.06071 | K57: 128.4216115 | L57: 119.1068578 | N57: 300247486.6 | O57: 72082.83027 | Q57: 0.006747151925
A58: 2012-07-01 | B58: 1643 | C58: 75000 | D58: 203096.6105 | E58: 75000 | F58: 123225000 | H58: 2012-07-01 | I58: 1643 | J58: 75005.67418 | K58: 131.2798334 | L58: 122.2093344 | N58: 302842469.8 | O58: 70837.73713 | Q58: 0.007564996204
A59: 2012-08-01 | B59: 1674 | C59: 75000 | D59: 200890.3324 | E59: 75000 | F59: 125550000 | H59: 2012-08-01 | I59: 1674 | J59: 75001.31357 | K59: 135.3211399 | L59: 124.6274597 | N59: 305477634.9 | O59: 69409.34065 | Q59: 0.001751389552
A60: 2012-09-01 | B60: 1705 | C60: 75000 | D60: 198684.0543 | E60: 75000 | F60: 127875000 | H60: 2012-09-01 | I60: 1705 | J60: 74998.73973 | K60: 138.6922989 | L60: 127.796069 | N60: 308059663.6 | O60: 68393.63714 | Q60: 0.001680383783
A61: 2012-10-01 | B61: 1735 | C61: 75000 | D61: 196569.762 | E61: 75000 | F61: 130125000 | H61: 2012-10-01 | I61: 1735 | J61: 75010.86334 | K61: 142.4979663 | L61: 129.6565789 | N61: 310521835.8 | O61: 67154.76678 | Q61: 0.0144823574
A62: 2012-11-01 | B62: 1766 | C62: 75000 | D62: 194401.4826 | E62: 75000 | F62: 132450000 | H62: 2012-11-01 | I62: 1766 | J62: 75012.47436 | K62: 145.887866 | L62: 133.3609935 | N62: 313019994.3 | O62: 65957.26575 | Q62: 0.01662970746
A63: 2012-12-01 | B63: 1796 | C63: 75000 | D63: 192303.1476 | E63: 75000 | F63: 134700000 | H63: 2012-12-01 | I63: 1796 | J63: 75010.11199 | K63: 149.705447 | L63: 134.4273194 | N63: 315394457 | O63: 64858.23407 | Q63: 0.01348083684
A64: 2013-01-01 | B64: 1827 | C64: 75000 | D64: 190148.8214 | E64: 75000 | F64: 137025000 | H64: 2013-01-01 | I64: 1827 | J64: 75017.88616 | K64: 153.0252859 | L64: 138.5806177 | N64: 317807184.5 | O64: 63574.79722 | Q64: 0.02384252556
A65: 2013-02-01 | B65: 1858 | C65: 75000 | D65: 188020.2475 | E65: 75000 | F65: 139350000 | H65: 2013-02-01 | I65: 1858 | J65: 74999.41806 | K65: 156.6399103 | L65: 140.0006429 | N65: 320172168.1 | O65: 62486.30893 | Q65: 0.0007759193911
A66: 2013-03-01 | B66: 1886 | C66: 75000 | D66: 186097.6646 | E66: 75000 | F66: 141450000 | H66: 2013-03-01 | I66: 1886 | J66: 75016.8256 | K66: 160.7886856 | L66: 143.6078134 | N66: 322271709.1 | O66: 61537.44766 | Q66: 0.02242910372
A67: 2013-04-01 | B67: 1917 | C67: 75000 | D67: 183990.8989 | E67: 75000 | F67: 143775000 | H67: 2013-04-01 | I67: 1917 | J67: 75018.19221 | K67: 163.6588379 | L67: 145.8083925 | N67: 324560903.3 | O67: 60894.49903 | Q67: 0.02425039386
A68: 2013-05-01 | B68: 1947 | C68: 75000 | D68: 182001.6154 | E68: 75000 | F68: 146025000 | H68: 2013-05-01 | I68: 1947 | J68: 74999.12277 | K68: 169.1504996 | L68: 148.8807005 | N68: 326753106.3 | O68: 59630.11618 | Q68: 0.001169659648
A69: 2013-06-01 | B69: 1978 | C69: 75000 | D69: 179946.0224 | E69: 75000 | F69: 148350000 | H69: 2013-06-01 | I69: 1978 | J69: 74998.85089 | K69: 171.0505807 | L69: 151.9286803 | N69: 328971347.7 | O69: 58621.5363 | Q69: 0.001532169978
A70: 2013-07-01 | B70: =A70-A69+B69 -> 2008 | C70: 75000 | D70: =BOtabinterpol(F70,2,$N$4:$O$244) -> 177974.0334 | E70: =IF(C70<D70,C70,D70) -> 75000 | F70: =F69+(A70-A69)*E69 -> 150600000 | H70: 2013-07-01 | I70: =H70-H69+I69 -> 2008 | J70: 74998.68729 | K70: 177.6618526 | L70: 154.3334659 | N70: 331081724.1 | O70: 58159.89159 | Q70: =ABS(E70-J70)*100/J70 -> 0.001750316884
A71: 2013-08-01 | B71: 2039 | C71: 75000 | D71: 175980.0699 | E71: 75000 | F71: 152925000 | H71: 2013-08-01 | I71: 2039 | J71: 74997.79733 | K71: 178.6334483 | L71: 158.2407566 | N71: 333245273.1 | O71: 57238.62973 | Q71: 0.002936983488
A72: 2013-09-01 | B72: 2070 | C72: 75000 | D72: 173986.1064 | E72: 75000 | F72: 155250000 | H72: 2013-09-01 | I72: 2070 | J72: 75001.58364 | K72: 186.3913129 | L72: 159.7661139 | N72: 335374551.2 | O72: 56351.44167 | Q72: 0.002111471923
A73: 2013-10-01 | B73: 2100 | C73: 75000 | D73: 172065.1738 | E73: 75000 | F73: 157500000 | H73: 2013-10-01 | I73: 2100 | J73: 75002.16044 | K73: 186.3376084 | L73: 164.7651692 | N73: 337403204.1 | O73: 55469.5928 | Q73: 0.002880508218
A74: 2013-11-01 | B74: 2131 | C74: 75000 | D74: 170089.2061 | E74: 75000 | F74: 159825000 | H74: 2013-11-01 | I74: 2131 | J74: 75002.38547 | K74: 194.9466426 | L74: 165.5636843 | N74: 339466673.9 | O74: 54600.04162 | Q74: 0.003180531715
A75: 2013-12-01 | B75: 2161 | C75: 75000 | D75: 168176.9793 | E75: 75000 | F75: 162075000 | H75: 2013-12-01 | I75: 2161 | J75: 75002.21581 | K75: 194.5398474 | L75: 171.3942385 | N75: 341432276.4 | O75: 53772.6788 | Q75: 0.002954319588
A76: 2014-01-01 | B76: 2192 | C76: 75000 | D76: 166238.3162 | E76: 75000 | F76: 164400000 | H76: 2014-01-01 | I76: 2192 | J76: 75002.42302 | K76: 203.1606929 | L76: 172.4332724 | N76: 343432621 | O76: 52911.15444 | Q76: 0.003230590957
A77: 2014-02-01 | B77: 2223 | C77: 75000 | D77: 164316.938 | E77: 75000 | F77: 166725000 | H77: 2014-02-01 | I77: 2223 | J77: 75002.87183 | K77: 203.8627937 | L77: 178.1230792 | N77: 345400916.9 | O77: 52078.21869 | Q77: 0.003828963914
A78: 2014-03-01 | B78: 2251 | C78: 75000 | D78: 162581.4996 | E78: 75000 | F78: 168825000 | H78: 2014-03-01 | I78: 2251 | J78: 75003.31325 | K78: 211.8600372 | L78: 178.6390513 | N78: 347150745.9 | O78: 51334.27695 | Q78: 0.004417476968
A79: 2014-04-01 | B79: 2282 | C79: 75000 | D79: 160635.8067 | E79: 75000 | F79: 171150000 | H79: 2014-04-01 | I79: 2282 | J79: 75003.71878 | K79: 212.5048619 | L79: 184.4775317 | N79: 349060381.9 | O79: 50529.63288 | Q79: 0.0049581299
A80: 2014-05-01 | B80: 2312 | C80: 75000 | D80: 158750.4301 | E80: 75000 | F80: 173400000 | H80: 2014-05-01 | I80: 2312 | J80: 75004.08546 | K80: 220.8273459 | L80: 185.6844965 | N80: 350879449.6 | O80: 49793.21948 | Q80: 0.005446989438
A81: 2014-06-01 | B81: 2343 | C81: 75000 | D81: 156806.4895 | E81: 75000 | F81: 175725000 | H81: 2014-06-01 | I81: 2343 | J81: 75003.10365 | K81: 222.1403349 | L81: 191.2795839 | N81: 352731758.3 | O81: 49044.15087 | Q81: 0.004138027686
A82: 2014-07-01 | B82: 2373 | C82: 75000 | D82: 154932.6576 | E82: 75000 | F82: 177975000 | H82: 2014-07-01 | I82: 2373 | J82: 75004.16653 | K82: 230.3990427 | L82: 192.5749947 | N82: 354497348.6 | O82: 48351.59579 | Q82: 0.005555060988
A83: 2014-08-01 | B83: 2404 | C83: 75000 | D83: 152996.3646 | E83: 75000 | F83: 180300000 | H83: 2014-08-01 | I83: 2404 | J83: 75003.44686 | K83: 231.1645856 | L83: 198.4119729 | N83: 356296028.8 | O83: 47653.83793 | Q83: 0.004595601636
A84: 2014-09-01 | B84: 2435 | C84: 75000 | D84: 151081.1023 | E84: 75000 | F84: 182625000 | H84: 2014-09-01 | I84: 2435 | J84: 75005.43258 | K84: 240.0563013 | L84: 200.1118972 | N84: 358068752.4 | O84: 46986.48425 | Q84: 0.007242918002
A85: 2014-10-01 | B85: 2465 | C85: 75000 | D85: 149232.5012 | E85: 75000 | F85: 184875000 | H85: 2014-10-01 | I85: 2465 | J85: 75004.44697 | K85: 240.7391152 | L85: 205.4737005 | N85: 359760266.7 | O85: 46348.3548 | Q85: 0.005928942552
A86: 2014-11-01 | B86: 2496 | C86: 75000 | D86: 147348.0857 | E86: 75000 | F86: 187200000 | H86: 2014-11-01 | I86: 2496 | J86: 75005.75759 | K86: 249.8439665 | L86: 207.0901303 | N86: 361484426.3 | O86: 45718.28767 | Q86: 0.007676199877
A87: 2014-12-01 | B87: 2526 | C87: 75000 | D87: 145560.2167 | E87: 75000 | F87: 189450000 | H87: 2014-12-01 | I87: 2526 | J87: 75005.21291 | K87: 250.2609104 | L87: 212.8818353 | N87: 363130285.5 | O87: 45118.9653 | Q87: 0.006950066852
A88: 2015-01-01 | B88: 2557 | C88: 75000 | D88: 143712.6633 | E88: 75000 | F88: 191775000 | H88: 2015-01-01 | I88: 2557 | J88: 75008.58 | K88: 259.8127592 | L88: 214.4788515 | N88: 364808711.8 | O88: 44522.2936 | Q88: 0.01143869031
A89: 2015-02-01 | B89: 2588 | C89: 75000 | D89: 141855.5801 | E89: 75000 | F89: 194100000 | H89: 2015-02-01 | I89: 2588 | J89: 75007.04851 | K89: 260.5086285 | L89: 220.5119482 | N89: 366464942 | O89: 43941.81253 | Q89: 0.009397133413
A90: 2015-03-01 | B90: 2616 | C90: 75000 | D90: 140178.2145 | E90: 75000 | F90: 196200000 | H90: 2015-03-01 | I90: 2616 | J90: 75000.6687 | K90: 269.7305776 | L90: 221.7911703 | N90: 367941387.6 | O90: 43436.10865 | Q90: 0.0008915959692
A91: 2015-04-01 | B91: 2647 | C91: 75000 | D91: 138295.6659 | E91: 75000 | F91: 198525000 | H91: 2015-04-01 | I91: 2647 | J91: 75007.27083 | K91: 270.8072472 | L91: 227.9683118 | N91: 369557211.6 | O91: 42883.52709 | Q91: 0.009693502242
A92: 2015-05-01 | B92: 2677 | C92: 75000 | D92: 136458.2712 | E92: 75000 | F92: 200775000 | H92: 2015-05-01 | I92: 2677 | J92: 75000.88985 | K92: 280.2527692 | L92: 229.7528919 | N92: 371101019.3 | O92: 42377.01769 | Q92: 0.001186455227
A93: 2015-06-01 | B93: 2708 | C93: 75000 | D93: 134594.9003 | E93: 75000 | F93: 203100000 | H93: 2015-06-01 | I93: 2708 | J93: 75007.54726 | K93: 281.8858914 | L93: 235.7407336 | N93: 372677445.2 | O93: 41862.16129 | Q93: 0.01006200673
A94: 2015-07-01 | B94: 2738 | C94: 75000 | D94: 132817.9066 | E94: 75000 | F94: 205350000 | H94: 2015-07-01 | I94: 2738 | J94: 75000.69946 | K94: 291.0832014 | L94: 237.8082671 | N94: 374184483.7 | O94: 41380.51702 | Q94: 0.0009326010865
A95: 2015-08-01 | B95: 2769 | C95: 75000 | D95: 130985.6793 | E95: 75000 | F95: 207675000 | H95: 2015-08-01 | I95: 2769 | J95: 75000.26277 | K95: 293.0321432 | L95: 243.6775124 | N95: 375723839.7 | O95: 40889.60098 | Q95: 0.0003503628311
A96: 2015-09-01 | B96: 2800 | C96: 75000 | D96: 129160.4792 | E96: 75000 | F96: 210000000 | H96: 2015-09-01 | I96: 2800 | J96: 74998.96966 | K96: 301.1415494 | L96: 248.1383854 | N96: 377244933.6 | O96: 40417.44362 | Q96: 0.00137380094
A97: 2015-10-01 | B97: 2830 | C97: 75000 | D97: 127405.1707 | E97: 75000 | F97: 212250000 | H97: 2015-10-01 | I97: 2830 | J97: 75000.92829 | K97: 305.5438046 | L97: 251.4901578 | N97: 378699962.3 | O97: 39962.41659 | Q97: 0.001237701959
A98: 2015-11-01 | B98: 2861 | C98: 75000 | D98: 125617.6848 | E98: 75000 | F98: 214575000 | H98: 2015-11-01 | I98: 2861 | J98: 74999.77778 | K98: 312.0084278 | L98: 257.0099642 | N98: 380186564.9 | O98: 39540.98826 | Q98: 0.0002962960619
A99: 2015-12-01 | B99: 2891 | C99: 75000 | D99: 123900.1246 | E99: 75000 | F99: 216825000 | H99: 2015-12-01 | I99: 2891 | J99: 74999.33503 | K99: 316.8970135 | L99: 261.4259392 | N99: 381610041.2 | O99: 39093.80468 | Q99: 0.0008866352825
A100: 2016-01-01 | B100: 2922 | C100: 75000 | D100: 122170.2337 | E100: 75000 | F100: 219150000 | H100: 2016-01-01 | I100: 2922 | J100: 74999.45252 | K100: 323.4379958 | L100: 265.534894 | N100: 383064331.4 | O100: 38637.8024 | Q100: 0.0007299734579
A101: 2016-02-01 | B101: 2953 | C101: 75000 | D101: 120458.0951 | E101: 75000 | F101: 221475000 | H101: 2016-02-01 | I101: 2953 | J101: 75000.39117 | K101: 329.1637895 | L101: 270.1527408 | N101: 384501658.4 | O101: 38175.71025 | Q101: 0.0005215581491
A102: 2016-03-01 | B102: 2982 | C102: 75000 | D102: 118897.315 | E102: 75000 | F102: 223650000 | H102: 2016-03-01 | I102: 2982 | J102: 75000.15259 | K102: 335.1597664 | L102: 274.4095142 | N102: 385830173.7 | O102: 37759.6155 | Q102: 0.0002034533807
A103: 2016-04-01 | B103: 3013 | C103: 75000 | D103: 117245.3212 | E103: 75000 | F103: 225975000 | H103: 2016-04-01 | I103: 3013 | J103: 74999.99898 | K103: 341.4391727 | L103: 279.0343898 | N103: 387234832.1 | O103: 37331.69476 | Q103: 1.365393361e-06
A104: 2016-05-01 | B104: 3043 | C104: 75000 | D104: 115685.6812 | E104: 75000 | F104: 228225000 | H104: 2016-05-01 | I104: 3043 | J104: 74999.59767 | K104: 347.8188234 | L104: 283.5977749 | N104: 388578773.8 | O104: 36932.81974 | Q104: 0.0005364370816
A105: 2016-06-01 | B105: 3074 | C105: 75000 | D105: 114084.9735 | E105: 75000 | F105: 230550000 | H105: 2016-06-01 | I105: 3074 | J105: 74999.76628 | K105: 354.5347858 | L105: 288.4122783 | N105: 389952675.3 | O105: 36521.16263 | Q105: 0.0003116300405
A106: 2016-07-01 | B106: 3104 | C106: 75000 | D106: 112553.6209 | E106: 75000 | F106: 232800000 | H106: 2016-07-01 | I106: 3104 | J106: 74999.50906 | K106: 361.1613417 | L106: 293.1560457 | N106: 391267437.8 | O106: 36136.57712 | Q106: 0.0006545939409
A107: 2016-08-01 | B107: 3135 | C107: 75000 | D107: 110995.995 | E107: 75000 | F107: 235125000 | H107: 2016-08-01 | I107: 3135 | J107: 75001.06354 | K107: 368.1647615 | L107: 298.1523969 | N107: 392611719.2 | O107: 35756.8991 | Q107: 0.001418028148
A108: 2016-09-01 | B108: 3166 | C108: 75000 | D108: 109457.3866 | E108: 75000 | F108: 237450000 | H108: 2016-09-01 | I108: 3166 | J108: 75000.94167 | K108: 375.1817773 | L108: 303.1809557 | N108: 393941876.5 | O108: 35388.58992 | Q108: 0.00125553928
A109: 2016-10-01 | B109: 3196 | C109: 75000 | D109: 108005.1995 | E109: 75000 | F109: 239700000 | H109: 2016-10-01 | I109: 3196 | J109: 75001.01475 | K109: 382.0686168 | L109: 308.2239153 | N109: 395215866.3 | O109: 35043.59028 | Q109: 0.001352987807
A110: 2016-11-01 | B110: 3227 | C110: 75000 | D110: 106516.5661 | E110: 75000 | F110: 242025000 | H110: 2016-11-01 | I110: 3227 | J110: 74999.32355 | K110: 389.2642686 | L110: 314.0200933 | N110: 396519488.5 | O110: 34693.16705 | Q110: 0.0009019447936
A111: 2016-12-01 | B111: 3257 | C111: 75000 | D111: 105084.411 | E111: 75000 | F111: 244275000 | H111: 2016-12-01 | I111: 3257 | J111: 75001.54854 | K111: 396.3555002 | L111: 319.9401344 | N111: 397768443.1 | O111: 34371.91436 | Q111: 0.002064674836
A112: 2017-01-01 | B112: 3288 | C112: 75000 | D112: 103604.7517 | E112: 75000 | F112: 246600000 | H112: 2017-01-01 | I112: 3288 | J112: 75001.72674 | K112: 403.714622 | L112: 326.5493116 | N112: 399047079 | O112: 34046.04212 | Q112: 0.002302272902
A113: 2017-02-01 | B113: 3319 | C113: 75000 | D113: 102125.5987 | E113: 75000 | F113: 248925000 | H113: 2017-02-01 | I113: 3319 | J113: 75001.52215 | K113: 411.1805743 | L113: 333.3320268 | N113: 400313592.4 | O113: 33722.85955 | Q113: 0.002029495243
A114: 2017-03-01 | B114: 3347 | C114: 75000 | D114: 100867.1494 | E114: 75000 | F114: 251025000 | H114: 2017-03-01 | I114: 3347 | J114: 75001.5359 | K114: 418.0170998 | L114: 339.6300274 | N114: 401446681 | O114: 33427.39285 | Q114: 0.002047825623
A115: 2017-04-01 | B115: 3378 | C115: 75000 | D115: 99520.28028 | E115: 75000 | F115: 253350000 | H115: 2017-04-01 | I115: 3378 | J115: 75001.52961 | K115: 425.7271207 | L115: 346.8454591 | N115: 402690180.6 | O115: 33118.71939 | Q115: 0.002039442489
A116: 2017-05-01 | B116: 3408 | C116: 75000 | D116: 98138.35837 | E116: 75000 | F116: 255600000 | H116: 2017-05-01 | I116: 3408 | J116: 75001.83545 | K116: 433.3686177 | L116: 354.115671 | N116: 403882455.1 | O116: 32813.50331 | Q116: 0.002447208256
A117: 2017-06-01 | B117: 3439 | C117: 75000 | D117: 96707.53501 | E117: 75000 | F117: 257925000 | H117: 2017-06-01 | I117: 3439 | J117: 75000.13201 | K117: 443.1571556 | L117: 363.9310268 | N117: 405103118 | O117: 32498.35775 | Q117: 0.0001760067876
A118: 2017-07-01 | B118: 3469 | C118: 75000 | D118: 95319.63589 | E118: 75000 | F118: 260175000 | H118: 2017-07-01 | I118: 3469 | J118: 75003.09494 | K118: 448.4848894 | L118: 369.3022226 | N118: 406273059.5 | O118: 32189.06726 | Q118: 0.004126409947
A119: 2017-08-01 | B119: 3500 | C119: 75000 | D119: 93849.19429 | E119: 75000 | F119: 262500000 | H119: 2017-08-01 | I119: 3500 | J119: 75003.5797 | K119: 460.0262459 | L119: 380.3649784 | N119: 407470493.3 | O119: 31889.7618 | Q119: 0.004772708335
A120: 2017-09-01 | B120: 3531 | C120: 75000 | D120: 92399.87397 | E120: 75000 | F120: 264825000 | H120: 2017-09-01 | I120: 3531 | J120: 74997.844 | K120: 464.7307602 | L120: 388.8227682 | N120: 408656793.1 | O120: 31590.37012 | Q120: 0.002874746567
A121: 2017-10-01 | B121: 3561 | C121: 75000 | D121: 91033.13119 | E121: 75000 | F121: 267075000 | H121: 2017-10-01 | I121: 3561 | J121: 75000.84819 | K121: 475.6648688 | L121: 397.9363317 | N121: 409794046.9 | O121: 31299.66725 | Q121: 0.001130904136
A122: 2017-11-01 | B122: 3592 | C122: 75000 | D122: 89661.12292 | E122: 75000 | F122: 269400000 | H122: 2017-11-01 | I122: 3592 | J122: 75001.66894 | K122: 482.6878844 | L122: 409.0110993 | N122: 410958395.1 | O122: 31016.21385 | Q122: 0.00222520195
A123: 2017-12-01 | B123: 3622 | C123: 75000 | D123: 88347.19515 | E123: 75000 | F123: 271650000 | H123: 2017-12-01 | I123: 3622 | J123: 75001.72934 | K123: 493.1989802 | L123: 419.0010973 | N123: 412074979.4 | O123: 30741.05254 | Q123: 0.002305729411
A124: 2018-01-01 | B124: 3653 | C124: 75000 | D124: 87002.6089 | E124: 75000 | F124: 273975000 | H124: 2018-01-01 | I124: 3653 | J124: 75002.89081 | K124: 500.1960558 | L124: 431.127128 | N124: 413218547.1 | O124: 30458.28969 | Q124: 0.003854264271
A125: 2018-02-01 | B125: 3684 | C125: 75000 | D125: 85645.27756 | E125: 75000 | F125: 276300000 | H125: 2018-02-01 | I125: 3684 | J125: 75001.26609 | K125: 510.1768528 | L125: 443.157729 | N125: 414351596 | O125: 30186.20109 | Q125: 0.001688094842
A126: 2018-03-01 | B126: 3712 | C126: 75000 | D126: 84417.41431 | E126: 75000 | F126: 278400000 | H126: 2018-03-01 | I126: 3712 | J126: 75001.38525 | K126: 518.6069332 | L126: 454.064745 | N126: 415365852.9 | O126: 29938.43399 | Q126: 0.001846965167
A127: 2018-04-01 | B127: 3743 | C127: 75000 | D127: 83056.05098 | E127: 75000 | F127: 280725000 | H127: 2018-04-01 | I127: 3743 | J127: 75001.55142 | K127: 528.2649471 | L127: 465.1151822 | N127: 416479563.1 | O127: 29675.144 | Q127: 0.002068515997
A128: 2018-05-01 | B128: 3773 | C128: 75000 | D128: 81735.92163 | E128: 75000 | F128: 282975000 | H128: 2018-05-01 | I128: 3773 | J128: 75001.62093 | K128: 537.2974128 | L128: 476.2212525 | N128: 417547868.9 | O128: 29417.26228 | Q128: 0.00216119595
A129: 2018-06-01 | B129: 3804 | C129: 75000 | D129: 80372.11918 | E129: 75000 | F129: 285300000 | H129: 2018-06-01 | I129: 3804 | J129: 75002.6299 | K129: 547.2718619 | L129: 488.5233127 | N129: 418642191.5 | O129: 29161.88614 | Q129: 0.003506415065
A130: 2018-07-01 | B130: 3834 | C130: 75000 | D130: 79071.69002 | E130: 75000 | F130: 287550000 | H130: 2018-07-01 | I130: 3834 | J130: 75004.89619 | K130: 557.1406531 | L130: 500.329602 | N130: 419692020 | O130: 28905.54988 | Q130: 0.006527824287
A131: 2018-08-01 | B131: 3865 | C131: 75000 | D131: 77747.45205 | E131: 75000 | F131: 289875000 | H131: 2018-08-01 | I131: 3865 | J131: 74996.88086 | K131: 567.3944126 | L131: 512.7226436 | N131: 420767306.9 | O131: 28657.81422 | Q131: 0.004159024742
A132: 2018-09-01 | B132: 3896 | C132: 75000 | D132: 76436.63931 | E132: 75000 | F132: 292200000 | H132: 2018-09-01 | I132: 3896 | J132: 75001.62384 | K132: 578.219257 | L132: 526.3084431 | N132: 421833378.1 | O132: 28411.99448 | Q132: 0.002165074713
A133: 2018-10-01 | B133: 3926 | C133: 75000 | D133: 75186.64627 | E133: 75000 | F133: 294450000 | H133: 2018-10-01 | I133: 3926 | J133: 74996.12137 | K133: 589.747861 | L133: 540.3761163 | N133: 422856210.4 | O133: 28171.11563 | Q133: 0.005171776811
A134: 2018-11-01 | B134: =A134-A133+B133 -> 3957 | C134: 75000 | D134: =BOtabinterpol(F134,2,$N$4:$O$244) -> 73924.94777 | E134: =IF(C134<D134,C134,D134) -> 73924.94777 | F134: =F133+(A134-A133)*E133 -> 296775000 | H134: 2018-11-01 | I134: =H134-H133+I133 -> 3957 | J134: 74831.41827 | K134: 600.4953613 | L134: 553.6556593 | N134: 423904176.5 | O134: 27942.68068 | Q134: =ABS(E134-J134)*100/J134 -> 1.211350154
A135: 2018-12-01 | B135: 3987 | C135: 75000 | D135: 72745.14315 | E135: 72745.14315 | F135: 298992748.4 | H135: 2018-12-01 | I135: 3987 | J135: 73896.06651 | K135: 604.3584371 | L135: 559.5652641 | N135: 424910113.5 | O135: 27731.36529 | Q135: 1.557489345
A136: 2019-01-01 | B136: 4018 | C136: 75000 | D136: 71602.84915 | E136: 71602.84915 | F136: 301247847.9 | H136: 2019-01-01 | I136: 4018 | J136: 72550.64775 | K136: 605.1332737 | L136: 562.6393448 | N136: 425941720.7 | O136: 27506.05394 | Q136: 1.306395781
A137: 2019-02-01 | B137: 4049 | C137: 75000 | D137: 70498.91864 | E137: 70498.91864 | F137: 303467536.2 | H137: 2019-02-01 | I137: 4049 | J137: 71226.5841 | K137: 605.6869211 | L137: 565.3801691 | N137: 426964946.5 | O137: 27283.07688 | Q137: 1.02162061
A138: 2019-03-01 | B138: 4077 | C138: 75000 | D138: 69428.92444 | E138: 69428.92444 | F138: 305441505.9 | H138: 2019-03-01 | I138: 4077 | J138: 70535.12348 | K138: 609.9727753 | L138: 571.6544351 | N138: 427881658.3 | O138: 27091.88564 | Q138: 1.568295332
A139: 2019-04-01 | B139: 4108 | C139: 75000 | D139: 68576.89486 | E139: 68576.89486 | F139: 307593802.6 | H139: 2019-04-01 | I139: 4108 | J139: 69141.42126 | K139: 609.0987156 | L139: 573.6061645 | N139: 428889476.9 | O139: 26874.69084 | Q139: 0.8164807618
A140: 2019-05-01 | B140: 4138 | C140: 75000 | D140: 67592.8828 | E140: 67592.8828 | F140: 309651109.4 | H140: 2019-05-01 | I140: 4138 | J140: 68521.89847 | K140: 614.1569986 | L140: 580.8209798 | N140: 429856966.3 | O140: 26668.61872 | Q140: 1.355793824
A141: 2019-06-01 | B141: 4169 | C141: 75000 | D141: 66567.72507 | E141: 66567.72507 | F141: 311746488.8 | H141: 2019-06-01 | I141: 4169 | J141: 67257.7406 | K141: 613.5900218 | L141: 583.2590551 | N141: 430849039.4 | O141: 26458.78947 | Q141: 1.025927304
A142: 2019-07-01 | B142: 4199 | C142: 75000 | D142: 65622.3781 | E142: 65622.3781 | F142: 313743520.5 | H142: 2019-07-01 | I142: 4199 | J142: 66473.00281 | K142: 616.6352422 | L142: 588.6899706 | N142: 431801556.2 | O142: 26274.27532 | Q142: 1.279654413
A143: 2019-08-01 | B143: 4230 | C143: 75000 | D143: 64654.30934 | E143: 64654.30934 | F143: 315777814.3 | H143: 2019-08-01 | I143: 4230 | J143: 65570.78006 | K143: 618.7516982 | L143: 593.6836058 | N143: 432778959.8 | O143: 26071.94067 | Q143: 1.397681583
A144: 2019-09-01 | B144: 4261 | C144: 75000 | D144: 63588.14193 | E144: 63588.14193 | F144: 317782097.8 | H144: 2019-09-01 | I144: 4261 | J144: 64659.85751 | K144: 620.5435522 | L144: 598.2684674 | N144: 433748836.4 | O144: 25890.22397 | Q144: 1.657466665
A145: 2019-10-01 | B145: 4291 | C145: 75000 | D145: 62708.34644 | E145: 62708.34644 | F145: 319689742.1 | H145: 2019-10-01 | I145: 4291 | J145: 63763.3588 | K145: 621.9288893 | L145: 602.3899065 | N145: 434680885 | O145: 25700.93864 | Q145: 1.654574638
A146: 2019-11-01 | B146: 4322 | C146: 75000 | D146: 61825.78752 | E146: 61825.78752 | F146: 321633700.8 | H146: 2019-11-01 | I146: 4322 | J146: 62691.72816 | K146: 621.6781246 | L146: 604.9887737 | N146: 435636960.3 | O146: 25515.2002 | Q146: 1.381267787
A147: 2019-12-01 | B147: 4352 | C147: 75000 | D147: 61195.704 | E147: 61195.704 | F147: 323488474.5 | H147: 2019-12-01 | I147: 4352 | J147: 62128.35636 | K147: 625.8925738 | L147: 611.8047313 | N147: 436555508 | O147: 25344.86302 | Q147: 1.501170193
A148: 2020-01-01 | B148: 4383 | C148: 75000 | D148: 60418.87788 | E148: 60418.87788 | F148: 325385541.3 | H148: 2020-01-01 | I148: 4383 | J148: 60976.43962 | K148: 624.421382 | L148: 613.3069251 | N148: 437498337.4 | O148: 25163.7491 | Q148: 0.9143888161
A149: 2020-02-01 | B149: 4414 | C149: 75000 | D149: 59400.31404 | E149: 59400.31404 | F149: 327258526.5 | H149: 2020-02-01 | I149: 4414 | J149: 60126.04474 | K149: 625.7837226 | L149: 617.2494292 | N149: 438434429.3 | O149: 24997.10789 | Q149: 1.207015531
A150: 2020-03-01 | B150: 4443 | C150: 75000 | D150: 58619.39521 | E150: 58619.39521 | F150: 328981135.6 | H150: 2020-03-01 | I150: 4443 | J150: 59765.78341 | K150: 631.4090122 | L150: 625.5582434 | N150: 439304329.1 | O150: 24842.4942 | Q150: 1.918134655
A151: 2020-04-01 | B151: 4474 | C151: 75000 | D151: 58221.88252 | E151: 58221.88252 | F151: 330798336.9 | H151: 2020-04-01 | I151: 4474 | J151: 58530.58451 | K151: 628.5478177 | L151: 625.6068892 | N151: 440228470.3 | O151: 24673.46144 | Q151: 0.5274199554
A152: 2020-05-01 | B152: 4504 | C152: 75000 | D152: 57536.81619 | E152: 57536.81619 | F152: 332544993.3 | H152: 2020-05-01 | I152: 4504 | J152: 58164.92362 | K152: 634.3428593 | L152: 633.9640399 | N152: 441116715.3 | O152: 24521.35509 | Q152: 1.079873221
A153: 2020-06-01 | B153: 4535 | C153: 75000 | D153: 56787.23475 | E153: 56787.23475 | F153: 334328634.6 | H153: 2020-06-01 | I153: 4535 | J153: 56958.54494 | K153: 631.3525335 | L153: 634.0438687 | N153: 442028910.2 | O153: 24362.0771 | Q153: 0.3007629383
A154: 2020-07-01 | B154: 4565 | C154: 75000 | D154: 56065.54137 | E154: 56065.54137 | F154: 336032251.7 | H154: 2020-07-01 | I154: 4565 | J154: 56607.90528 | K154: 637.2391227 | L154: 642.609114 | N154: 442905945.4 | O154: 24209.13774 | Q154: 0.9581063049
A155: 2020-08-01 | B155: 4596 | C155: 75000 | D155: 55314.90465 | E155: 55314.90465 | F155: 337770283.5 | H155: 2020-08-01 | I155: 4596 | J155: 55842.21764 | K155: 638.6965822 | L155: 648.0567969 | N155: 443806525.8 | O155: 24059.9955 | Q155: 0.9442909327
A156: 2020-09-01 | B156: 4627 | C156: 75000 | D156: 54592.30863 | E156: 54592.30863 | F156: 339485045.5 | H156: 2020-09-01 | I156: 4627 | J156: 55057.69171 | K156: 639.7837012 | L156: 652.9312279 | N156: 444701558 | O156: 23905.62682 | Q156: 0.8452644277
A157: 2020-10-01 | B157: 4657 | C157: 75000 | D157: 53902.9376 | E157: 53902.9376 | F157: 341122814.8 | H157: 2020-10-01 | I157: 4657 | J157: 54300.74272 | K157: 640.6553373 | L157: 657.471097 | N157: 445562161 | O157: 23761.56878 | Q157: 0.7325960846
A158: 2020-11-01 | B158: 4688 | C158: 75000 | D158: 53186.28444 | E158: 53186.28444 | F158: 342793805.8 | H158: 2020-11-01 | I158: 4688 | J158: 53544.94566 | K158: 641.3933914 | L158: 661.967197 | N158: 446446091.8 | O158: 23613.7315 | Q158: 0.6698320622
A159: 2020-12-01 | B159: 4718 | C159: 75000 | D159: 52506.27083 | E159: 52506.27083 | F159: 344389394.4 | H159: 2020-12-01 | I159: 4718 | J159: 52815.42306 | K159: 642.0309445 | L159: 666.2403661 | N159: 447296186.6 | O159: 23475.64953 | Q159: 0.5853446035
A160: 2021-01-01 | B160: 4749 | C160: 75000 | D160: 51816.25254 | E160: 51816.25254 | F160: 346017088.8 | H160: 2021-01-01 | I160: 4749 | J160: 52083.86097 | K160: 642.4102296 | L160: 670.5082146 | N160: 448169481.1 | O160: 23327.9663 | Q160: 0.5138029767
A161: 2021-02-01 | B161: 4780 | C161: 75000 | D161: 51135.12258 | E161: 51135.12258 | F161: 347623392.6 | H161: 2021-02-01 | I161: 4780 | J161: 51373.72413 | K161: 642.8337588 | L161: 674.9007936 | N161: 449037281.9 | O161: 23189.34581 | Q161: 0.4644427616
A162: 2021-03-01 | B162: 4808 | C162: 75000 | D162: 50531.82644 | E162: 50531.82644 | F162: 349055176 | H162: 2021-03-01 | I162: 4808 | J162: 50761.22179 | K162: 643.2401216 | L162: 679.7154851 | N162: 449816444.3 | O162: 23054.43207 | Q162: 0.4519106029
A163: 2021-04-01 | B163: 4839 | C163: 75000 | D163: 49897.57941 | E163: 49897.57941 | F163: 350621662.6 | H163: 2021-04-01 | I163: 4839 | J163: 50105.78757 | K163: 643.6795406 | L163: 684.8401259 | N163: 450674069.6 | O163: 22918.54186 | Q163: 0.415537151
A164: 2021-05-01 | B164: 4869 | C164: 75000 | D164: 49292.11444 | E164: 49292.11444 | F164: 352118590 | H164: 2021-05-01 | I164: 4869 | J164: 49489.42327 | K164: 644.1261974 | L164: 689.6493744 | N164: 451499137.5 | O164: 22774.04355 | Q164: 0.3986888764
A165: 2021-06-01 | B165: 4900 | C165: 75000 | D165: 48685.28513 | E165: 48685.28513 | F165: 353646645.6 | H165: 2021-06-01 | I165: 4900 | J165: 48873.905 | K165: 644.6170859 | L165: 694.4728959 | N165: 452346332.3 | O165: 22627.35474 | Q165: 0.3859316459
A166: 2021-07-01 | B166: 4930 | C166: 75000 | D166: 48115.01593 | E166: 48115.01593 | F166: 355107204.1 | H166: 2021-07-01 | I166: 4930 | J166: 48292.00591 | K166: 645.119276 | L166: 699.0521233 | N166: 453160917.5 | O166: 22495.94824 | Q166: 0.3664995472
A167: 2021-08-01 | B167: 4961 | C167: 75000 | D167: 47539.86912 | E167: 47539.86912 | F167: 356598769.6 | H167: 2021-08-01 | I167: 4961 | J167: 47706.03115 | K167: 645.6793016 | L167: 703.8260486 | N167: 453997767.2 | O167: 22337.75615 | Q167: 0.3483040301
A168: 2021-09-01 | B168: 4992 | C168: 75000 | D168: 46985.06837 | E168: 46985.06837 | F168: 358072505.6 | H168: 2021-09-01 | I168: 4992 | J168: 47133.02482 | K168: 646.2647629 | L168: 708.5782066 | N168: 454828732.1 | O168: 22200.79949 | Q168: 0.3139124837
A169: 2021-10-01 | B169: 5022 | C169: 75000 | D169: 46453.31011 | E169: 46453.31011 | F169: 359482057.6 | H169: 2021-10-01 | I169: 5022 | J169: 46589.19346 | K169: 646.8730118 | L169: 713.1360032 | N169: 455627961.3 | O169: 22051.68568 | Q169: 0.2916628177
A170: 2021-11-01 | B170: 5053 | C170: 75000 | D170: 45923.77728 | E170: 45923.77728 | F170: 360922110.2 | H170: 2021-11-01 | I170: 5053 | J170: 46040.3992 | K170: 647.5403719 | L170: 717.7982084 | N170: 456448284.4 | O170: 21924.13764 | Q170: 0.2533034636
A171: 2021-12-01 | B171: 5083 | C171: 75000 | D171: 45421.36932 | E171: 45421.36932 | F171: 362299823.6 | H171: 2021-12-01 | I171: 5083 | J171: 45519.41628 | K171: 648.2398357 | L171: 722.2284137 | N171: 457237553.7 | O171: 21771.72044 | Q171: 0.215395918
A172: 2022-01-01 | B172: 5114 | C172: 75000 | D172: 44913.63137 | E172: 44913.63137 | F172: 363707886 | H172: 2022-01-01 | I172: 5114 | J172: 44990.33131 | K172: 648.9714633 | L172: 726.7109215 | N172: 458047462.1 | O172: 21650.79466 | Q172: 0.1704809281
A173: 2022-02-01 | B173: 5145 | C173: 75000 | D173: 44420.12885 | E173: 44420.12885 | F173: 365100208.6 | H173: 2022-02-01 | I173: 5145 | J173: 44475.76633 | K173: 649.7546903 | L173: 731.1600363 | N173: 458852872.1 | O173: 21498.66594 | Q173: 0.1250961723
A174: 2022-03-01 | B174: 5173 | C174: 75000 | D174: 43984.21042 | E174: 43984.21042 | F174: 366343972.2 | H174: 2022-03-01 | I174: 5173 | J174: 44020.3492 | K174: 650.4774745 | L174: 735.0898025 | N174: 459575227.6 | O174: 21381.46792 | Q174: 0.08209561347
A175: 2022-04-01 | B175: 5204 | C175: 75000 | D175: 43516.22444 | E175: 43516.22444 | F175: 367707482.7 | H175: 2022-04-01 | I175: 5204 | J175: 43530.35138 | K175: 651.2208018 | L175: 739.2900939 | N175: 460370618.6 | O175: 21231.19893 | Q175: 0.03245307786
A176: 2022-05-01 | B176: 5234 | C176: 75000 | D176: 43069.64772 | E176: 43069.64772 | F176: 369012969.4 | H176: 2022-05-01 | I176: 5234 | J176: 43060.75698 | K176: 651.8738318 | L176: 743.1631772 | N176: 461134942.2 | O176: 21107.51665 | Q176: 0.020646974
A177: 2022-06-01 | B177: 5265 | C177: 75000 | D177: 42624.03438 | E177: 42624.03438 | F177: 370348128.5 | H177: 2022-06-01 | I177: 5265 | J177: 42599.29256 | K177: 652.569347 | L177: 747.0645716 | N177: 461920142.2 | O177: 20959.72508 | Q177: 0.05808034384
A178: 2022-07-01 | B178: 5295 | C178: 75000 | D178: 42205.28297 | E178: 42205.28297 | F178: 371626849.5 | H178: 2022-07-01 | I178: 5295 | J178: 42156.22312 | K178: 653.2893666 | L178: 750.6905303 | N178: 462674692.6 | O178: 20842.04393 | Q178: 0.1163762849
A179: 2022-08-01 | B179: 5326 | C179: 75000 | D179: 41779.77949 | E179: 41779.77949 | F179: 372935213.3 | H179: 2022-08-01 | I179: 5326 | J179: 41712.63877 | K179: 654.0647936 | L179: 754.2853643 | N179: 463450017 | O179: 20701.18066 | Q179: 0.160960133
A180: 2022-09-01 | B180: 5357 | C180: 75000 | D180: 41365.87817 | E180: 41365.87817 | F180: 374230386.5 | H180: 2022-09-01 | I180: 5357 | J180: 41271.99832 | K180: 654.8837353 | L180: 757.7290188 | N180: 464220101.3 | O180: 20581.05458 | Q180: 0.2274662031
A181: 2022-10-01 | B181: 5387 | C181: 75000 | D181: 40970.11838 | E181: 40970.11838 | F181: 375471362.8 | H181: 2022-10-01 | I181: 5387 | J181: 40854.49951 | K181: 655.7329163 | L181: 760.9721239 | N181: 464961019.7 | O181: 20454.65495 | Q181: 0.283001543
A182: 2022-11-01 | B182: 5418 | C182: 75000 | D182: 40573.73236 | E182: 40573.73236 | F182: 376741436.5 | H182: 2022-11-01 | I182: 5418 | J182: 40429.62701 | K182: 656.6290865 | L182: 764.1588605 | N182: 465721933.2 | O182: 20344.77269 | Q182: 0.3564350296
A183: 2022-12-01 | B183: 5448 | C183: 75000 | D183: 40194.24557 | E183: 40194.24557 | F183: 377958648.5 | H183: 2022-12-01 | I183: 5448 | J183: 40025.29651 | K183: 657.4337998 | L183: 767.0140764 | N183: 466454345.4 | O183: 20216.51207 | Q183: 0.4221057096
A184: 2023-01-01 | B184: 5479 | C184: 75000 | D184: 39819.3399 | E184: 39819.3399 | F184: 379204670.1 | H184: 2023-01-01 | I184: 5479 | J184: 39637.00278 | K184: 658.7643704 | L184: 770.3836 | N184: 467206400 | O184: 20109.45361 | Q184: 0.4600174421
A185: 2023-02-01 | B185: 5510 | C185: 75000 | D185: 39461.66416 | E185: 39461.66416 | F185: 380439069.6 | H185: 2023-02-01 | I185: 5510 | J185: 39222.1732 | K185: 659.4626405 | L185: 772.7768109 | N185: 467954472 | O185: 19985.14175 | Q185: 0.6106009481
A186: 2023-03-01 | B186: 5538 | C186: 75000 | D186: 39114.55263 | E186: 39114.55263 | F186: 381543996.2 | H186: 2023-03-01 | I186: 5538 | J186: 38855.27391 | K186: 660.1396898 | L186: 774.8422671 | N186: 468625973.1 | O186: 19898.06455 | Q186: 0.667293502
A187: 2023-04-01 | B187: 5569 | C187: 75000 | D187: 38734.31012 | E187: 38734.31012 | F187: 382756547.3 | H187: 2023-04-01 | I187: 5569 | J187: 38449.0189 | K187: 660.7962091 | L187: 776.838313 | N187: 469366181.5 | O187: 19772.23719 | Q187: 0.7419986872
A188: 2023-05-01 | B188: 5599 | C188: 75000 | D188: 38363.16758 | E188: 38363.16758 | F188: 383918576.7 | H188: 2023-05-01 | I188: 5599 | J188: 38054.46519 | K188: 661.2347626 | L188: 778.367711 | N188: 470077982.4 | O188: 19669.59284 | Q188: 0.8112120214
A189: 2023-06-01 | B189: 5630 | C189: 75000 | D189: 37985.85407 | E189: 37985.85407 | F189: 385107834.8 | H189: 2023-06-01 | I189: 5630 | J189: 37664.62514 | K189: 661.7335616 | L189: 779.8678705 | N189: 470809691.6 | O189: 19579.21862 | Q189: 0.8528663833
A190: 2023-07-01 | B190: 5660 | C190: 75000 | D190: 37632.50683 | E190: 37632.50683 | F190: 386247410.5 | H190: 2023-07-01 | I190: 5660 | J190: 37299.14931 | K190: 662.2473439 | L190: 781.2187046 | N190: 471514543.8 | O190: 19466.09231 | Q190: 0.8937402614
A191: 2023-08-01 | B191: 5691 | C191: 75000 | D191: 37278.51325 | E191: 37278.51325 | F191: 387414018.2 | H191: 2023-08-01 | I191: 5691 | J191: 36936.05951 | K191: 662.7685809 | L191: 782.4654449 | N191: 472238682.8 | O191: 19351.79537 | Q191: 0.9271528761
A192: 2023-09-01 | B192: 5722 | C192: 75000 | D192: 36935.52701 | E192: 36935.52701 | F192: 388569652.1 | H192: 2023-09-01 | I192: 5722 | J192: 36584.64565 | K192: 663.3256688 | L192: 783.6333994 | N192: 472958569.9 | O192: 19261.58913 | Q192: 0.9590946129
A193: 2023-10-01 | B193: 5752 | C193: 75000 | D193: 36603.54712 | E193: 36603.54712 | F193: 389677717.9 | H193: 2023-10-01 | I193: 5752 | J193: 36245.62536 | K193: 663.9289346 | L193: 784.6792185 | N193: 473651987.5 | O193: 19175.3314 | Q193: 0.9874895489
A194: 2023-11-01 | B194: 5783 | C194: 75000 | D194: 36269.67358 | E194: 36269.67358 | F194: 390812427.9 | H194: 2023-11-01 | I194: 5783 | J194: 35918.53467 | K194: 664.5669031 | L194: 785.6631925 | N194: 474365310.1 | O194: 19069.6665 | Q194: 0.9775980938
A195: 2023-12-01 | B195: 5813 | C195: 75000 | D195: 35957.77031 | E195: 35957.77031 | F195: 391900518.1 | H195: 2023-12-01 | I195: 5813 | J195: 35603.40894 | K195: 665.1840314 | L195: 786.4915392 | N195: 475051818.5 | O195: 19021.66247 | Q195: 0.9953017935
A196: 2024-01-01 | B196: 5844 | C196: 75000 | D196: 35645.17623 | E196: 35645.17623 | F196: 393015208.9 | H196: 2024-01-01 | I196: 5844 | J196: 35291.15682 | K196: 665.9022521 | L196: 787.368351 | N196: 475759424.7 | O196: 18880.77192 | Q196: 1.00313913
A197: 2024-02-01 | B197: 5875 | C197: 75000 | D197: 35340.29691 | E197: 35340.29691 | F197: 394120209.4 | H197: 2024-02-01 | I197: 5875 | J197: 34983.65091 | K197: 666.6276073 | L197: 788.1103846 | N197: 476461789.7 | O197: 18801.46884 | Q197: 1.019464774
A198: 2024-03-01 | B198: =A198-A197+B197 -> 5904 | C198: 75000 | D198: =BOtabinterpol(F198,2,$N$4:$O$244) -> 35062.75992 | E198: =IF(C198<D198,C198,D198) -> 35062.75992 | F198: =F197+(A198-A197)*E197 -> 395145078 | H198: 2024-03-01 | I198: =H198-H197+I197 -> 5904 | J198: 34706.75927 | K198: 667.2942472 | L198: 788.6864979 | N198: 477116081.2 | O198: 18706.35035 | Q198: =ABS(E198-J198)*100/J198 -> 1.02573867
A199: 2024-04-01 | B199: 5935 | C199: 75000 | D199: 34770.43974 | E199: 34770.43974 | F199: 396232023.6 | H199: 2024-04-01 | I199: 5935 | J199: 34416.67637 | K199: 668.0692283 | L199: 789.2316929 | N199: 477811957.7 | O199: 18616.6558 | Q199: 1.027883575
A200: 2024-05-01 | B200: 5965 | C200: 75000 | D200: 34498.80127 | E200: 34498.80127 | F200: 397275136.8 | H200: 2024-05-01 | I200: 5965 | J200: 34136.34891 | K200: 668.7439032 | L200: 789.5403766 | N200: 478482157.7 | O200: 18527.98191 | Q200: 1.061778344
... 44 more rows

Sheet GI_VR(84%)_MB
A1: Case name | B1: Study case 2 - Gas Injection (VRR=84%)
A4: RF | B4: qomax_n
A5: [-] | B5: [-]
A6: 0 | B6: 1
A7: 0.01121569091 | B7: 0.9608588143
A8: 0.02094945455 | B8: 0.9224463744
A9: 0.03129527273 | B9: 0.8885119514
A10: 0.04093909091 | B10: 0.8525621696
A11: 0.05050127273 | B11: 0.7974991456
A12: 0.05915727273 | B12: 0.7487334901
A13: 0.06755472727 | B13: 0.7081549163
A14: 0.07549727273 | B14: 0.6552630521
A15: 0.08260945455 | B15: 0.6053515067
A16: 0.08939872727 | B16: 0.5616669682
A17: 0.09549509091 | B17: 0.525697083
A18: 0.1013910909 | B18: 0.4889004483
A19: 0.1068745455 | B19: 0.4536226203
A20: 0.111634 | B20: 0.4235259232
A21: 0.116384 | B21: 0.3955526406
A22: 0.1206772727 | B22: 0.3719045896
A23: 0.1248485455 | B23: 0.3503759323
A24: 0.1286514545 | B24: 0.3319080072
A25: 0.132374 | B25: 0.3115709748
A26: 0.1358685455 | B26: 0.2930186157
A27: 0.1390489091 | B27: 0.2771359789
A28: 0.1421570909 | B28: 0.2625022616
A29: 0.1450063636 | B29: 0.2498049977
A30: 0.147808 | B30: 0.2379681563
A31: 0.1504770909 | B31: 0.2272565989
A32: 0.1527792727 | B32: 0.2179402127
A33: 0.1552236364 | B33: 0.2082353296
A34: 0.1574838182 | B34: 0.1996361297
A35: 0.1597227273 | B35: 0.1914676437
A36: 0.1618009091 | B36: 0.1834594817
A37: 0.1638585455 | B37: 0.1756332549
A38: 0.1658283636 | B38: 0.168500593
A39: 0.1676572727 | B39: 0.1621459301
A40: 0.1694758182 | B40: 0.1560842732
A41: 0.17117 | B41: 0.1502935086
A42: 0.1728556364 | B42: 0.1447228756
A43: 0.1744789091 | B43: 0.1395618479
A44: 0.1758925455 | B44: 0.1352195284
A45: 0.1774092727 | B45: 0.1307244235
A46: 0.178828 | B46: 0.1266610377
A47: 0.1802487273 | B47: 0.1227288262
A48: 0.1815807273 | B48: 0.1191594797
A49: 0.1829163636 | B49: 0.1156921577
A50: 0.1842145455 | B50: 0.1124303922
A51: 0.1854345455 | B51: 0.1094535915
A52: 0.1866618182 | B52: 0.1064536719
A53: 0.1878181818 | B53: 0.1036392055
A54: 0.18898 | B54: 0.1008870595
A55: 0.1901127273 | B55: 0.09828116519
A56: 0.1911072727 | B56: 0.09604567477
A57: 0.1921854545 | B57: 0.09368956436
A58: 0.1932018182 | B58: 0.0915214201
A59: 0.1942290909 | B59: 0.08938845667
A60: 0.1951981818 | B60: 0.0874218483
A61: 0.1961781818 | B61: 0.08548237943
A62: 0.1971381818 | B62: 0.08363237038
A63: 0.1980454545 | B63: 0.08192157691
A64: 0.1989636364 | B64: 0.08022988159
A65: 0.1998345455 | B65: 0.07866232435
A66: 0.2007163636 | B66: 0.07711034718
A67: 0.2015818182 | B67: 0.07562018777
A68: 0.2023763636 | B68: 0.07422803208
A69: 0.2032072727 | B69: 0.07274440625
A70: 0.2039981818 | B70: 0.07136431257
A71: 0.2047981818 | B71: 0.06999175763
A72: 0.2055581818 | B72: 0.06871368836
A73: 0.2063290909 | B73: 0.06744165008
A74: 0.2070854545 | B74: 0.06621635205
A75: 0.2078036364 | B75: 0.06507297509
A76: 0.2085327273 | B76: 0.06393311622
A77: 0.2092272727 | B77: 0.06286814225
A78: 0.2099327273 | B78: 0.06180517862
A79: 0.2106254545 | B79: 0.06077890356
A80: 0.2112418182 | B80: 0.05988128983
A81: 0.2119127273 | B81: 0.05891884285
A82: 0.2125527273 | B82: 0.05801771103
A83: 0.2132036364 | B83: 0.05711607663
A84: 0.2138236364 | B84: 0.05627073156
A85: 0.2144545455 | B85: 0.05542438132
A86: 0.2150763636 | B86: 0.05460416541
A87: 0.2156690909 | B87: 0.05383420783
A88: 0.2162727273 | B88: 0.05306173733
A89: 0.2168472727 | B89: 0.05233650966
A90: 0.2174345455 | B90: 0.05157861408
A91: 0.2180127273 | B91: 0.05081016424
A92: 0.2185290909 | B92: 0.05013504413
A93: 0.2190909091 | B93: 0.04940750457
A94: 0.2196272727 | B94: 0.04872283537
A95: 0.2201727273 | B95: 0.04803449732
A96: 0.2206945455 | B96: 0.04738631566
A97: 0.2212254545 | B97: 0.04673426412
A98: 0.2217509091 | B98: 0.04609965221
A99: 0.2222509091 | B99: 0.04550147759
A100: 0.2227618182 | B100: 0.04489918179
A101: 0.2232490909 | B101: 0.05216161068
A102: 0.2238327273 | B102: 0.0513645136
A103: 0.2244090909 | B103: 0.05055837002
A104: 0.2249218182 | B104: 0.04985490421
A105: 0.22548 | B105: 0.04910308988
A106: 0.2260145455 | B106: 0.04840158414
A107: 0.2265563636 | B107: 0.04770208874
A108: 0.2270745455 | B108: 0.04704842892
A109: 0.2276018182 | B109: 0.0463958748
A110: 0.2281218182 | B110: 0.04576538407
A111: 0.22862 | B111: 0.04517530105
A112: 0.2291254545 | B112: 0.0445851175
A113: 0.2296090909 | B113: 0.04403217538
A114: 0.2301036364 | B114: 0.04347863016
A115: 0.2305909091 | B115: 0.0429423738
A116: 0.2310418182 | B116: 0.04245577267
A117: 0.2315181818 | B117: 0.04195082725
A118: 0.2319727273 | B118: 0.04147663993
A119: 0.2324381818 | B119: 0.04100079408
A120: 0.2328836364 | B120: 0.04055354522
A121: 0.2333381818 | B121: 0.04010443681
A122: 0.2337872727 | B122: 0.03966799349
A123: 0.2342181818 | B123: 0.03925738295
A124: 0.2346581818 | B124: 0.03884451079
A125: 0.23508 | B125: 0.03845571236
A126: 0.2355127273 | B126: 0.0380645518
A127: 0.2359381818 | B127: 0.0376837947
A128: 0.23632 | B128: 0.03734857166
A129: 0.23674 | B129: 0.03698651066
A130: 0.23714 | B130: 0.03664495507
A131: 0.2375527273 | B131: 0.03630068552
A132: 0.2379454545 | B132: 0.03597139296
A133: 0.2383490909 | B133: 0.03563752689
A134: 0.2387490909 | B134: 0.03528220051
A135: 0.2391327273 | B135: 0.03494582152
A136: 0.2395236364 | B136: 0.03460577368
A137: 0.2399 | B137: 0.03428381883
A138: 0.2402836364 | B138: 0.03395814486
A139: 0.2406654545 | B139: 0.03363945681
A140: 0.2410054545 | B140: 0.03335745733
A141: 0.24138 | B141: 0.03305138411
A142: 0.2417381818 | B142: 0.03276129305
A143: 0.2421054545 | B143: 0.03246748286
A144: 0.2424581818 | B144: 0.03218885069
A145: 0.24282 | B145: 0.03190659992
A146: 0.2431763636 | B146: 0.03162992783
A147: 0.24352 | B147: 0.03136737832
A148: 0.2438727273 | B148: 0.03110126048
A149: 0.2442090909 | B149: 0.03084856161
A150: 0.2445563636 | B150: 0.03059229439
A151: 0.2448981818 | B151: 0.03034080172
A152: 0.2452072727 | B152: 0.03011775526
A153: 0.2455436364 | B153: 0.0298750578
A154: 0.2458690909 | B154: 0.02964437207
A155: 0.2462018182 | B155: 0.02941021852
A156: 0.24652 | B156: 0.02918752387
A157: 0.2468472727 | B157: 0.02896141166
A158: 0.2471727273 | B158: 0.02873921959
A159: 0.2474836364 | B159: 0.02850798102
A160: 0.2478036364 | B160: 0.02829337796
A161: 0.2481109091 | B161: 0.02808907786
A162: 0.2484254545 | B162: 0.02788141045
A163: 0.2487381818 | B163: 0.02767711035
A164: 0.2490290909 | B164: 0.02748904368
A165: 0.2493381818 | B165: 0.02729102587
A166: 0.2496345455 | B166: 0.02710235611
A167: 0.2499381818 | B167: 0.02691041956
A168: 0.2502290909 | B168: 0.02670843134
A169: 0.2505290909 | B169: 0.02652237501
A170: 0.2508272727 | B170: 0.02633903263
A171: 0.2511127273 | B171: 0.02616423416
A172: 0.2514054545 | B172: 0.02598616891
A173: 0.2516890909 | B173: 0.02581629576
A174: 0.2519781818 | B174: 0.02564320608
A175: 0.2522654545 | B175: 0.02547247854
A176: 0.2525236364 | B176: 0.02532039684
A177: 0.2528072727 | B177: 0.02515414229
A178: 0.25308 | B178: 0.02497703194
A179: 0.25336 | B179: 0.02481369238
A180: 0.2536290909 | B180: 0.02466065577
A181: 0.2539072727 | B181: 0.02448073096
A182: 0.2541818182 | B182: 0.02429085499
A183: 0.2544454545 | B183: 0.02357175884
A184: 0.2547090909 | B184: 0.0225217116
A185: 0.2549527273 | B185: 0.02178984983
A186: 0.2551981818 | B186: 0.02117654745
A187: 0.2554345455 | B187: 0.02065637376
A188: 0.2556454545 | B188: 0.02023907887
A189: 0.2558709091 | B189: 0.01982037674
A190: 0.2560872727 | B190: 0.01945002312
A191: 0.2563054545 | B191: 0.01909640552
A192: 0.2565127273 | B192: 0.0187779185
A193: 0.2567236364 | B193: 0.01846938263
A194: 0.2569290909 | B194: 0.01817919104
A195: 0.2571272727 | B195: 0.0179136763
A196: 0.2573272727 | B196: 0.01765288583
A197: 0.25752 | B197: 0.01741265103
A198: 0.2577145455 | B198: 0.01717543172
A199: 0.2579072727 | B199: 0.01695736083
A200: 0.25808 | B200: 0.01678658304
A201: 0.2582672727 | B201: 0.01660997527
A202: 0.2584472727 | B202: 0.01644321814
... 488 more rows
